Workbook

Sheet Norm.LogNorm
A1: N | B1: Norm.d | C1: Norm.c
A2: 1 | B2: =NORMDIST(A2,AVERAGE($A$2:$A$11),STDEVP($A$2:$A$11),0) -> 0.04070852046 | C2: =NORMDIST(A2,AVERAGE($A$2:$A$11),STDEVP($A$2:$A$11),1) -> 0.0585925436
A3: 2 | B3: =NORMDIST(A3,AVERAGE($A$2:$A$11),STDEVP($A$2:$A$11),0) -> 0.06610774449 | C3: =NORMDIST(A3,AVERAGE($A$2:$A$11),STDEVP($A$2:$A$11),1) -> 0.111508735
A4: 3 | B4: 0.09509936257 | C4: 0.1920441247
A5: 4 | B5: 0.1211884181 | C5: 0.3007540672
A6: 5 | B6: 0.136805284 | C6: 0.4309022165
A7: 6 | B7: 0.136805284 | C7: 0.5690977835
A8: 7 | B8: 0.1211884181 | C8: 0.6992459328
A9: 8 | B9: 0.09509936257 | C9: 0.8079558753
A10: 9 | B10: 0.06610774449 | C10: 0.888491265
A11: 10 | B11: 0.04070852046 | C11: 0.9414074564
A14: N | B14: Log | C14: LogNorm.d | D14: LogNorm.c | E14: LogNorm.d | F14: LogNorm.c
A15: 1 | B15: =LN(A15) -> 0 | C15: =NORMDIST(B15,AVERAGE($B$15:$B$24),STDEVP($B$15:$B$24),0) -> 0.05422985112 | D15: =NORMDIST(B15,AVERAGE($B$15:$B$24),STDEVP($B$15:$B$24),1) -> 0.01492695451 | E15: =_xlfn.LOGNORM.DIST(A27,AVERAGE($B$15:$B$24),STDEVP($B$15:$B$24),0) -> 0.05422985112 | F15: =_xlfn.LOGNORM.DIST(A27,AVERAGE($B$15:$B$24),STDEVP($B$15:$B$24),1) -> 0.01492695451
A16: 2 | B16: =LN(A16) -> 0.6931471806 | C16: =NORMDIST(B16,AVERAGE($B$15:$B$24),STDEVP($B$15:$B$24),0) -> 0.2875624346 | D16: =NORMDIST(B16,AVERAGE($B$15:$B$24),STDEVP($B$15:$B$24),1) -> 0.1199426357 | E16: =_xlfn.LOGNORM.DIST(A28,AVERAGE($B$15:$B$24),STDEVP($B$15:$B$24),0) -> 0.1437812173 | F16: =_xlfn.LOGNORM.DIST(A28,AVERAGE($B$15:$B$24),STDEVP($B$15:$B$24),1) -> 0.1199426357
A17: 3 | B17: 1.098612289 | C17: 0.4814085268 | D17: 0.2768541715 | E17: 0.1604695089 | F17: 0.2768541715
A18: 4 | B18: 1.386294361 | C18: 0.5646119162 | D18: 0.4291557554 | E18: 0.1411529791 | F18: 0.4291557554
A19: 5 | B19: 1.609437912 | C19: 0.56789762 | D19: 0.5566012882 | E19: 0.113579524 | F19: 0.5566012882
A20: 6 | B20: 1.791759469 | C20: 0.5286089024 | D20: 0.6570911409 | E20: 0.08810148374 | F20: 0.6570911409
A21: 7 | B21: 1.945910149 | C21: 0.4715412361 | D21: 0.7344103403 | E21: 0.06736303372 | F21: 0.7344103403
A22: 8 | B22: 2.079441542 | C22: 0.4104800702 | D22: 0.7933858374 | E22: 0.05131000877 | F22: 0.7933858374
A23: 9 | B23: 2.197224577 | C23: 0.3522702866 | D23: 0.8383253104 | E23: 0.03914114296 | F23: 0.8383253104
A24: 10 | B24: 2.302585093 | C24: 0.2998526462 | D24: 0.8726708217 | E24: 0.02998526462 | F24: 0.8726708217
A26: N | B26: g2 | C26: Norm.c | D26: LogNorm.c | E26: Log | F26: p | G26: Norm.i | H26: LogNorm.i | J26: a1 | K26: g2
A27: 1 | B27: 1 | C27: =NORMDIST(A27,AVERAGE($A$27:$A$36),STDEVP($A$27:$A$36),1) -> 0.0585925436 | D27: =_xlfn.NORM.DIST(LN(A27),AVERAGE(LN($A$27:$A$36)),STDEVP(LN($A$27:$A$36)),1) -> 0.01492695451 | E27: =LN(B27) -> 0 | F27: =(A27-0.5)/10 -> 0.05 | G27: =NORMINV(F27,AVERAGE($B$27:$B$36),STDEVP($B$27:$B$36)) -> -155.0931054 | H27: =LOGINV(F27,AVERAGE($E$27:$E$36),STDEVP($E$27:$E$36)) -> 0.8559020735 | J27: 1 | K27: 1
A28: 2 | B28: =B27*2 -> 2 | C28: 0.111508735 | D28: =_xlfn.NORM.DIST(LN(A28),AVERAGE(LN($A$27:$A$36)),STDEVP(LN($A$27:$A$36)),1) -> 0.1199426357 | E28: 0.6931471806 | F28: 0.15 | G28: =NORMINV(F28,AVERAGE($B$27:$B$36),STDEVP($B$27:$B$36)) -> -59.8851357 | H28: 2.874023249 | J28: 2 | K28: =K27*2 -> 2
A29: 3 | B29: =B28*2 -> 4 | C29: 0.1920441247 | D29: =_xlfn.NORM.DIST(LN(A29),AVERAGE(LN($A$27:$A$36)),STDEVP(LN($A$27:$A$36)),1) -> 0.2768541715 | E29: 1.386294361 | F29: 0.25 | G29: -3.246784553 | H29: 5.908024004 | J29: 3 | K29: =K28*2 -> 4
A30: 4 | B30: 8 | C30: 0.3007540672 | D30: =_xlfn.NORM.DIST(LN(A30),AVERAGE(LN($A$27:$A$36)),STDEVP(LN($A$27:$A$36)),1) -> 0.4291557554 | E30: 2.079441542 | F30: 0.35 | G30: 42.00355185 | H30: 10.50679842 | J30: 4 | K30: 8
A31: 5 | B31: 16 | C31: 0.4309022165 | D31: =_xlfn.NORM.DIST(LN(A31),AVERAGE(LN($A$27:$A$36)),STDEVP(LN($A$27:$A$36)),1) -> 0.5566012882 | E31: 2.772588722 | F31: 0.45 | G31: 82.63602275 | H31: 17.61906255 | J31: 5 | K31: 16
A32: 6 | B32: 32 | C32: 0.5690977835 | D32: =_xlfn.NORM.DIST(LN(A32),AVERAGE(LN($A$27:$A$36)),STDEVP(LN($A$27:$A$36)),1) -> 0.6570911409 | E32: 3.465735903 | F32: 0.55 | G32: 121.9639772 | H32: 29.05943483 | J32: 6 | K32: 32
A33: 7 | B33: 64 | C33: 0.6992459328 | D33: =_xlfn.NORM.DIST(LN(A33),AVERAGE(LN($A$27:$A$36)),STDEVP(LN($A$27:$A$36)),1) -> 0.7344103403 | E33: 4.158883083 | F33: 0.65 | G33: 162.5964482 | H33: 48.73035337 | J33: 7 | K33: 64
A34: 8 | B34: 128 | C34: 0.8079558753 | D34: =_xlfn.NORM.DIST(LN(A34),AVERAGE(LN($A$27:$A$36)),STDEVP(LN($A$27:$A$36)),1) -> 0.7933858374 | E34: 4.852030264 | F34: 0.75 | G34: 207.8467846 | H34: 86.66180091 | J34: 8 | K34: 128
A35: 9 | B35: 256 | C35: 0.888491265 | D35: =_xlfn.NORM.DIST(LN(A35),AVERAGE(LN($A$27:$A$36)),STDEVP(LN($A$27:$A$36)),1) -> 0.8383253104 | E35: 5.545177444 | F35: 0.85 | G35: 264.4851357 | H35: 178.1474802 | J35: 9 | K35: 256
A36: 10 | B36: 512 | C36: 0.9414074564 | D36: =_xlfn.NORM.DIST(LN(A36),AVERAGE(LN($A$27:$A$36)),STDEVP(LN($A$27:$A$36)),1) -> 0.8726708217 | E36: 6.238324625 | F36: 0.95 | G36: 359.6931054 | H36: 598.1992752 | J36: 10 | K36: 512

Sheet QQ.test
A1: * | B1: g4 | C1: Log | D1: p | E1: Norm.i | F1: Dif.Norm | G1: LogNorm.i | H1: Dif.Log | J1: * | K1: Norm | L1: LogNorm | P1: * | Q1: a1 | R1: a2 | S1: a4 | T1: a5 | V1: g1.5 | W1: g2 | X1: g3 | Y1: g4
A2: 1 | B2: 1 | C2: =LN(B2) -> 0 | D2: =(A2-0.5)/($K$4) -> 0.05 | E2: =NORMINV(D2,$K$2,$K$3) -> -93603.10021 | F2: =ABS(B2-E2) -> 93604.10021 | G2: =LOGINV(D2,$L$2,$L$3) -> 0.7325683594 | H2: =ABS(B2-G2) -> 0.2674316406 | J2: M | K2: =AVERAGE(B:B) -> 34952.5 | L2: =AVERAGE(C:C) -> 6.238324625 | P2: 1 | Q2: 1 | R2: 1 | S2: 1 | T2: 1 | V2: 1 | W2: 1 | X2: 1 | Y2: 1
A3: 2 | B3: =B2*4 -> 4 | C3: 1.386294361 | D3: 0.15 | E3: -46051.25272 | F3: 46055.25272 | G3: 8.260009638 | H3: 4.260009638 | J3: SD | K3: =STDEVP(B:B) -> 78156.25543 | L3: =STDEVP(C:C) -> 3.981827402 | P3: 2 | Q3: 2 | R3: =R2+2 -> 3 | S3: 5 | T3: =T2+5 -> 6 | V3: =V2*1.5 -> 1.5 | W3: =W2*2 -> 2 | X3: =X2*3 -> 3 | Y3: =Y2*4 -> 4
A4: 3 | B4: =B3*4 -> 16 | C4: 2.772588722 | D4: 0.25 | E4: -17763.0932 | F4: 17779.0932 | G4: 34.90474763 | H4: 18.90474763 | J4: N | K4: =COUNT(B:B) -> 10 | L4: =K4 -> 10 | P4: 3 | Q4: 3 | R4: =R3+2 -> 5 | S4: 9 | T4: =T3+5 -> 11 | V4: =V3*1.5 -> 2.25 | W4: =W3*2 -> 4 | X4: =X3*3 -> 9 | Y4: =Y3*4 -> 16
A5: 4 | B5: 64 | C5: 4.158883083 | D5: 0.35 | E5: 4837.295206 | F5: 4773.295206 | G5: 110.3928131 | H5: 46.39281314 | J5: Rank.M | K5: =RANK(K2,(B:B,K2),1) -> 9 | L5: =RANK(L2,(C:C,L2),1) -> 6 | P5: 4 | Q5: 4 | R5: 7 | S5: 13 | T5: 16 | V5: 3.375 | W5: 8 | X5: 27 | Y5: 64
A6: 5 | B6: 256 | C6: 5.545177444 | D6: 0.45 | E6: 25131.27968 | F6: 24875.27968 | G6: 310.4313652 | H6: 54.43136516 | J6: R.M.c | K6: =((K5-1)-(K4-K5+1))/((K5-1)+(K4-K5+1)) -> 0.6 | L6: =((L5-1)-(L4-L5+1))/((L5-1)+(L4-L5+1)) -> 0 | P6: 5 | Q6: 5 | R6: 9 | S6: 17 | T6: 21 | V6: 5.0625 | W6: 16 | X6: 81 | Y6: 256
A7: 6 | B7: 1024 | C7: 6.931471806 | D7: 0.55 | E7: 44773.72032 | F7: 43749.72032 | G7: 844.4507528 | H7: 179.5492472 | J7: r.Skew | K7: =_xlfn.SKEW.P(B:B)*SQRT(K4-1)/(K4-2) -> 0.900815825 | L7: =_xlfn.SKEW.P(C:C)*SQRT(K4-1)/(K4-2) -> 0 | P7: 6 | Q7: 6 | R7: 11 | S7: 21 | T7: 26 | V7: 7.59375 | W7: 32 | X7: 243 | Y7: 1024
A8: 7 | B8: 4096 | C8: 8.317766167 | D8: 0.65 | E8: 65067.70479 | F8: 60971.70479 | G8: 2374.647339 | H8: 1721.352661 | J8: Md: Median | K8: =MEDIAN(B:B) -> 640 | L8: =MEDIAN(C:C) -> 6.238324625 | P8: 7 | Q8: 7 | R8: 13 | S8: 25 | T8: 31 | V8: 11.390625 | W8: 64 | X8: 729 | Y8: 4096
A9: 8 | B9: 16384 | C9: 9.704060528 | D9: 0.75 | E9: 87668.0932 | F9: 71284.0932 | G9: 7510.267736 | H9: 8873.732264 | J9: M.Md.c | K9: =(K2-K8)/(K2+K8) -> 0.9640373674 | L9: =(L2-L8)/(L2+L8) -> 0 | P9: 8 | Q9: 8 | R9: 15 | S9: 29 | T9: 36 | V9: 17.0859375 | W9: 128 | X9: 2187 | Y9: 16384
A10: 9 | B10: 65536 | C10: 11.09035489 | D10: 0.85 | E10: 115956.2527 | F10: 50420.25272 | G10: 31736.52471 | H10: 33799.47529 | J10: sum.Dif. | K10: =SUM(F:F) -> 512148.6918 | L10: =SUM(H:H) -> 140396.7387 | P10: 9 | Q10: 9 | R10: 17 | S10: 33 | T10: 41 | V10: 25.62890625 | W10: 256 | X10: 6561 | Y10: 65536
A11: 10 | B11: 262144 | C11: 12.47664925 | D11: 0.95 | E11: 163508.1002 | F11: 98635.89979 | G11: 357842.3728 | H11: 95698.37285 | J11: NL: (dN-dL)/(dN+dL) | K11: =(K10-L10)/(K10+L10) -> 0.5696951289 | P11: 10 | Q11: 10 | R11: 19 | S11: 37 | T11: 46 | V11: 38.44335938 | W11: 512 | X11: 19683 | Y11: 262144
J12: GM: Exp(M) | K12: =GEOMEAN(B:B) -> 512 | L12: =EXP(L2) -> 512
J13: GSD: Exp(SD) | K13: =EXP(STDEVP(C:C)) -> 53.61492077 | L13: =EXP(L3) -> 53.61492077 | P13: * | Q13: grande | R13: todo | S13: amigo | U13: tiempo | V13: tú
P14: 1 | Q14: 84 | R14: 328 | S14: 1 | U14: 74 | V14: 0
J15: Exp(M+SD) | L15: =EXP(L2+L3) -> 27450.83944 | P15: 2 | Q15: 115 | R15: 464 | S15: 6 | U15: 82 | V15: 1
J16: GM*GSD | L16: =L12*L13 -> 27450.83944 | P16: 3 | Q16: 126 | R16: 492 | S16: 16 | U16: 82 | V16: 2
J17: Exp(M-SD) | L17: =EXP(L2-L3) -> 9.549580464 | P17: 4 | Q17: 128 | R17: 519 | S17: 32 | U17: 89 | V17: 4
J18: GM/GSD | L18: =L12/L13 -> 9.549580464 | P18: 5 | Q18: 164 | R18: 523 | S18: 51 | U18: 89 | V18: 11
P19: 6 | Q19: 169 | R19: 536 | S19: 66 | U19: 94 | V19: 47
J20: Upper p. | K20: =_xlfn.NORM.DIST(K2+K3,K2,K3,1) -> 0.8413447461 | L20: =_xlfn.LOGNORM.DIST(L15,L2,L3,1) -> 0.8413447461 | P20: 7 | Q20: 194 | R20: 553 | S20: 66 | U20: 112 | V20: 67
J21: Lower p. | K21: =_xlfn.NORM.DIST(K2-K3,K2,K3,1) -> 0.1586552539 | L21: =_xlfn.LOGNORM.DIST(L18,L2,L3,1) -> 0.1586552539 | P21: 8 | Q21: 202 | R21: 574 | S21: 70 | U21: 135 | V21: 165
J22: Between | K22: =K20-K21 -> 0.6826894921 | L22: =L20-L21 -> 0.6826894921 | P22: 9 | Q22: 207 | R22: 577 | S22: 175 | U22: 214 | V22: 204
P23: 10 | Q23: 252 | R23: 728 | S23: 218 | U23: 240 | V23: 461
J24: M, GM | K24: 1 | L24: =K24 -> 1
J25: SD, GSD | K25: 1.2 | L25: =K25 -> 1.2
J26: Upper p. | K26: =_xlfn.NORM.DIST(K24+K25,K24,K25,1) -> 0.8413447461 | L26: =_xlfn.LOGNORM.DIST(L24*L25,LN(L24),LN(L25),1) -> 0.8413447461
J27: Lower p. | K27: =_xlfn.NORM.DIST(K24-K25,K24,K25,1) -> 0.1586552539 | L27: =_xlfn.LOGNORM.DIST(L24/L25,LN(L24),LN(L25),1) -> 0.1586552539
J28: Between | K28: =K26-K27 -> 0.6826894921 | L28: =L26-L27 -> 0.6826894921
J30: =A1 -> * | K30: =B1 -> g4 | L30: M-SD | M30: M | N30: M+SD
J31: 1 | K31: 1 | L31: =$K$2-$K$3 -> -43203.75543 | M31: =$K$2 -> 34952.5 | N31: =$K$2+$K$3 -> 113108.7554
J32: 2 | K32: 4 | L32: -43203.75543 | M32: 34952.5 | N32: 113108.7554
J33: 3 | K33: 16 | L33: -43203.75543 | M33: 34952.5 | N33: 113108.7554
J34: 4 | K34: 64 | L34: -43203.75543 | M34: 34952.5 | N34: 113108.7554
J35: 5 | K35: 256 | L35: -43203.75543 | M35: 34952.5 | N35: 113108.7554
J36: 6 | K36: 1024 | L36: -43203.75543 | M36: 34952.5 | N36: 113108.7554
J37: 7 | K37: 4096 | L37: -43203.75543 | M37: 34952.5 | N37: 113108.7554
J38: 8 | K38: 16384 | L38: -43203.75543 | M38: 34952.5 | N38: 113108.7554
J39: 9 | K39: 65536 | L39: -43203.75543 | M39: 34952.5 | N39: 113108.7554
J40: 10 | K40: 262144 | L40: -43203.75543 | M40: 34952.5 | N40: 113108.7554
J42: =A1 -> * | K42: =B1 -> g4 | L42: GM/GSD | M42: =J12 -> GM: Exp(M) | N42: GM*GSD
J43: 1 | K43: 1 | L43: =$L$12/$L$13 -> 9.549580464 | M43: =$L$12 -> 512 | N43: =$L$12*$L$13 -> 27450.83944
J44: 2 | K44: 4 | L44: =$L$12/$L$13 -> 9.549580464 | M44: =$L$12 -> 512 | N44: =$L$12*$L$13 -> 27450.83944
J45: 3 | K45: 16 | L45: 9.549580464 | M45: 512 | N45: 27450.83944
J46: 4 | K46: 64 | L46: 9.549580464 | M46: 512 | N46: 27450.83944
J47: 5 | K47: 256 | L47: 9.549580464 | M47: 512 | N47: 27450.83944
J48: 6 | K48: 1024 | L48: 9.549580464 | M48: 512 | N48: 27450.83944
J49: 7 | K49: 4096 | L49: 9.549580464 | M49: 512 | N49: 27450.83944
J50: 8 | K50: 16384 | L50: 9.549580464 | M50: 512 | N50: 27450.83944
J51: 9 | K51: 65536 | L51: 9.549580464 | M51: 512 | N51: 27450.83944
J52: 10 | K52: 262144 | L52: 9.549580464 | M52: 512 | N52: 27450.83944
A68: * | B68: x | C68: M | D68: GM

Sheet QQ.vocabulario
A1: Lema | B1: N | C1: Suma | D1: LN | E1: p | F1: Norm.i | G1: Dif.Norm | H1: LogNorm.i | I1: Dif.Log | K1: * | L1: Norm | M1: LogNorm | O1: Freq. | P1: Count
A2: almohadón (n) | B2: 1 | C2: 5 | D2: =LN(C2) -> 1.609437912 | E2: =(B2-0.5)/($L$4) -> 9.889240506e-05 | F2: =NORMINV(E2,$L$2,$L$3) -> -5220.63126 | G2: =ABS(C2-F2) -> 5225.63126 | H2: =LOGINV(E2,$M$2,$M$3) -> 0.4066898333 | I2: =ABS(C2-H2) -> 4.593310167 | K2: M | L2: =AVERAGE(C:C) -> 153.1700949 | M2: =AVERAGE(D:D) -> 3.609806823 | O2: 0 | P2: =COUNTIFS(C:C, ">=" & O2, C:C, "<" & O3) -> 4889
A3: altísimo (aj) | B3: 2 | C3: 5 | D3: =LN(C3) -> 1.609437912 | E3: =(B3-0.5)/($L$4) -> 0.0002966772152 | F3: =NORMINV(E3,$L$2,$L$3) -> -4805.961677 | G3: =ABS(C3-F3) -> 4810.961677 | H3: =LOGINV(E3,$M$2,$M$3) -> 0.5759537848 | I3: =ABS(C3-H3) -> 4.424046215 | K3: SD | L3: =STDEVP(C:C) -> 1443.860289 | M3: =STDEVP(D:D) -> 1.211638436 | O3: 500 | P3: 83
A4: ánima (n) | B4: 3 | C4: 5 | D4: =LN(C4) -> 1.609437912 | E4: =(B4-0.5)/($L$4) -> 0.0004944620253 | F4: =NORMINV(E4,$L$2,$L$3) -> -4602.413287 | G4: =ABS(C4-F4) -> 4607.413287 | H4: =LOGINV(E4,$M$2,$M$3) -> 0.6832346146 | I4: =ABS(C4-H4) -> 4.316765385 | K4: N | L4: =COUNT(C:C) -> 5056 | M4: =L4 -> 5056 | O4: 1000 | P4: 29
A5: azulejo (n) | B5: 4 | C5: 5 | D5: 1.609437912 | E5: 0.0006922468354 | F5: -4464.099318 | G5: 4469.099318 | H5: 0.7673221177 | I5: 4.232677882 | K5: Rank.M | L5: =RANK(L2,(C:C,L2),1) -> 4470 | M5: =RANK(M2,(D:D,M2),1) -> 2851 | O5: 1500 | P5: 15
A6: caparazón (n) | B6: 5 | C6: 5 | D6: 1.609437912 | E6: 0.0008900316456 | F6: -4358.412784 | G6: 4363.412784 | H6: 0.8384837729 | I6: 4.161516227 | K6: R.M.c | L6: =((L5-1)-(L4-L5+1))/((L5-1)+(L4-L5+1)) -> 0.7678006329 | M6: =((M5-1)-(M4-M5+1))/((M5-1)+(M4-M5+1)) -> 0.1273734177 | O6: 2000 | P6: 7
A7: desatar (v) | B7: 6 | C7: 5 | D7: 1.609437912 | E7: 0.001087816456 | F7: -4272.47343 | G7: 4277.47343 | H7: 0.9011868444 | I7: 4.098813156 | K7: r.Skew | L7: =_xlfn.SKEW.P(C:C)*SQRT(L4-1)/(L4-2) -> 0.4721811506 | M7: =_xlfn.SKEW.P(D:D)*SQRT(L4-1)/(L4-2) -> 0.01608059731 | O7: 2500 | P7: 7
A8: desparecer (v) | B8: 7 | C8: 5 | D8: 1.609437912 | E8: 0.001285601266 | F8: -4199.828459 | G8: 4204.828459 | H8: 0.9578333429 | I8: 4.042166657 | K8: Md: Median | L8: =MEDIAN(C:C) -> 30 | M8: =MEDIAN(D:D) -> 3.401197382 | O8: 3000 | P8: 2
A9: fanal (n) | B9: 8 | C9: 5 | D9: 1.609437912 | E9: 0.001483386076 | F9: -4136.769777 | G9: 4141.769777 | H9: 1.009883745 | I9: 3.990116255 | K9: M.Md.c | L9: =(L2-L8)/(L2+L8) -> 0.6724356123 | M9: =(M2-M8)/(M2+M8) -> 0.02975457365 | O9: 3500 | P9: 2
A10: haya (n) | B10: 9 | C10: 5 | D10: 1.609437912 | E10: 0.001681170886 | F10: -4080.96453 | G10: 4085.96453 | H10: 1.058301311 | I10: 3.941698689 | K10: sum.Dif. | L10: =SUM(G:G) -> 5611746.04 | M10: =SUM(I:I) -> 430996.9577 | O10: 4000 | P10: 3
A11: obstinar (v) | B11: 10 | C11: 5 | D11: 1.609437912 | E11: 0.001878955696 | F11: -4030.847052 | G11: 4035.847052 | H11: 1.103759377 | I11: 3.896240623 | K11: NL: (dN-dL)/(dN+dL) | L11: =(L10-M10)/(L10+M10) -> 0.8573505582 | O11: 4500 | P11: 1
A12: ojal (n) | B12: 11 | C12: 5 | D12: 1.609437912 | E12: 0.002076740506 | F12: -3985.314247 | G12: 3990.314247 | H12: 1.14674965 | I12: 3.85325035 | K12: GM: Exp(M) | L12: =GEOMEAN(C:C) ->  | M12: =EXP(M2) -> 36.9589125 | O12: 5000 | P12: 4
A13: perplejidad (n) | B13: 12 | C13: 5 | D13: 1.609437912 | E13: 0.002274525316 | F13: -3943.558885 | G13: 3948.558885 | H13: 1.187643663 | I13: 3.812356337 | K13: GSD: Exp(SD) | L13: =EXP(STDEVP(D:D)) -> 3.358983626 | M13: =EXP(M3) -> 3.358983626 | O13: 5500 | P13: 1
A14: pétalo (n) | B14: 13 | C14: 5 | D14: 1.609437912 | E14: 0.002472310127 | F14: -3904.971983 | G14: 3909.971983 | H14: 1.226729941 | I14: 3.773270059 | O14: 6000 | P14: 1
A15: rótulo (n) | B15: 14 | C15: 5 | D15: 1.609437912 | E15: 0.002670094937 | F15: -3869.082486 | G15: 3874.082486 | H15: 1.264237646 | I15: 3.735762354 | L15: # exceso | O15: 6500 | P15: 1
A16: trepar (v) | B16: 15 | C16: 5 | D16: 1.609437912 | E16: 0.002867879747 | F16: -3835.518333 | G16: 3840.518333 | H16: 1.300352244 | I16: 3.699647756 | O16: 7000 | P16: 0
A17: jugo (n) | B17: 16 | C17: 5 | D17: 1.609437912 | E17: 0.003065664557 | F17: -3803.980389 | G17: 3808.980389 | H17: 1.335226251 | I17: 3.664773749 | O17: 7500 | P17: 0
A18: propina (n) | B18: 17 | C18: 5 | D18: 1.609437912 | E18: 0.003263449367 | F18: -3774.224456 | G18: 3779.224456 | H18: 1.368986823 | I18: 3.631013177 | O18: 8000 | P18: 0
A19: cuaderno (n) | B19: 18 | C19: 5 | D19: 1.609437912 | E19: 0.003461234177 | F19: -3746.048524 | G19: 3751.048524 | H19: 1.401741237 | I19: 3.598258763 | O19: 8500 | P19: 1
A20: esquí (n) | B20: 19 | C20: 5 | D20: 1.609437912 | E20: 0.003659018987 | F20: -3719.283529 | G20: 3724.283529 | H20: 1.433580954 | I20: 3.566419046 | O20: 9000 | P20: 0
A21: cocinar (v) | B21: 20 | C21: 5 | D21: 1.609437912 | E21: 0.003856803797 | F21: -3693.786516 | G21: 3698.786516 | H21: 1.464584675 | I21: 3.535415325 | O21: 9500 | P21: 1
A22: submarino (n) | B22: 21 | C22: 5 | D22: 1.609437912 | E22: 0.004054588608 | F22: -3669.435497 | G22: 3674.435497 | H22: 1.494820676 | I22: 3.505179324 | O22: 10000 | P22: 0
A23: tocadiscos (n) | B23: 22 | C23: 5 | D23: 1.609437912 | E23: 0.004252373418 | F23: -3646.125516 | G23: 3651.125516 | H23: 1.524348634 | I23: 3.475651366
A24: lumbrera (n) | B24: 23 | C24: 6 | D24: 1.791759469 | E24: 0.004450158228 | F24: -3623.765603 | G24: 3629.765603 | H24: 1.553221051 | I24: 4.446778949
A25: pesquisa (n) | B25: 24 | C25: 6 | D25: 1.791759469 | E25: 0.004647943038 | F25: -3602.276377 | G25: 3608.276377 | H25: 1.581484399 | I25: 4.418515601
A26: percatar (v) | B26: 25 | C26: 6 | D26: 1.791759469 | E26: 0.004845727848 | F26: -3581.588148 | G26: 3587.588148 | H26: 1.60918004 | I26: 4.39081996
A27: alarmar (v) | B27: 26 | C27: 6 | D27: 1.791759469 | E27: 0.005043512658 | F27: -3561.63939 | G27: 3567.63939 | H27: 1.636344968 | I27: 4.363655032
A28: ambulante (aj) | B28: 27 | C28: 6 | D28: 1.791759469 | E28: 0.005241297468 | F28: -3542.375504 | G28: 3548.375504 | H28: 1.663012429 | I28: 4.336987571
A29: aventajar (v) | B29: 28 | C29: 6 | D29: 1.791759469 | E29: 0.005439082278 | F29: -3523.747814 | G29: 3529.747814 | H29: 1.689212422 | I29: 4.310787578
A30: campear (v) | B30: 29 | C30: 6 | D30: 1.791759469 | E30: 0.005636867089 | F30: -3505.71273 | G30: 3511.71273 | H30: 1.714972125 | I30: 4.285027875
A31: desproporción (n) | B31: 30 | C31: 6 | D31: 1.791759469 | E31: 0.005834651899 | F31: -3488.231061 | G31: 3494.231061 | H31: 1.740316248 | I31: 4.259683752
A32: dócil (aj) | B32: 31 | C32: 6 | D32: 1.791759469 | E32: 0.006032436709 | F32: -3471.267437 | G32: 3477.267437 | H32: 1.765267337 | I32: 4.234732663
A33: encubrir (v) | B33: 32 | C33: 6 | D33: 1.791759469 | E33: 0.006230221519 | F33: -3454.789827 | G33: 3460.789827 | H33: 1.789846021 | I33: 4.210153979
A34: espía (n) | B34: 33 | C34: 6 | D34: 1.791759469 | E34: 0.006428006329 | F34: -3438.769126 | G34: 3444.769126 | H34: 1.814071238 | I34: 4.185928762
A35: expulsar (v) | B35: 34 | C35: 6 | D35: 1.791759469 | E35: 0.006625791139 | F35: -3423.178807 | G35: 3429.178807 | H35: 1.837960416 | I35: 4.162039584
A36: fastuoso (aj) | B36: 35 | C36: 6 | D36: 1.791759469 | E36: 0.006823575949 | F36: -3407.994627 | G36: 3413.994627 | H36: 1.861529636 | I36: 4.138470364
A37: irresponsable (aj) | B37: 36 | C37: 6 | D37: 1.791759469 | E37: 0.007021360759 | F37: -3393.194363 | G37: 3399.194363 | H37: 1.884793776 | I37: 4.115206224
A38: menguar (v) | B38: 37 | C38: 6 | D38: 1.791759469 | E38: 0.00721914557 | F38: -3378.757601 | G38: 3384.757601 | H38: 1.907766626 | I38: 4.092233374
A39: perito (n) | B39: 38 | C39: 6 | D39: 1.791759469 | E39: 0.00741693038 | F39: -3364.665536 | G39: 3370.665536 | H39: 1.930460998 | I39: 4.069539002
A40: pestaña (n) | B40: 39 | C40: 6 | D40: 1.791759469 | E40: 0.00761471519 | F40: -3350.90081 | G40: 3356.90081 | H40: 1.952888822 | I40: 4.047111178
A41: rebuscar (v) | B41: 40 | C41: 6 | D41: 1.791759469 | E41: 0.0078125 | F41: -3337.447365 | G41: 3343.447365 | H41: 1.975061223 | I41: 4.024938777
A42: simular (v) | B42: 41 | C42: 6 | D42: 1.791759469 | E42: 0.00801028481 | F42: -3324.290315 | G42: 3330.290315 | H42: 1.9969886 | I42: 4.0030114
A43: sustentar (v) | B43: 42 | C43: 6 | D43: 1.791759469 | E43: 0.00820806962 | F43: -3311.415834 | G43: 3317.415834 | H43: 2.018680685 | I43: 3.981319315
A44: torpeza (n) | B44: 43 | C44: 6 | D44: 1.791759469 | E44: 0.00840585443 | F44: -3298.81106 | G44: 3304.81106 | H44: 2.040146604 | I44: 3.959853396
A45: violentar (v) | B45: 44 | C45: 6 | D45: 1.791759469 | E45: 0.008603639241 | F45: -3286.464001 | G45: 3292.464001 | H45: 2.061394925 | I45: 3.938605075
A46: virginidad (n) | B46: 45 | C46: 6 | D46: 1.791759469 | E46: 0.008801424051 | F46: -3274.363462 | G46: 3280.363462 | H46: 2.082433709 | I46: 3.917566291
A47: neblina (n) | B47: 46 | C47: 6 | D47: 1.791759469 | E47: 0.008999208861 | F47: -3262.498975 | G47: 3268.498975 | H47: 2.103270547 | I47: 3.896729453
A48: asemejar (v) | B48: 47 | C48: 6 | D48: 1.791759469 | E48: 0.009196993671 | F48: -3250.860734 | G48: 3256.860734 | H48: 2.123912597 | I48: 3.876087403
A49: enojo (n) | B49: 48 | C49: 6 | D49: 1.791759469 | E49: 0.009394778481 | F49: -3239.439544 | G49: 3245.439544 | H49: 2.144366619 | I49: 3.855633381
A50: entrambas (aj) | B50: 49 | C50: 6 | D50: 1.791759469 | E50: 0.009592563291 | F50: -3228.226768 | G50: 3234.226768 | H50: 2.164639005 | I50: 3.835360995
A51: esterilidad (n) | B51: 50 | C51: 6 | D51: 1.791759469 | E51: 0.009790348101 | F51: -3217.214284 | G51: 3223.214284 | H51: 2.184735805 | I51: 3.815264195
A52: hidalguía (n) | B52: 51 | C52: 6 | D52: 1.791759469 | E52: 0.009988132911 | F52: -3206.394443 | G52: 3212.394443 | H52: 2.204662754 | I52: 3.795337246
A53: infiltrar (v) | B53: 52 | C53: 6 | D53: 1.791759469 | E53: 0.01018591772 | F53: -3195.760033 | G53: 3201.760033 | H53: 2.224425291 | I53: 3.775574709
A54: plebeyo (aj) | B54: 53 | C54: 6 | D54: 1.791759469 | E54: 0.01038370253 | F54: -3185.304248 | G54: 3191.304248 | H54: 2.244028583 | I54: 3.755971417
A55: pudor (n) | B55: 54 | C55: 6 | D55: 1.791759469 | E55: 0.01058148734 | F55: -3175.020656 | G55: 3181.020656 | H55: 2.263477542 | I55: 3.736522458
A56: reputación (n) | B56: 55 | C56: 6 | D56: 1.791759469 | E56: 0.01077927215 | F56: -3164.903171 | G56: 3170.903171 | H56: 2.282776841 | I56: 3.717223159
A57: romance (n) | B57: 56 | C57: 6 | D57: 1.791759469 | E57: 0.01097705696 | F57: -3154.946032 | G57: 3160.946032 | H57: 2.301930933 | I57: 3.698069067
A58: rubor (n) | B58: 57 | C58: 6 | D58: 1.791759469 | E58: 0.01117484177 | F58: -3145.143777 | G58: 3151.143777 | H58: 2.320944061 | I58: 3.679055939
A59: sobrenombre (n) | B59: 58 | C59: 6 | D59: 1.791759469 | E59: 0.01137262658 | F59: -3135.491222 | G59: 3141.491222 | H59: 2.339820276 | I59: 3.660179724
A60: valenciano (aj) | B60: 59 | C60: 6 | D60: 1.791759469 | E60: 0.01157041139 | F60: -3125.983446 | G60: 3131.983446 | H60: 2.358563445 | I60: 3.641436555
A61: queso (n) | B61: 60 | C61: 6 | D61: 1.791759469 | E61: 0.0117681962 | F61: -3116.615768 | G61: 3122.615768 | H61: 2.377177264 | I61: 3.622822736
A62: exigente (aj|n) | B62: 61 | C62: 6 | D62: 1.791759469 | E62: 0.01196598101 | F62: -3107.383738 | G62: 3113.383738 | H62: 2.395665269 | I62: 3.604334731
A63: afinidad (n) | B63: 62 | C63: 6 | D63: 1.791759469 | E63: 0.01216376582 | F63: -3098.283115 | G63: 3104.283115 | H63: 2.414030843 | I63: 3.585969157
A64: allanar (v) | B64: 63 | C64: 6 | D64: 1.791759469 | E64: 0.01236155063 | F64: -3089.30986 | G64: 3095.30986 | H64: 2.432277229 | I64: 3.567722771
A65: amén (interj) | B65: 64 | C65: 6 | D65: 1.791759469 | E65: 0.01255933544 | F65: -3080.46012 | G65: 3086.46012 | H65: 2.450407533 | I65: 3.549592467
A66: cerco (n) | B66: 65 | C66: 6 | D66: 1.791759469 | E66: 0.01275712025 | F66: -3071.730217 | G66: 3077.730217 | H66: 2.468424736 | I66: 3.531575264
A67: contribuyente (aj) | B67: 66 | C67: 6 | D67: 1.791759469 | E67: 0.01295490506 | F67: -3063.116637 | G67: 3069.116637 | H67: 2.4863317 | I67: 3.5136683
A68: década (n) | B68: 67 | C68: 6 | D68: =LN(C68) -> 1.791759469 | E68: =(B68-0.5)/($L$4) -> 0.01315268987 | F68: =NORMINV(E68,$L$2,$L$3) -> -3054.616024 | G68: =ABS(C68-F68) -> 3060.616024 | H68: =LOGINV(E68,$M$2,$M$3) -> 2.504131171 | I68: =ABS(C68-H68) -> 3.495868829
A69: dieta (n) | B69: 68 | C69: 6 | D69: 1.791759469 | E69: 0.01335047468 | F69: -3046.225165 | G69: 3052.225165 | H69: 2.521825792 | I69: 3.478174208
A70: disfraz (n) | B70: 69 | C70: 6 | D70: 1.791759469 | E70: 0.01354825949 | F70: -3037.940987 | G70: 3043.940987 | H70: 2.539418101 | I70: 3.460581899
A71: gemir (v) | B71: 70 | C71: 6 | D71: 1.791759469 | E71: 0.0137460443 | F71: -3029.760543 | G71: 3035.760543 | H71: 2.556910543 | I71: 3.443089457
A72: hebra (n) | B72: 71 | C72: 6 | D72: 1.791759469 | E72: 0.01394382911 | F72: -3021.681013 | G72: 3027.681013 | H72: 2.57430547 | I72: 3.42569453
A73: ingenuidad (n) | B73: 72 | C73: 6 | D73: 1.791759469 | E73: 0.01414161392 | F73: -3013.69969 | G73: 3019.69969 | H73: 2.591605148 | I73: 3.408394852
A74: interviú (n) | B74: 73 | C74: 6 | D74: 1.791759469 | E74: 0.01433939873 | F74: -3005.813978 | G74: 3011.813978 | H74: 2.608811761 | I74: 3.391188239
A75: revolotear (v) | B75: 74 | C75: 6 | D75: 1.791759469 | E75: 0.01453718354 | F75: -2998.021382 | G75: 3004.021382 | H75: 2.625927416 | I75: 3.374072584
A76: adusto (aj) | B76: 75 | C76: 6 | D76: 1.791759469 | E76: 0.01473496835 | F76: -2990.319508 | G76: 2996.319508 | H76: 2.642954145 | I76: 3.357045855
A77: arquetipo (n) | B77: 76 | C77: 6 | D77: 1.791759469 | E77: 0.01493275316 | F77: -2982.706053 | G77: 2988.706053 | H77: 2.659893908 | I77: 3.340106092
A78: averiguación (n) | B78: 77 | C78: 6 | D78: 1.791759469 | E78: 0.01513053797 | F78: -2975.178804 | G78: 2981.178804 | H78: 2.676748601 | I78: 3.323251399
A79: boceto (n) | B79: 78 | C79: 6 | D79: 1.791759469 | E79: 0.01532832278 | F79: -2967.73563 | G79: 2973.73563 | H79: 2.693520053 | I79: 3.306479947
A80: coetáneo (aj) | B80: 79 | C80: 6 | D80: 1.791759469 | E80: 0.01552610759 | F80: -2960.374479 | G80: 2966.374479 | H80: 2.710210033 | I80: 3.289789967
A81: constitutivo (aj) | B81: 80 | C81: 6 | D81: 1.791759469 | E81: 0.01572389241 | F81: -2953.093378 | G81: 2959.093378 | H81: 2.726820252 | I81: 3.273179748
A82: contiguo (aj) | B82: 81 | C82: 6 | D82: 1.791759469 | E82: 0.01592167722 | F82: -2945.890422 | G82: 2951.890422 | H82: 2.743352365 | I82: 3.256647635
A83: desinterés (n) | B83: 82 | C83: 6 | D83: 1.791759469 | E83: 0.01611946203 | F83: -2938.763776 | G83: 2944.763776 | H83: 2.759807973 | I83: 3.240192027
A84: ensombrecer (v) | B84: 83 | C84: 6 | D84: 1.791759469 | E84: 0.01631724684 | F84: -2931.71167 | G84: 2937.71167 | H84: 2.776188627 | I84: 3.223811373
A85: inofensivo (aj) | B85: 84 | C85: 6 | D85: 1.791759469 | E85: 0.01651503165 | F85: -2924.732396 | G85: 2930.732396 | H85: 2.792495829 | I85: 3.207504171
A86: lechuza (n) | B86: 85 | C86: 6 | D86: 1.791759469 | E86: 0.01671281646 | F86: -2917.824306 | G86: 2923.824306 | H86: 2.808731036 | I86: 3.191268964
A87: munición (n) | B87: 86 | C87: 6 | D87: 1.791759469 | E87: 0.01691060127 | F87: -2910.985807 | G87: 2916.985807 | H87: 2.824895657 | I87: 3.175104343
A88: naipe (n) | B88: 87 | C88: 6 | D88: 1.791759469 | E88: 0.01710838608 | F88: -2904.215361 | G88: 2910.215361 | H88: 2.840991062 | I88: 3.159008938
A89: obsesionar (v) | B89: 88 | C89: 6 | D89: 1.791759469 | E89: 0.01730617089 | F89: -2897.51148 | G89: 2903.51148 | H89: 2.857018577 | I89: 3.142981423
A90: remotísimo (aj) | B90: 89 | C90: 6 | D90: 1.791759469 | E90: 0.0175039557 | F90: -2890.872727 | G90: 2896.872727 | H90: 2.872979491 | I90: 3.127020509
A91: repulsión (n) | B91: 90 | C91: 6 | D91: 1.791759469 | E91: 0.01770174051 | F91: -2884.29771 | G91: 2890.29771 | H91: 2.888875054 | I91: 3.111124946
A92: roce (n) | B92: 91 | C92: 6 | D92: 1.791759469 | E92: 0.01789952532 | F92: -2877.785084 | G92: 2883.785084 | H92: 2.904706481 | I92: 3.095293519
A93: sensitivo (aj) | B93: 92 | C93: 6 | D93: 1.791759469 | E93: 0.01809731013 | F93: -2871.333546 | G93: 2877.333546 | H93: 2.92047495 | I93: 3.07952505
A94: jamón (n) | B94: 93 | C94: 6 | D94: 1.791759469 | E94: 0.01829509494 | F94: -2864.941834 | G94: 2870.941834 | H94: 2.936181609 | I94: 3.063818391
A95: acompañante (aj|n) | B95: 94 | C95: 6 | D95: 1.791759469 | E95: 0.01849287975 | F95: -2858.608725 | G95: 2864.608725 | H95: 2.951827571 | I95: 3.048172429
A96: béisbol (n) | B96: 95 | C96: 6 | D96: 1.791759469 | E96: 0.01869066456 | F96: -2852.333035 | G96: 2858.333035 | H96: 2.96741392 | I96: 3.03258608
A97: caramba (interj) | B97: 96 | C97: 6 | D97: 1.791759469 | E97: 0.01888844937 | F97: -2846.113617 | G97: 2852.113617 | H97: 2.982941708 | I97: 3.017058292
A98: necio (aj) | B98: 97 | C98: 7 | D98: 1.945910149 | E98: 0.01908623418 | F98: -2839.949355 | G98: 2846.949355 | H98: 2.998411962 | I98: 4.001588038
A99: afrontar (v) | B99: 98 | C99: 7 | D99: 1.945910149 | E99: 0.01928401899 | F99: -2833.839171 | G99: 2840.839171 | H99: 3.013825679 | I99: 3.986174321
A100: apasionadamente (av) | B100: 99 | C100: 7 | D100: 1.945910149 | E100: 0.0194818038 | F100: -2827.782015 | G100: 2834.782015 | H100: 3.029183829 | I100: 3.970816171
A101: ardoroso (aj) | B101: 100 | C101: 7 | D101: 1.945910149 | E101: 0.01967958861 | F101: -2821.776872 | G101: 2828.776872 | H101: 3.04448736 | I101: 3.95551264
A102: atinar (v) | B102: 101 | C102: 7 | D102: 1.945910149 | E102: 0.01987737342 | F102: -2815.822752 | G102: 2822.822752 | H102: 3.05973719 | I102: 3.94026281
A103: dureza (n) | B103: 102 | C103: 7 | D103: 1.945910149 | E103: 0.02007515823 | F103: -2809.918697 | G103: 2816.918697 | H103: 3.074934219 | I103: 3.925065781
A104: engrandecer (v) | B104: 103 | C104: 7 | D104: 1.945910149 | E104: 0.02027294304 | F104: -2804.063775 | G104: 2811.063775 | H104: 3.09007932 | I104: 3.90992068
A105: gusano (n) | B105: 104 | C105: 7 | D105: 1.945910149 | E105: 0.02047072785 | F105: -2798.25708 | G105: 2805.25708 | H105: 3.105173345 | I105: 3.894826655
A106: portentoso (aj) | B106: 105 | C106: 7 | D106: 1.945910149 | E106: 0.02066851266 | F106: -2792.497731 | G106: 2799.497731 | H106: 3.120217126 | I106: 3.879782874
A107: agrandar (v) | B107: 106 | C107: 7 | D107: 1.945910149 | E107: 0.02086629747 | F107: -2786.784873 | G107: 2793.784873 | H107: 3.135211473 | I107: 3.864788527
A108: agudeza (n) | B108: 107 | C108: 7 | D108: 1.945910149 | E108: 0.02106408228 | F108: -2781.117673 | G108: 2788.117673 | H108: 3.150157177 | I108: 3.849842823
A109: artificioso (aj) | B109: 108 | C109: 7 | D109: 1.945910149 | E109: 0.02126186709 | F109: -2775.49532 | G109: 2782.49532 | H109: 3.165055009 | I109: 3.834944991
A110: calavera (n) | B110: 109 | C110: 7 | D110: 1.945910149 | E110: 0.0214596519 | F110: -2769.917028 | G110: 2776.917028 | H110: 3.179905722 | I110: 3.820094278
A111: carlista (aj) | B111: 110 | C111: 7 | D111: 1.945910149 | E111: 0.02165743671 | F111: -2764.382028 | G111: 2771.382028 | H111: 3.194710051 | I111: 3.805289949
A112: corroborar (v) | B112: 111 | C112: 7 | D112: 1.945910149 | E112: 0.02185522152 | F112: -2758.889574 | G112: 2765.889574 | H112: 3.209468713 | I112: 3.790531287
A113: derrotero (n) | B113: 112 | C113: 7 | D113: 1.945910149 | E113: 0.02205300633 | F113: -2753.438938 | G113: 2760.438938 | H113: 3.224182409 | I113: 3.775817591
A114: desprovisto (aj) | B114: 113 | C114: 7 | D114: 1.945910149 | E114: 0.02225079114 | F114: -2748.029412 | G114: 2755.029412 | H114: 3.238851824 | I114: 3.761148176
A115: distar (v) | B115: 114 | C115: 7 | D115: 1.945910149 | E115: 0.02244857595 | F115: -2742.660306 | G115: 2749.660306 | H115: 3.253477626 | I115: 3.746522374
A116: frondoso (aj) | B116: 115 | C116: 7 | D116: 1.945910149 | E116: 0.02264636076 | F116: -2737.330946 | G116: 2744.330946 | H116: 3.268060469 | I116: 3.731939531
A117: impenetrable (aj) | B117: 116 | C117: 7 | D117: 1.945910149 | E117: 0.02284414557 | F117: -2732.040678 | G117: 2739.040678 | H117: 3.282600991 | I117: 3.717399009
A118: inútilmente (av) | B118: 117 | C118: 7 | D118: 1.945910149 | E118: 0.02304193038 | F118: -2726.788862 | G118: 2733.788862 | H118: 3.297099817 | I118: 3.702900183
A119: irónico (aj) | B119: 118 | C119: 7 | D119: 1.945910149 | E119: 0.02323971519 | F119: -2721.574874 | G119: 2728.574874 | H119: 3.311557558 | I119: 3.688442442
A120: juicioso (aj) | B120: 119 | C120: 7 | D120: 1.945910149 | E120: 0.0234375 | F120: -2716.398107 | G120: 2723.398107 | H120: 3.32597481 | I120: 3.67402519
A121: ligereza (n) | B121: 120 | C121: 7 | D121: 1.945910149 | E121: 0.02363528481 | F121: -2711.257966 | G121: 2718.257966 | H121: 3.340352158 | I121: 3.659647842
A122: limón (n) | B122: 121 | C122: 7 | D122: 1.945910149 | E122: 0.02383306962 | F122: -2706.153874 | G122: 2713.153874 | H122: 3.354690173 | I122: 3.645309827
A123: luminosidad (n) | B123: 122 | C123: 7 | D123: 1.945910149 | E123: 0.02403085443 | F123: -2701.085266 | G123: 2708.085266 | H123: 3.368989415 | I123: 3.631010585
A124: morador (n) | B124: 123 | C124: 7 | D124: 1.945910149 | E124: 0.02422863924 | F124: -2696.051589 | G124: 2703.051589 | H124: 3.38325043 | I124: 3.61674957
A125: ocaso (n) | B125: 124 | C125: 7 | D125: 1.945910149 | E125: 0.02442642405 | F125: -2691.052305 | G125: 2698.052305 | H125: 3.397473754 | I125: 3.602526246
A126: perforar (v) | B126: 125 | C126: 7 | D126: 1.945910149 | E126: 0.02462420886 | F126: -2686.086888 | G126: 2693.086888 | H126: 3.411659913 | I126: 3.588340087
A127: perturbador (aj) | B127: 126 | C127: 7 | D127: 1.945910149 | E127: 0.02482199367 | F127: -2681.154825 | G127: 2688.154825 | H127: 3.425809419 | I127: 3.574190581
A128: pulular (v) | B128: 127 | C128: 7 | D128: 1.945910149 | E128: 0.02501977848 | F128: -2676.255613 | G128: 2683.255613 | H128: 3.439922775 | I128: 3.560077225
A129: satélite (n) | B129: 128 | C129: 7 | D129: 1.945910149 | E129: 0.02521756329 | F129: -2671.388763 | G129: 2678.388763 | H129: 3.454000475 | I129: 3.545999525
A130: sensual (aj) | B130: 129 | C130: 7 | D130: 1.945910149 | E130: 0.0254153481 | F130: -2666.553794 | G130: 2673.553794 | H130: 3.468043001 | I130: 3.531956999
A131: serenar (v) | B131: 130 | C131: 7 | D131: 1.945910149 | E131: 0.02561313291 | F131: -2661.75024 | G131: 2668.75024 | H131: 3.482050827 | I131: 3.517949173
A132: tormento (n) | B132: 131 | C132: 7 | D132: =LN(C132) -> 1.945910149 | E132: =(B132-0.5)/($L$4) -> 0.02581091772 | F132: =NORMINV(E132,$L$2,$L$3) -> -2656.97764 | G132: =ABS(C132-F132) -> 2663.97764 | H132: =LOGINV(E132,$M$2,$M$3) -> 3.496024415 | I132: =ABS(C132-H132) -> 3.503975585
A133: transcender (v) | B133: 132 | C133: 7 | D133: 1.945910149 | E133: 0.02600870253 | F133: -2652.235548 | G133: 2659.235548 | H133: 3.50996422 | I133: 3.49003578
A134: abstracción (n) | B134: 133 | C134: 7 | D134: 1.945910149 | E134: 0.02620648734 | F134: -2647.523525 | G134: 2654.523525 | H134: 3.523870688 | I134: 3.476129312
A135: abultar (v) | B135: 134 | C135: 7 | D135: 1.945910149 | E135: 0.02640427215 | F135: -2642.841144 | G135: 2649.841144 | H135: 3.537744256 | I135: 3.462255744
A136: anverso (n) | B136: 135 | C136: 7 | D136: 1.945910149 | E136: 0.02660205696 | F136: -2638.187984 | G136: 2645.187984 | H136: 3.551585352 | I136: 3.448414648
A137: ascendencia (n) | B137: 136 | C137: 7 | D137: 1.945910149 | E137: 0.02679984177 | F137: -2633.563635 | G137: 2640.563635 | H137: 3.565394396 | I137: 3.434605604
A138: asiduo (aj) | B138: 137 | C138: 7 | D138: 1.945910149 | E138: 0.02699762658 | F138: -2628.967697 | G138: 2635.967697 | H138: 3.5791718 | I138: 3.4208282
A139: blasón (n) | B139: 138 | C139: 7 | D139: 1.945910149 | E139: 0.02719541139 | F139: -2624.399776 | G139: 2631.399776 | H139: 3.592917968 | I139: 3.407082032
A140: borroso (aj) | B140: 139 | C140: 7 | D140: 1.945910149 | E140: 0.0273931962 | F140: -2619.859487 | G140: 2626.859487 | H140: 3.606633298 | I140: 3.393366702
A141: dolorido (aj) | B141: 140 | C141: 7 | D141: 1.945910149 | E141: 0.02759098101 | F141: -2615.346454 | G141: 2622.346454 | H141: 3.620318179 | I141: 3.379681821
A142: epidermis (n) | B142: 141 | C142: 7 | D142: 1.945910149 | E142: 0.02778876582 | F142: -2610.860308 | G142: 2617.860308 | H142: 3.633972992 | I142: 3.366027008
A143: escape (n) | B143: 142 | C143: 7 | D143: 1.945910149 | E143: 0.02798655063 | F143: -2606.400687 | G143: 2613.400687 | H143: 3.647598112 | I143: 3.352401888
A144: extravagante (n) | B144: 143 | C144: 7 | D144: 1.945910149 | E144: 0.02818433544 | F144: -2601.967239 | G144: 2608.967239 | H144: 3.661193909 | I144: 3.338806091
A145: facción (n) | B145: 144 | C145: 7 | D145: 1.945910149 | E145: 0.02838212025 | F145: -2597.559615 | G145: 2604.559615 | H145: 3.674760743 | I145: 3.325239257
A146: humorístico (aj) | B146: 145 | C146: 7 | D146: 1.945910149 | E146: 0.02857990506 | F146: -2593.177477 | G146: 2600.177477 | H146: 3.68829897 | I146: 3.31170103
A147: impuro (aj) | B147: 146 | C147: 7 | D147: 1.945910149 | E147: 0.02877768987 | F147: -2588.820491 | G147: 2595.820491 | H147: 3.701808938 | I147: 3.298191062
A148: patético (aj) | B148: 147 | C148: 7 | D148: 1.945910149 | E148: 0.02897547468 | F148: -2584.488331 | G148: 2591.488331 | H148: 3.71529099 | I148: 3.28470901
A149: perdurable (aj) | B149: 148 | C149: 7 | D149: 1.945910149 | E149: 0.02917325949 | F149: -2580.180677 | G149: 2587.180677 | H149: 3.728745462 | I149: 3.271254538
A150: mundial (aj) | B150: 149 | C150: 7 | D150: 1.945910149 | E150: 0.0293710443 | F150: -2575.897216 | G150: 2582.897216 | H150: 3.742172685 | I150: 3.257827315
A151: afanoso (aj) | B151: 150 | C151: 7 | D151: 1.945910149 | E151: 0.02956882911 | F151: -2571.637641 | G151: 2578.637641 | H151: 3.755572984 | I151: 3.244427016
A152: aguardiente (n) | B152: 151 | C152: 7 | D152: 1.945910149 | E152: 0.02976661392 | F152: -2567.401648 | G152: 2574.401648 | H152: 3.768946677 | I152: 3.231053323
A153: atrayente (aj) | B153: 152 | C153: 7 | D153: 1.945910149 | E153: 0.02996439873 | F153: -2563.188944 | G153: 2570.188944 | H153: 3.782294079 | I153: 3.217705921
A154: azaroso (aj) | B154: 153 | C154: 7 | D154: 1.945910149 | E154: 0.03016218354 | F154: -2558.999237 | G154: 2565.999237 | H154: 3.795615498 | I154: 3.204384502
A155: balancear (v) | B155: 154 | C155: 7 | D155: 1.945910149 | E155: 0.03035996835 | F155: -2554.832243 | G155: 2561.832243 | H155: 3.808911237 | I155: 3.191088763
A156: cerebral (aj) | B156: 155 | C156: 7 | D156: 1.945910149 | E156: 0.03055775316 | F156: -2550.687683 | G156: 2557.687683 | H156: 3.822181594 | I156: 3.177818406
A157: contagio (n) | B157: 156 | C157: 7 | D157: 1.945910149 | E157: 0.03075553797 | F157: -2546.565282 | G157: 2553.565282 | H157: 3.835426863 | I157: 3.164573137
A158: contraposición (n) | B158: 157 | C158: 7 | D158: 1.945910149 | E158: 0.03095332278 | F158: -2542.464773 | G158: 2549.464773 | H158: 3.848647331 | I158: 3.151352669
A159: convencimiento (n) | B159: 158 | C159: 7 | D159: 1.945910149 | E159: 0.03115110759 | F159: -2538.38589 | G159: 2545.38589 | H159: 3.861843282 | I159: 3.138156718
A160: detestar (v) | B160: 159 | C160: 7 | D160: 1.945910149 | E160: 0.03134889241 | F160: -2534.328375 | G160: 2541.328375 | H160: 3.875014995 | I160: 3.124985005
A161: escalofrío (n) | B161: 160 | C161: 7 | D161: 1.945910149 | E161: 0.03154667722 | F161: -2530.291973 | G161: 2537.291973 | H161: 3.888162744 | I161: 3.111837256
A162: flaqueza (n) | B162: 161 | C162: 7 | D162: 1.945910149 | E162: 0.03174446203 | F162: -2526.276434 | G162: 2533.276434 | H162: 3.901286799 | I162: 3.098713201
A163: glosar (v) | B163: 162 | C163: 7 | D163: 1.945910149 | E163: 0.03194224684 | F163: -2522.281513 | G163: 2529.281513 | H163: 3.914387425 | I163: 3.085612575
A164: hegemonía (n) | B164: 163 | C164: 7 | D164: 1.945910149 | E164: 0.03214003165 | F164: -2518.30697 | G164: 2525.30697 | H164: 3.927464884 | I164: 3.072535116
A165: honda (n) | B165: 164 | C165: 7 | D165: 1.945910149 | E165: 0.03233781646 | F165: -2514.352567 | G165: 2521.352567 | H165: 3.940519433 | I165: 3.059480567
A166: indiscreto (aj) | B166: 165 | C166: 7 | D166: 1.945910149 | E166: 0.03253560127 | F166: -2510.418073 | G166: 2517.418073 | H166: 3.953551325 | I166: 3.046448675
A167: ladera (n) | B167: 166 | C167: 7 | D167: 1.945910149 | E167: 0.03273338608 | F167: -2506.503258 | G167: 2513.503258 | H167: 3.966560808 | I167: 3.033439192
A168: levita (n) | B168: 167 | C168: 7 | D168: 1.945910149 | E168: 0.03293117089 | F168: -2502.607898 | G168: 2509.607898 | H168: 3.979548129 | I168: 3.020451871
A169: materno (aj) | B169: 168 | C169: 7 | D169: 1.945910149 | E169: 0.0331289557 | F169: -2498.731773 | G169: 2505.731773 | H169: 3.992513529 | I169: 3.007486471
A170: palpitante (aj) | B170: 169 | C170: 7 | D170: 1.945910149 | E170: 0.03332674051 | F170: -2494.874666 | G170: 2501.874666 | H170: 4.005457244 | I170: 2.994542756
A171: racial (aj) | B171: 170 | C171: 7 | D171: 1.945910149 | E171: 0.03352452532 | F171: -2491.036365 | G171: 2498.036365 | H171: 4.01837951 | I171: 2.98162049
A172: rapaz (n) | B172: 171 | C172: 7 | D172: 1.945910149 | E172: 0.03372231013 | F172: -2487.216659 | G172: 2494.216659 | H172: 4.031280557 | I172: 2.968719443
A173: razonar (v) | B173: 172 | C173: 7 | D173: 1.945910149 | E173: 0.03392009494 | F173: -2483.415343 | G173: 2490.415343 | H173: 4.044160612 | I173: 2.955839388
A174: recelar (v) | B174: 173 | C174: 7 | D174: 1.945910149 | E174: 0.03411787975 | F174: -2479.632215 | G174: 2486.632215 | H174: 4.057019898 | I174: 2.942980102
A175: recriminación (n) | B175: 174 | C175: 7 | D175: 1.945910149 | E175: 0.03431566456 | F175: -2475.867076 | G175: 2482.867076 | H175: 4.069858635 | I175: 2.930141365
A176: sinnúmero (n) | B176: 175 | C176: 7 | D176: 1.945910149 | E176: 0.03451344937 | F176: -2472.11973 | G176: 2479.11973 | H176: 4.082677041 | I176: 2.917322959
A177: sucinto (aj) | B177: 176 | C177: 7 | D177: 1.945910149 | E177: 0.03471123418 | F177: -2468.389985 | G177: 2475.389985 | H177: 4.09547533 | I177: 2.90452467
A178: talle (n) | B178: 177 | C178: 7 | D178: 1.945910149 | E178: 0.03490901899 | F178: -2464.677651 | G178: 2471.677651 | H178: 4.108253711 | I178: 2.891746289
A179: vendedor (n) | B179: 178 | C179: 7 | D179: 1.945910149 | E179: 0.0351068038 | F179: -2460.982543 | G179: 2467.982543 | H179: 4.121012393 | I179: 2.878987607
A180: vid (n) | B180: 179 | C180: 7 | D180: 1.945910149 | E180: 0.03530458861 | F180: -2457.304477 | G180: 2464.304477 | H180: 4.13375158 | I180: 2.86624842
A181: recompensa (n) | B181: 180 | C181: 7 | D181: 1.945910149 | E181: 0.03550237342 | F181: -2453.643273 | G181: 2460.643273 | H181: 4.146471473 | I181: 2.853528527
A182: loma (n) | B182: 181 | C182: 7 | D182: 1.945910149 | E182: 0.03570015823 | F182: -2449.998754 | G182: 2456.998754 | H182: 4.159172272 | I182: 2.840827728
A183: repugnar (v) | B183: 182 | C183: 7 | D183: 1.945910149 | E183: 0.03589794304 | F183: -2446.370746 | G183: 2453.370746 | H183: 4.171854172 | I183: 2.828145828
A184: cabalmente (av) | B184: 183 | C184: 7 | D184: 1.945910149 | E184: 0.03609572785 | F184: -2442.759076 | G184: 2449.759076 | H184: 4.184517366 | I184: 2.815482634
A185: comparable (aj) | B185: 184 | C185: 7 | D185: 1.945910149 | E185: 0.03629351266 | F185: -2439.163577 | G185: 2446.163577 | H185: 4.197162045 | I185: 2.802837955
A186: cuartito (n) | B186: 185 | C186: 7 | D186: 1.945910149 | E186: 0.03649129747 | F186: -2435.584081 | G186: 2442.584081 | H186: 4.209788396 | I186: 2.790211604
A187: enciclopedia (n) | B187: 186 | C187: 7 | D187: 1.945910149 | E187: 0.03668908228 | F187: -2432.020426 | G187: 2439.020426 | H187: 4.222396604 | I187: 2.777603396
A188: entrometer (v) | B188: 187 | C188: 7 | D188: 1.945910149 | E188: 0.03688686709 | F188: -2428.47245 | G188: 2435.47245 | H188: 4.234986852 | I188: 2.765013148
A189: fronda (n) | B189: 188 | C189: 7 | D189: 1.945910149 | E189: 0.0370846519 | F189: -2424.939994 | G189: 2431.939994 | H189: 4.24755932 | I189: 2.75244068
A190: innegable (aj) | B190: 189 | C190: 7 | D190: 1.945910149 | E190: 0.03728243671 | F190: -2421.422902 | G190: 2428.422902 | H190: 4.260114185 | I190: 2.739885815
A191: ira (n) | B191: 190 | C191: 7 | D191: 1.945910149 | E191: 0.03748022152 | F191: -2417.921021 | G191: 2424.921021 | H191: 4.272651622 | I191: 2.727348378
A192: labriego (n) | B192: 191 | C192: 7 | D192: 1.945910149 | E192: 0.03767800633 | F192: -2414.434199 | G192: 2421.434199 | H192: 4.285171805 | I192: 2.714828195
A193: nuca (n) | B193: 192 | C193: 7 | D193: 1.945910149 | E193: 0.03787579114 | F193: -2410.962287 | G193: 2417.962287 | H193: 4.297674902 | I193: 2.702325098
A194: provenir (v) | B194: 193 | C194: 7 | D194: 1.945910149 | E194: 0.03807357595 | F194: -2407.505139 | G194: 2414.505139 | H194: 4.310161083 | I194: 2.689838917
A195: alteza (n) | B195: 194 | C195: 7 | D195: 1.945910149 | E195: 0.03827136076 | F195: -2404.062608 | G195: 2411.062608 | H195: 4.322630513 | I195: 2.677369487
A196: apanar (v) | B196: 195 | C196: 7 | D196: =LN(C196) -> 1.945910149 | E196: =(B196-0.5)/($L$4) -> 0.03846914557 | F196: =NORMINV(E196,$L$2,$L$3) -> -2400.634554 | G196: =ABS(C196-F196) -> 2407.634554 | H196: =LOGINV(E196,$M$2,$M$3) -> 4.335083356 | I196: =ABS(C196-H196) -> 2.664916644
A197: conjurar (v) | B197: 196 | C197: 7 | D197: 1.945910149 | E197: 0.03866693038 | F197: -2397.220835 | G197: 2404.220835 | H197: 4.347519773 | I197: 2.652480227
A198: desengaño (n) | B198: 197 | C198: 7 | D198: 1.945910149 | E198: 0.03886471519 | F198: -2393.821313 | G198: 2400.821313 | H198: 4.359939924 | I198: 2.640060076
A199: despacito (av) | B199: 198 | C199: 7 | D199: 1.945910149 | E199: 0.0390625 | F199: -2390.435853 | G199: 2397.435853 | H199: 4.372343965 | I199: 2.627656035
A200: filiación (n) | B200: 199 | C200: 7 | D200: 1.945910149 | E200: 0.03926028481 | F200: -2387.064319 | G200: 2394.064319 | H200: 4.384732052 | I200: 2.615267948
... 4857 more rows

Sheet Dic.Frec.1
A1: Word | B1: Car. | C1: Per1. | D1: Ofi. | E1: Lib. | F1: Dra. | G1: Fic. | H1: Ens. | I1: Téc. | J1: Per2. | K1: Man. | L1: - | M1: Sum
A2: de (prep) | B2: 4779 | C2: 10043 | D2: 11384 | E2: 6153 | F2: 3631 | G2: 6581 | H2: 7811 | I2: 8623 | J2: 8498 | K2: 4713 | M2: =SUM(B2:K2) -> 72216 | O2: Freq. | P2: Car. | Q2: Per1. | R2: Ofi. | S2: Lib. | T2: Dra. | U2: Fic. | V2: Ens. | W2: Téc. | X2: Per2. | Y2: Man.
A3: que-qué (conj|pn) | B3: 5706 | C3: 2746 | D3: 2873 | E3: 2916 | F3: 5037 | G3: 2629 | H3: 3205 | I3: 3282 | J3: 3649 | K3: 4581 | M3: 36624 | O3: 0 | P3: =COUNTIFS(B:B,">="&$O3,B:B,"<"&$O4) -> 5025 | Q3: =COUNTIFS(C:C,">="&$O3,C:C,"<"&$O4) -> 5043 | R3: =COUNTIFS(D:D,">="&$O3,D:D,"<"&$O4) -> 5043 | S3: =COUNTIFS(E:E,">="&$O3,E:E,"<"&$O4) -> 5041 | T3: =COUNTIFS(F:F,">="&$O3,F:F,"<"&$O4) -> 5026 | U3: =COUNTIFS(G:G,">="&$O3,G:G,"<"&$O4) -> 5041 | V3: =COUNTIFS(H:H,">="&$O3,H:H,"<"&$O4) -> 5041 | W3: =COUNTIFS(I:I,">="&$O3,I:I,"<"&$O4) -> 5041 | X3: =COUNTIFS(J:J,">="&$O3,J:J,"<"&$O4) -> 5041 | Y3: =COUNTIFS(K:K,">="&$O3,K:K,"<"&$O4) -> 5028
A4: y (conj) | B4: 3839 | C4: 2982 | D4: 3498 | E4: 4935 | F4: 2291 | G4: 3219 | H4: 3104 | I4: 3050 | J4: 3282 | K4: 2484 | M4: 32684 | O4: 500 | P4: =COUNTIFS(B:B,">="&$O4,B:B,"<"&$O5) -> 18 | Q4: =COUNTIFS(C:C,">="&$O4,C:C,"<"&$O5) -> 5 | R4: 6 | S4: 7 | T4: 20 | U4: 5 | V4: 6 | W4: 6 | X4: 6 | Y4: 17
A5: a (prep) | B5: 3226 | C5: 2956 | D5: 2626 | E5: 2703 | F5: 2975 | G5: 2732 | H5: 2435 | I5: 2971 | J5: 2607 | K5: 3242 | M5: 28473 | O5: 1000 | P5: 6 | Q5: 3 | R5: 2 | S5: 2 | T5: 2 | U5: 4 | V5: 3 | W5: 3 | X5: 3 | Y5: 4
A6: en (prep) | B6: 1886 | C6: 3220 | D6: 2867 | E6: 2413 | F6: 1584 | G6: 2649 | H6: 2783 | I6: 2781 | J6: 3139 | K6: 1689 | M6: 25011 | O6: 1500 | P6: 3 | Q6: 0 | R6: 0 | S6: 0 | T6: 2 | U6: 1 | V6: 0 | W6: 1 | X6: 1 | Y6: 2
A7: ser (v) | B7: 1495 | C7: 1184 | D7: 1320 | E7: 3131 | F7: 2893 | G7: 1643 | H7: 2087 | I7: 1591 | J7: 1762 | K7: 2297 | M7: 19403 | O7: 2000 | P7: 0 | Q7: 0 | R7: 0 | S7: 1 | T7: 1 | U7: 0 | V7: 2 | W7: 0 | X7: 0 | Y7: 2
A8: no (av) | B8: 1750 | C8: 571 | D8: 492 | E8: 756 | F8: 3138 | G8: 1034 | H8: 1075 | I8: 822 | J8: 849 | K8: 1991 | M8: 12478 | O8: 2500 | P8: 0 | Q8: 3 | R8: 3 | S8: 2 | T8: 2 | U8: 3 | V8: 1 | W8: 2 | X8: 1 | Y8: 0
A9: haber (v) | B9: 1821 | C9: 1454 | D9: 735 | E9: 636 | F9: 1903 | G9: 1235 | H9: 1093 | I9: 1227 | J9: 930 | K9: 1219 | M9: 12253 | O9: 3000 | P9: 1 | Q9: 1 | R9: 1 | S9: 1 | T9: 1 | U9: 1 | V9: 2 | W9: 2 | X9: 2 | Y9: 1
A10: por (prep) | B10: 1227 | C10: 1137 | D10: 1351 | E10: 1378 | F10: 857 | G10: 904 | H10: 913 | I10: 1040 | J10: 1137 | K10: 912 | M10: 10856 | O10: 3500 | P10: 1 | Q10: 0 | R10: 0 | S10: 0 | T10: 1 | U10: 0 | V10: 0 | W10: 0 | X10: 1 | Y10: 0
A11: su-suyo (poses) | B11: 534 | C11: 967 | D11: 982 | E11: 1118 | F11: 572 | G11: 1401 | H11: 1285 | I11: 1250 | J11: 1153 | K11: 455 | M11: 9717 | O11: 4000 | P11: 0 | Q11: 0 | R11: 0 | S11: 0 | T11: 0 | U11: 0 | V11: 0 | W11: 0 | X11: 0 | Y11: 0
A12: con (prep) | B12: 1001 | C12: 855 | D12: 924 | E12: 827 | F12: 818 | G12: 1227 | H12: 876 | I12: 858 | J12: 888 | K12: 713 | M12: 8987 | O12: 4500 | P12: 1 | Q12: 0 | R12: 0 | S12: 1 | T12: 0 | U12: 0 | V12: 0 | W12: 0 | X12: 0 | Y12: 2
A13: este-éste (aj|pn) | B13: 740 | C13: 565 | D13: 815 | E13: 521 | F13: 626 | G13: 442 | H13: 734 | I13: 723 | J13: 1122 | K13: 606 | M13: 6894 | O13: 5000 | P13: 0 | Q13: 0 | R13: 0 | S13: 0 | T13: 1 | U13: 0 | V13: 0 | W13: 0 | X13: 0 | Y13: 0
A14: para (prep) | B14: 1023 | C14: 641 | D14: 804 | E14: 580 | F14: 506 | G14: 432 | H14: 482 | I14: 671 | J14: 591 | K14: 761 | M14: 6491 | O14: 5500 | P14: 1 | Q14: 0 | R14: 0 | S14: 0 | T14: 0 | U14: 0 | V14: 0 | W14: 0 | X14: 0 | Y14: 0
A15: estar (v) | B15: 1162 | C15: 288 | D15: 205 | E15: 374 | F15: 928 | G15: 549 | H15: 338 | I15: 351 | J15: 335 | K15: 1145 | M15: 5675 | O15: 6000
A16: tener (v) | B16: 806 | C16: 292 | D16: 312 | E16: 423 | F16: 840 | G16: 429 | H16: 332 | I16: 356 | J16: 427 | K16: 1196 | M16: 5413
A17: todo (aj|pn) | B17: 728 | C17: 328 | D17: 536 | E17: 492 | F17: 577 | G17: 519 | H17: 553 | I17: 523 | J17: 464 | K17: 574 | M17: 5294 | O17: 縦軸 | P17: Car. | Q17: Per1. | R17: Ofi. | S17: Lib. | T17: Dra. | U17: Fic. | V17: Ens. | W17: Téc. | X17: Per2. | Y17: Man.
A18: más (aj|av) | B18: 671 | C18: 391 | D18: 326 | E18: 626 | F18: 570 | G18: 436 | H18: 570 | I18: 531 | J18: 457 | K18: 581 | M18: 5159 | O18: AM | P18: 16.56348892 | Q18: 15.82278481 | R18: 15.73101266 | S18: 15.19086234 | T18: 15.48239715 | U18: 14.38983386 | V18: 14.85403481 | W18: 14.64655854 | X18: 15.01048259 | Y18: 15.47863924
A19: como-cómo (conj|av) | B19: 613 | C19: 300 | D19: 390 | E19: 370 | F19: 609 | G19: 627 | H19: 546 | I19: 458 | J19: 612 | K19: 515 | M19: 5040 | O19: AMO | P19: 4564 | Q19: 4199 | R19: 4277 | S19: 4391 | T19: 4565 | U19: 4419 | V19: 4378 | W19: 4338 | X19: 4427 | Y19: 4504
A20: hacer (v) | B20: 855 | C20: 332 | D20: 302 | E20: 379 | F20: 614 | G20: 404 | H20: 381 | I20: 351 | J20: 357 | K20: 685 | M20: 4660 | O20: AMP | P20: 2035.5 | Q20: 1670.5 | R20: 1748.5 | S20: 1862.5 | T20: 2036.5 | U20: 1890.5 | V20: 1849.5 | W20: 1809.5 | X20: 1898.5 | Y20: 1975.5
A21: ir (v) | B21: 712 | C21: 100 | D21: 86 | E21: 257 | F21: 937 | G21: 494 | H21: 257 | I21: 188 | J21: 187 | K21: 1240 | M21: 4458 | O21: AMRP | P21: 0.8050227408 | Q21: 0.6606683805 | R21: 0.6915167095 | S21: 0.7366027289 | T21: 0.8054182322 | U21: 0.747676488 | V21: 0.7314613407 | W21: 0.7156416848 | X21: 0.7508404192 | Y21: 0.7812932569
A22: decir (aj|v) | B22: 907 | C22: 262 | D22: 186 | E22: 347 | F22: 844 | G22: 327 | H22: 264 | I22: 316 | J22: 452 | K22: 514 | M22: 4419 | O22: GM | P22: 0.7796852569 | Q22: 2.344933703 | R22: 1.554344583 | S22: 2.296189688 | T22: 1.051651263 | U22: 2.041343996 | V22: 2.428068331 | W22: 2.256090499 | X22: 1.542433932 | Y22: 0.6755228644
A23: si-sí (av) | B23: 588 | C23: 168 | D23: 207 | E23: 289 | F23: 1060 | G23: 295 | H23: 202 | I23: 211 | J23: 238 | K23: 798 | M23: 4056 | O23: GMO | P23: 2380 | Q23: 2238 | R23: 2301 | S23: 2344 | T23: 2644 | U23: 2430 | V23: 2221 | W23: 2260 | X23: 2202 | Y23: 2724
A24: poder (v|n) | B24: 421 | C24: 250 | D24: 317 | E24: 393 | F24: 413 | G24: 269 | H24: 385 | I24: 335 | J24: 364 | K24: 610 | M24: 3757 | O24: GMP | P24: -148.5 | Q24: -290.5 | R24: -227.5 | S24: -184.5 | T24: 115.5 | U24: -98.5 | V24: -307.5 | W24: -268.5 | X24: -326.5 | Y24: 195.5
A25: pero (conj) | B25: 398 | C25: 127 | D25: 99 | E25: 336 | F25: 725 | G25: 297 | H25: 295 | I25: 204 | J25: 271 | K25: 761 | M25: 3513 | O25: GMRP | P25: -0.05873047261 | Q25: -0.1148902511 | R25: -0.08997429306 | S25: -0.07296816294 | T25: 0.04567925648 | U25: -0.03895590271 | V25: -0.1216136049 | W25: -0.1061894404 | X25: -0.1291279415 | Y25: 0.07731856832
A26: él-ella (pn) | B26: 480 | C26: 111 | D26: 231 | E26: 540 | F26: 487 | G26: 523 | H26: 266 | I26: 242 | J26: 383 | K26: 201 | M26: 3464 | O26: Md | P26: 1 | Q26: 3 | R26: 2 | S26: 3 | T26: 1 | U26: 3 | V26: 3 | W26: 3 | X26: 2 | Y26: 0
A27: ya (av) | B27: 874 | C27: 242 | D27: 106 | E27: 238 | F27: 571 | G27: 237 | H27: 181 | I27: 171 | J27: 163 | K27: 506 | M27: 3289
A28: ver (v) | B28: 567 | C28: 74 | D28: 91 | E28: 206 | F28: 517 | G28: 304 | H28: 177 | I28: 141 | J28: 179 | K28: 654 | M28: 2910
A29: usted (pn) | B29: 363 | C29: 21 | D29: 3 | E29: 64 | F29: 1267 | G29: 237 | H29: 35 | I29: 33 | J29: 2 | K29: 775 | M29: 2800
A30: otro (aj|pn) | B30: 279 | C30: 206 | D30: 157 | E30: 217 | F30: 256 | G30: 302 | H30: 346 | I30: 241 | J30: 429 | K30: 312 | M30: 2745
A31: mi-mío (poses) | B31: 850 | C31: 57 | D31: 49 | E31: 151 | F31: 703 | G31: 292 | H31: 194 | I31: 43 | J31: 88 | K31: 305 | M31: 2732
A32: o (conj) | B32: 173 | C32: 162 | D32: 380 | E32: 340 | F32: 162 | G32: 164 | H32: 389 | I32: 221 | J32: 567 | K32: 170 | M32: 2728
A33: día (n) | B33: 1017 | C33: 197 | D33: 245 | E33: 208 | F33: 173 | G33: 208 | H33: 96 | I33: 166 | J33: 53 | K33: 305 | M33: 2668
A34: mucho (aj|av|pn) | B34: 846 | C34: 126 | D34: 117 | E34: 187 | F34: 215 | G34: 196 | H34: 144 | I34: 118 | J34: 178 | K34: 523 | M34: 2650
A35: tanto (aj|av|pn) | B35: 387 | C35: 149 | D35: 145 | E35: 220 | F35: 266 | G35: 216 | H35: 247 | I35: 213 | J35: 200 | K35: 395 | M35: 2438
A36: yo (pn) | B36: 474 | C36: 31 | D36: 7 | E36: 121 | F36: 920 | G36: 229 | H36: 121 | I36: 38 | J36: 40 | K36: 453 | M36: 2434
A37: ese-ése (aj|pn) | B37: 326 | C37: 81 | D37: 76 | E37: 105 | F37: 441 | G37: 233 | H37: 290 | I37: 212 | J37: 117 | K37: 552 | M37: 2433
A38: dar (v) | B38: 446 | C38: 180 | D38: 157 | E38: 245 | F38: 343 | G38: 234 | H38: 196 | I38: 185 | J38: 218 | K38: 228 | M38: 2432
A39: querer (v) | B39: 718 | C39: 59 | D39: 74 | E39: 130 | F39: 544 | G39: 210 | H39: 109 | I39: 105 | J39: 65 | K39: 415 | M39: 2429
A40: muy (av) | B40: 532 | C40: 94 | D40: 68 | E40: 190 | F40: 215 | G40: 173 | H40: 122 | I40: 109 | J40: 168 | K40: 476 | M40: 2147
A41: señor (n) | B41: 176 | C41: 218 | D41: 281 | E41: 178 | F41: 503 | G41: 135 | H41: 35 | I41: 174 | J41: 50 | K41: 336 | M41: 2086
A42: nuestro (poses) | B42: 190 | C42: 291 | D42: 222 | E42: 133 | F42: 90 | G42: 66 | H42: 291 | I42: 231 | J42: 246 | K42: 130 | M42: 1890
A43: cuando-cuándo (conj|av) | B43: 260 | C43: 83 | D43: 89 | E43: 176 | F43: 308 | G43: 218 | H43: 181 | I43: 132 | J43: 148 | K43: 268 | M43: 1863
A44: mismo (aj|pn) | B44: 169 | C44: 162 | D44: 242 | E44: 209 | F44: 133 | G44: 155 | H44: 209 | I44: 164 | J44: 260 | K44: 136 | M44: 1839
A45: saber (v) | B45: 454 | C45: 67 | D45: 59 | E45: 123 | F45: 323 | G45: 133 | H45: 90 | I45: 97 | J45: 97 | K45: 386 | M45: 1829
A46: sin (prep) | B46: 213 | C46: 121 | D46: 134 | E46: 198 | F46: 181 | G46: 227 | H46: 238 | I46: 202 | J46: 205 | K46: 102 | M46: 1821
A47: dos (nu|m) | B47: 156 | C47: 146 | D47: 70 | E47: 248 | F47: 173 | G47: 218 | H47: 139 | I47: 173 | J47: 262 | K47: 218 | M47: 1803
A48: bien (av|n) | B48: 451 | C48: 62 | D48: 115 | E48: 100 | F48: 231 | G48: 73 | H48: 112 | I48: 83 | J48: 109 | K48: 422 | M48: 1758
A49: porque (conj) | B49: 328 | C49: 79 | D49: 60 | E49: 176 | F49: 336 | G49: 137 | H49: 144 | I49: 108 | J49: 106 | K49: 205 | M49: 1679
A50: pasar (v) | B50: 384 | C50: 89 | D50: 43 | E50: 88 | F50: 237 | G50: 151 | H50: 90 | I50: 106 | J50: 87 | K50: 376 | M50: 1651
A51: grande (aj|n) | B51: 115 | C51: 252 | D51: 126 | E51: 207 | F51: 84 | G51: 164 | H51: 169 | I51: 202 | J51: 194 | K51: 128 | M51: 1641
A52: vez (n) | B52: 174 | C52: 81 | D52: 88 | E52: 269 | F52: 131 | G52: 184 | H52: 160 | I52: 107 | J52: 134 | K52: 275 | M52: 1603
A53: pues (conj) | B53: 573 | C53: 32 | D53: 40 | E53: 114 | F53: 317 | G53: 55 | H53: 79 | I53: 69 | J53: 116 | K53: 177 | M53: 1572
A54: primero (aj|av|n) | B54: 91 | C54: 240 | D54: 160 | E54: 184 | F54: 76 | G54: 99 | H54: 175 | I54: 204 | J54: 208 | K54: 105 | M54: 1542
A55: año (n) | B55: 208 | C55: 132 | D55: 303 | E55: 113 | F55: 106 | G55: 91 | H55: 143 | I55: 127 | J55: 141 | K55: 164 | M55: 1528
A56: bueno (aj|n) | B56: 312 | C56: 85 | D56: 44 | E56: 107 | F56: 288 | G56: 82 | H56: 83 | I56: 33 | J56: 56 | K56: 416 | M56: 1506
A57: deber (v) | B57: 109 | C57: 103 | D57: 193 | E57: 314 | F57: 157 | G57: 80 | H57: 102 | I57: 102 | J57: 174 | K57: 155 | M57: 1489
A58: sobre (prep) | B58: 62 | C58: 139 | D58: 130 | E58: 214 | F58: 54 | G58: 208 | H58: 196 | I58: 172 | J58: 224 | K58: 78 | M58: 1477
A59: alguno (aj|pn) | B59: 173 | C59: 123 | D59: 100 | E59: 158 | F59: 82 | G59: 134 | H59: 124 | I59: 122 | J59: 227 | K59: 204 | M59: 1447
A60: don (n) | B60: 135 | C60: 224 | D60: 209 | E60: 139 | F60: 235 | G60: 175 | H60: 84 | I60: 106 | J60: 78 | K60: 52 | M60: 1437
A61: también (av) | B61: 187 | C61: 117 | D61: 102 | E61: 151 | F61: 160 | G61: 96 | H61: 105 | I61: 87 | J61: 185 | K61: 198 | M61: 1388
A62: hombre (n) | B62: 18 | C62: 78 | D62: 69 | E62: 143 | F62: 314 | G62: 168 | H62: 264 | I62: 94 | J62: 101 | K62: 131 | M62: 1380
A63: aquel-aquél (aj) | B63: 48 | C63: 94 | D63: 165 | E63: 191 | F63: 62 | G63: 306 | H63: 148 | I63: 153 | J63: 170 | K63: 17 | M63: 1354
A64: llegar (v) | B64: 196 | C64: 100 | D64: 56 | E64: 129 | F64: 132 | G64: 143 | H64: 118 | I64: 125 | J64: 91 | K64: 254 | M64: 1344
A65: hasta (prep) | B65: 168 | C65: 123 | D65: 101 | E65: 132 | F65: 128 | G65: 125 | H65: 101 | I65: 115 | J65: 144 | K65: 205 | M65: 1342
A66: venir (v) | B66: 284 | C66: 51 | D66: 64 | E66: 97 | F66: 336 | G66: 105 | H66: 57 | I66: 61 | J66: 38 | K66: 240 | M66: =SUM(B66:K66) -> 1333
A67: aquí (av) | B67: 224 | C67: 38 | D67: 19 | E67: 33 | F67: 330 | G67: 82 | H67: 86 | I67: 50 | J67: 54 | K67: 364 | M67: 1280
A68: casa (n) | B68: 183 | C68: 90 | D68: 30 | E68: 79 | F68: 203 | G68: 171 | H68: 45 | I68: 98 | J68: 24 | K68: 298 | M68: 1221
A69: ahora (av) | B69: 236 | C69: 50 | D69: 35 | E69: 72 | F69: 220 | G69: 86 | H69: 108 | I69: 83 | J69: 46 | K69: 284 | M69: 1220
A70: entre (prep) | B70: 43 | C70: 160 | D70: 130 | E70: 132 | F70: 68 | G70: 169 | H70: 144 | I70: 147 | J70: 175 | K70: 50 | M70: 1218
A71: tiempo (n) | B71: 214 | C71: 82 | D71: 89 | E71: 82 | F71: 89 | G71: 112 | H71: 135 | I71: 74 | J71: 94 | K71: 240 | M71: 1211
A72: solo-sólo (aj|av) | B72: 87 | C72: 88 | D72: 88 | E72: 164 | F72: 133 | G72: 120 | H72: 153 | I72: 128 | J72: 162 | K72: 85 | M72: 1208
A73: poco (aj|av|pn) | B73: 212 | C73: 63 | D73: 34 | E73: 86 | F73: 108 | G73: 183 | H73: 118 | I73: 84 | J73: 101 | K73: 200 | M73: 1189
A74: creer (v) | B74: 236 | C74: 48 | D74: 12 | E74: 68 | F74: 199 | G74: 128 | H74: 125 | I74: 46 | J74: 69 | K74: 257 | M74: 1188
A75: así (av) | B75: 289 | C75: 71 | D75: 93 | E75: 94 | F75: 144 | G75: 83 | H75: 76 | I75: 93 | J75: 116 | K75: 121 | M75: 1180
A76: poner (v) | B76: 145 | C76: 98 | D76: 82 | E76: 121 | F76: 159 | G76: 138 | H76: 80 | I76: 91 | J76: 72 | K76: 178 | M76: 1164
A77: vida (n) | B77: 92 | C77: 81 | D77: 62 | E77: 99 | F77: 166 | G77: 164 | H77: 252 | I77: 104 | J77: 62 | K77: 57 | M77: 1139
A78: ni (conj|av) | B78: 100 | C78: 79 | D78: 70 | E78: 87 | F78: 211 | G78: 104 | H78: 159 | I78: 135 | J78: 95 | K78: 87 | M78: 1127
A79: parecer (v) | B79: 151 | C79: 47 | D79: 19 | E79: 81 | F79: 145 | G79: 151 | H79: 86 | I79: 82 | J79: 105 | K79: 232 | M79: 1099
A80: cosa (n) | B80: 209 | C80: 30 | D80: 49 | E80: 90 | F80: 197 | G80: 99 | H80: 112 | I80: 61 | J80: 70 | K80: 175 | M80: 1092
A81: español (aj|n) | B81: 24 | C81: 203 | D81: 123 | E81: 78 | F81: 30 | G81: 51 | H81: 174 | I81: 160 | J81: 108 | K81: 137 | M81: 1088
A82: eso (pn) | B82: 2 | C82: 2 | D82: 0 | E82: 0 | F82: 421 | G82: 106 | H82: 97 | I82: 48 | J82: 43 | K82: 365 | M82: 1084
A83: nada (av|n|pn) | B83: 196 | C83: 39 | D83: 14 | E83: 70 | F83: 284 | G83: 97 | H83: 77 | I83: 49 | J83: 35 | K83: 190 | M83: 1051
A84: después (av) | B84: 119 | C84: 136 | D84: 59 | E84: 92 | F84: 45 | G84: 144 | H84: 70 | I84: 78 | J84: 116 | K84: 172 | M84: 1031
A85: donde-dónde (conj|av) | B85: 76 | C85: 81 | D85: 62 | E85: 91 | F85: 119 | G85: 105 | H85: 99 | I85: 120 | J85: 90 | K85: 173 | M85: 1016
A86: siempre (av) | B86: 84 | C86: 54 | D86: 58 | E86: 106 | F86: 171 | G86: 106 | H86: 106 | I86: 80 | J86: 95 | K86: 132 | M86: 992
A87: hablar (v) | B87: 99 | C87: 33 | D87: 16 | E87: 63 | F87: 208 | G87: 131 | H87: 79 | I87: 51 | J87: 68 | K87: 242 | M87: 990
A88: llevar (v) | B88: 122 | C88: 59 | D88: 72 | E88: 84 | F88: 163 | G88: 119 | H88: 74 | I88: 76 | J88: 51 | K88: 169 | M88: 989
A89: dejar (v) | B89: 145 | C89: 40 | D89: 36 | E89: 91 | F89: 209 | G89: 106 | H89: 76 | I89: 64 | J89: 64 | K89: 141 | M89: 972
A90: desde (prep) | B90: 82 | C90: 129 | D90: 81 | E90: 109 | F90: 74 | G90: 101 | H90: 105 | I90: 80 | J90: 116 | K90: 89 | M90: 966
A91: quedar (v) | B91: 176 | C91: 78 | D91: 87 | E91: 71 | F91: 124 | G91: 94 | H91: 66 | I91: 64 | J91: 53 | K91: 151 | M91: 964
A92: tú (pn) | B92: 204 | C92: 11 | D92: 0 | E92: 67 | F92: 461 | G92: 47 | H92: 4 | I92: 2 | J92: 1 | K92: 165 | M92: 962
A93: tu-tuyo (pn) | B93: 520 | C93: 26 | D93: 3 | E93: 22 | F93: 282 | G93: 55 | H93: 7 | I93: 10 | J93: 1 | K93: 35 | M93: 961
A94: parte (n) | B94: 91 | C94: 106 | D94: 121 | E94: 83 | F94: 39 | G94: 39 | H94: 111 | I94: 92 | J94: 192 | K94: 80 | M94: 954
A95: quien-quién (pn) | B95: 66 | C95: 66 | D95: 68 | E95: 68 | F95: 228 | G95: 88 | H95: 87 | I95: 88 | J95: 60 | K95: 113 | M95: 932
A96: seguir (v) | B96: 240 | C96: 86 | D96: 53 | E96: 95 | F96: 66 | G96: 95 | H96: 48 | I96: 62 | J96: 105 | K96: 78 | M96: 928
A97: nuevo (aj|n) | B97: 51 | C97: 160 | D97: 122 | E97: 75 | F97: 44 | G97: 88 | H97: 113 | I97: 101 | J97: 84 | K97: 89 | M97: 927
A98: hijo (n) | B98: 160 | C98: 43 | D98: 99 | E98: 104 | F98: 256 | G98: 94 | H98: 40 | I98: 32 | J98: 26 | K98: 54 | M98: 908
A99: tres (nu|m) | B99: 44 | C99: 102 | D99: 52 | E99: 138 | F99: 113 | G99: 128 | H99: 65 | I99: 94 | J99: 88 | K99: 76 | M99: 900
A100: salir (v) | B100: 120 | C100: 78 | D100: 19 | E100: 75 | F100: 137 | G100: 132 | H100: 46 | I100: 45 | J100: 35 | K100: 199 | M100: 886
A101: encontrar (v) | B101: 177 | C101: 79 | D101: 33 | E101: 79 | F101: 57 | G101: 101 | H101: 81 | I101: 81 | J101: 88 | K101: 96 | M101: 872
A102: llamar (v) | B102: 65 | C102: 24 | D102: 35 | E102: 109 | F102: 134 | G102: 113 | H102: 83 | I102: 73 | J102: 121 | K102: 100 | M102: 857
A103: obra (n) | B103: 20 | C103: 108 | D103: 247 | E103: 33 | F103: 24 | G103: 28 | H103: 134 | I103: 88 | J103: 133 | K103: 28 | M103: 843
A104: escribir (v) | B104: 351 | C104: 36 | D104: 12 | E104: 78 | F104: 34 | G104: 41 | H104: 112 | I104: 26 | J104: 73 | K104: 74 | M104: 837
A105: mujer (n) | B105: 46 | C105: 45 | D105: 10 | E105: 79 | F105: 237 | G105: 172 | H105: 73 | I105: 72 | J105: 30 | K105: 57 | M105: 821
A106: conocer (v) | B106: 98 | C106: 48 | D106: 40 | E106: 60 | F106: 108 | G106: 67 | H106: 66 | I106: 56 | J106: 133 | K106: 134 | M106: 810
A107: pensar (v) | B107: 132 | C107: 25 | D107: 13 | E107: 69 | F107: 159 | G107: 93 | H107: 81 | I107: 38 | J107: 31 | K107: 148 | M107: 789
A108: menos (aj|av|n) | B108: 118 | C108: 43 | D108: 30 | E108: 137 | F108: 64 | G108: 40 | H108: 80 | I108: 63 | J108: 85 | K108: 122 | M108: 782
A109: hoy (av) | B109: 145 | C109: 141 | D109: 41 | E109: 25 | F109: 92 | G109: 21 | H109: 73 | I109: 90 | J109: 38 | K109: 110 | M109: 776
A110: recibir (v) | B110: 376 | C110: 79 | D110: 53 | E110: 41 | F110: 31 | G110: 32 | H110: 32 | I110: 60 | J110: 21 | K110: 44 | M110: 769
A111: volver (v) | B111: 100 | C111: 41 | D111: 22 | E111: 73 | F111: 144 | G111: 126 | H111: 44 | I111: 40 | J111: 22 | K111: 127 | M111: 739
A112: antes (av) | B112: 113 | C112: 35 | D112: 51 | E112: 70 | F112: 84 | G112: 62 | H112: 71 | I112: 46 | J112: 73 | K112: 133 | M112: 738
A113: sino (conj) | B113: 58 | C113: 35 | D113: 65 | E113: 106 | F113: 50 | G113: 51 | H113: 154 | I113: 75 | J113: 101 | K113: 40 | M113: 735
A114: hora (n) | B114: 51 | C114: 101 | D114: 46 | E114: 67 | F114: 80 | G114: 95 | H114: 52 | I114: 67 | J114: 17 | K114: 158 | M114: 734
A115: general (aj|n) | B115: 14 | C115: 167 | D115: 225 | E115: 56 | F115: 14 | G115: 11 | H115: 60 | I115: 88 | J115: 84 | K115: 12 | M115: 731
A116: mundo (n) | B116: 24 | C116: 90 | D116: 43 | E116: 63 | F116: 88 | G116: 86 | H116: 138 | I116: 65 | J116: 66 | K116: 47 | M116: 710
A117: cuanto-cuánto (aj|pn) | B117: 126 | C117: 19 | D117: 89 | E117: 49 | F117: 68 | G117: 48 | H117: 61 | I117: 64 | J117: 54 | K117: 132 | M117: 710
A118: pueblo (n) | B118: 57 | C118: 75 | D118: 84 | E118: 78 | F118: 33 | G118: 68 | H118: 127 | I118: 110 | J118: 47 | K118: 27 | M118: 706
A119: padre (n) | B119: 170 | C119: 45 | D119: 43 | E119: 87 | F119: 104 | G119: 93 | H119: 30 | I119: 21 | J119: 23 | K119: 87 | M119: 703
A120: vivir (v) | B120: 55 | C120: 26 | D120: 32 | E120: 68 | F120: 115 | G120: 98 | H120: 126 | I120: 57 | J120: 30 | K120: 95 | M120: 702
A121: amigo (n) | B121: 218 | C121: 6 | D121: 1 | E121: 51 | F121: 70 | G121: 66 | H121: 66 | I121: 32 | J121: 16 | K121: 175 | M121: 701
A122: cada (aj) | B122: 59 | C122: 42 | D122: 108 | E122: 94 | F122: 30 | G122: 62 | H122: 82 | I122: 57 | J122: 113 | K122: 53 | M122: 700
A123: mejor (aj|av|n) | B123: 119 | C123: 71 | D123: 47 | E123: 24 | F123: 77 | G123: 51 | H123: 53 | I123: 44 | J123: 48 | K123: 162 | M123: 696
A124: tal (aj|av|pn) | B124: 91 | C124: 38 | D124: 64 | E124: 57 | F124: 27 | G124: 60 | H124: 94 | I124: 71 | J124: 88 | K124: 105 | M124: 695
A125: cual-cuál (pn) | B125: 50 | C125: 47 | D125: 71 | E125: 68 | F125: 33 | G125: 36 | H125: 112 | I125: 72 | J125: 159 | K125: 44 | M125: 692
A126: dios (n) | B126: 114 | C126: 21 | D126: 132 | E126: 83 | F126: 215 | G126: 34 | H126: 27 | I126: 25 | J126: 9 | K126: 32 | M126: 692
A127: mil (nu|m) | B127: 34 | C127: 50 | D127: 63 | E127: 23 | F127: 40 | G127: 15 | H127: 178 | I127: 135 | J127: 109 | K127: 38 | M127: 685
A128: estado (n) | B128: 28 | C128: 147 | D128: 150 | E128: 44 | F128: 7 | G128: 21 | H128: 84 | I128: 110 | J128: 54 | K128: 39 | M128: 684
A129: medio (aj|n) | B129: 45 | C129: 102 | D129: 112 | E129: 72 | F129: 44 | G129: 66 | H129: 77 | I129: 54 | J129: 81 | K129: 25 | M129: 678
A130: mañana (av|n) | B130: 81 | C130: 151 | D130: 21 | E130: 29 | F130: 80 | G130: 62 | H130: 20 | I130: 67 | J130: 1 | K130: 163 | M130: =SUM(B130:K130) -> 675
A131: esperar (v) | B131: 175 | C131: 47 | D131: 19 | E131: 22 | F131: 89 | G131: 46 | H131: 20 | I131: 60 | J131: 7 | K131: 179 | M131: 664
A132: tarde (av|n) | B132: 76 | C132: 86 | D132: 16 | E132: 35 | F132: 58 | G132: 84 | H132: 28 | I132: 56 | J132: 9 | K132: 185 | M132: 633
A133: tomar (v) | B133: 30 | C133: 61 | D133: 31 | E133: 51 | F133: 72 | G133: 60 | H133: 45 | I133: 54 | J133: 43 | K133: 184 | M133: 631
A134: algo (av|pn) | B134: 132 | C134: 28 | D134: 6 | E134: 28 | F134: 92 | G134: 60 | H134: 57 | I134: 33 | J134: 32 | K134: 150 | M134: 618
A135: verdad (n) | B135: 66 | C135: 26 | D135: 38 | E135: 31 | F135: 174 | G135: 41 | H135: 58 | I135: 24 | J135: 29 | K135: 127 | M135: 614
A136: nosotros (pn) | B136: 136 | C136: 97 | D136: 14 | E136: 47 | F136: 81 | G136: 22 | H136: 48 | I136: 52 | J136: 35 | K136: 80 | M136: 612
A137: gracia (n) | B137: 173 | C137: 32 | D137: 46 | E137: 25 | F137: 87 | G137: 25 | H137: 24 | I137: 34 | J137: 12 | K137: 142 | M137: 600
A138: caso (n) | B138: 39 | C138: 34 | D138: 81 | E138: 112 | F138: 64 | G138: 35 | H138: 45 | I138: 48 | J138: 96 | K138: 41 | M138: 595
A139: ciudad (n) | B139: 13 | C139: 88 | D139: 25 | E139: 48 | F139: 12 | G139: 71 | H139: 58 | I139: 101 | J139: 76 | K139: 102 | M139: 594
A140: último (aj|n) | B140: 41 | C140: 95 | D140: 58 | E140: 52 | F140: 31 | G140: 58 | H140: 59 | I140: 79 | J140: 82 | K140: 37 | M140: 592
A141: niño (n) | B141: 117 | C141: 46 | D141: 37 | E141: 97 | F141: 91 | G141: 95 | H141: 28 | I141: 24 | J141: 3 | K141: 53 | M141: 591
A142: trabajo (n) | B142: 53 | C142: 52 | D142: 162 | E142: 32 | F142: 31 | G142: 25 | H142: 51 | I142: 67 | J142: 69 | K142: 48 | M142: 590
A143: aun-aún (av) | B143: 55 | C143: 44 | D143: 40 | E143: 66 | F143: 52 | G143: 51 | H143: 72 | I143: 76 | J143: 83 | K143: 46 | M143: 585
A144: contra (prep) | B144: 4 | C144: 87 | D144: 72 | E144: 228 | F144: 19 | G144: 27 | H144: 53 | I144: 64 | J144: 19 | K144: 11 | M144: 584
A145: hermano (n) | B145: 206 | C145: 34 | D145: 22 | E145: 40 | F145: 96 | G145: 36 | H145: 25 | I145: 33 | J145: 2 | K145: 87 | M145: 581
A146: cuatro (nu|m) | B146: 60 | C146: 67 | D146: 85 | E146: 85 | F146: 36 | G146: 42 | H146: 32 | I146: 51 | J146: 60 | K146: 57 | M146: 575
A147: mirar (v) | B147: 38 | C147: 5 | D147: 3 | E147: 50 | F147: 166 | G147: 109 | H147: 26 | I147: 14 | J147: 13 | K147: 151 | M147: 575
A148: número (n) | B148: 24 | C148: 104 | D148: 154 | E148: 97 | F148: 6 | G148: 26 | H148: 16 | I148: 48 | J148: 64 | K148: 33 | M148: 572
A149: momento (n) | B149: 74 | C149: 59 | D149: 33 | E149: 64 | F149: 47 | G149: 85 | H149: 63 | I149: 57 | J149: 37 | K149: 52 | M149: 571
A150: nacional (aj) | B150: 5 | C150: 152 | D150: 267 | E150: 14 | F150: 5 | G150: 4 | H150: 36 | I150: 57 | J150: 14 | K150: 17 | M150: 571
A151: noche (n) | B151: 56 | C151: 68 | D151: 6 | E151: 43 | F151: 102 | G151: 121 | H151: 30 | I151: 16 | J151: 1 | K151: 124 | M151: 567
A152: ciento (nu|m) | B152: 3 | C152: 20 | D152: 25 | E152: 30 | F152: 15 | G152: 18 | H152: 132 | I152: 157 | J152: 147 | K152: 14 | M152: 561
A153: fin (n) | B153: 78 | C153: 54 | D153: 83 | E153: 46 | F153: 43 | G153: 43 | H153: 46 | I153: 49 | J153: 51 | K153: 57 | M153: 550
A154: sentir (v) | B154: 61 | C154: 18 | D154: 16 | E154: 63 | F154: 70 | G154: 114 | H154: 63 | I154: 40 | J154: 26 | K154: 76 | M154: 547
A155: aunque (conj) | B155: 155 | C155: 40 | D155: 26 | E155: 38 | F155: 43 | G155: 29 | H155: 59 | I155: 37 | J155: 63 | K155: 53 | M155: 543
A156: mayor (aj|n) | B156: 49 | C156: 87 | D156: 59 | E156: 49 | F156: 21 | G156: 40 | H156: 49 | I156: 67 | J156: 78 | K156: 35 | M156: 534
A157: cuyo (pn) | B157: 9 | C157: 77 | D157: 99 | E157: 52 | F157: 4 | G157: 30 | H157: 57 | I157: 83 | J157: 107 | K157: 5 | M157: 523
A158: oír (v) | B158: 40 | C158: 18 | D158: 13 | E158: 25 | F158: 177 | G158: 82 | H158: 31 | I158: 28 | J158: 6 | K158: 99 | M158: 519
A159: santo (n) | B159: 112 | C159: 180 | D159: 21 | E159: 91 | F159: 32 | G159: 20 | H159: 11 | I159: 20 | J159: 3 | K159: 29 | M159: 519
A160: orden (n) | B160: 7 | C160: 62 | D160: 214 | E160: 48 | F160: 11 | G160: 15 | H160: 33 | I160: 73 | J160: 45 | K160: 10 | M160: 518
A161: mano (n) | B161: 33 | C161: 53 | D161: 27 | E161: 71 | F161: 56 | G161: 135 | H161: 58 | I161: 29 | J161: 19 | K161: 32 | M161: 513
A162: casi (av) | B162: 49 | C162: 23 | D162: 30 | E162: 75 | F162: 24 | G162: 66 | H162: 58 | I162: 44 | J162: 78 | K162: 63 | M162: 510
A163: ante (prep) | B163: 11 | C163: 100 | D163: 118 | E163: 61 | F163: 15 | G163: 59 | H163: 59 | I163: 47 | J163: 31 | K163: 9 | M163: 510
A164: carta (n) | B164: 295 | C164: 12 | D164: 21 | E164: 34 | F164: 18 | G164: 33 | H164: 24 | I164: 12 | J164: 16 | K164: 44 | M164: 509
A165: entonces (av) | B165: 41 | C165: 11 | D165: 22 | E165: 75 | F165: 85 | G165: 52 | H165: 39 | I165: 41 | J165: 45 | K165: 97 | M165: 508
A166: gustar (v) | B166: 95 | C166: 14 | D166: 0 | E166: 20 | F166: 108 | G166: 25 | H166: 20 | I166: 5 | J166: 2 | K166: 217 | M166: 506
A167: palabra (n) | B167: 15 | C167: 54 | D167: 38 | E167: 85 | F167: 55 | G167: 49 | H167: 75 | I167: 59 | J167: 50 | K167: 23 | M167: 503
A168: cinco (nu|m) | B168: 28 | C168: 47 | D168: 39 | E168: 71 | F168: 62 | G168: 33 | H168: 25 | I168: 79 | J168: 75 | K168: 44 | M168: 503
A169: allí (av) | B169: 57 | C169: 24 | D169: 14 | E169: 48 | F169: 44 | G169: 74 | H169: 24 | I169: 23 | J169: 21 | K169: 170 | M169: 499
A170: peseta (n) | B170: 74 | C170: 146 | D170: 168 | E170: 9 | F170: 16 | G170: 7 | H170: 0 | I170: 38 | J170: 0 | K170: 41 | M170: 499
A171: libro (n) | B171: 47 | C171: 14 | D171: 30 | E171: 56 | F171: 17 | G171: 47 | H171: 114 | I171: 27 | J171: 97 | K171: 48 | M171: 497
A172: entrar (v) | B172: 21 | C172: 39 | D172: 12 | E172: 63 | F172: 93 | G172: 76 | H172: 41 | I172: 31 | J172: 34 | K172: 87 | M172: 497
A173: según (av|p) | B173: 65 | C173: 76 | D173: 46 | E173: 38 | F173: 17 | G173: 24 | H173: 41 | I173: 49 | J173: 106 | K173: 23 | M173: 485
A174: nunca (av) | B174: 48 | C174: 34 | D174: 14 | E174: 43 | F174: 113 | G174: 80 | H174: 23 | I174: 25 | J174: 29 | K174: 76 | M174: 485
A175: luego (av) | B175: 59 | C175: 35 | D175: 8 | E175: 74 | F175: 69 | G175: 44 | H175: 36 | I175: 40 | J175: 53 | K175: 66 | M175: 484
A176: ninguno (aj|pn) | B176: 55 | C176: 42 | D176: 24 | E176: 60 | F176: 71 | G176: 44 | H176: 41 | I176: 49 | J176: 50 | K176: 37 | M176: 473
A177: modo (n) | B177: 23 | C177: 28 | D177: 45 | E177: 57 | F177: 30 | G177: 41 | H177: 64 | I177: 35 | J177: 86 | K177: 62 | M177: 471
A178: madre (n) | B178: 114 | C178: 19 | D178: 10 | E178: 77 | F178: 113 | G178: 72 | H178: 21 | I178: 8 | J178: 5 | K178: 27 | M178: 466
A179: contar (v) | B179: 113 | C179: 23 | D179: 32 | E179: 39 | F179: 81 | G179: 43 | H179: 40 | I179: 31 | J179: 23 | K179: 39 | M179: 464
A180: mes (n) | B180: 96 | C180: 70 | D180: 61 | E180: 26 | F180: 40 | G180: 34 | H180: 24 | I180: 52 | J180: 14 | K180: 46 | M180: 463
A181: idea (n) | B181: 22 | C181: 22 | D181: 19 | E181: 29 | F181: 25 | G181: 40 | H181: 116 | I181: 42 | J181: 47 | K181: 99 | M181: 461
A182: cierto (aj|n) | B182: 18 | C182: 28 | D182: 24 | E182: 57 | F182: 44 | G182: 44 | H182: 76 | I182: 56 | J182: 77 | K182: 36 | M182: 460
A183: punto (n) | B183: 20 | C183: 31 | D183: 27 | E183: 91 | F183: 23 | G183: 30 | H183: 60 | I183: 29 | J183: 129 | K183: 20 | M183: 460
A184: segundo (aj|n) | B184: 36 | C184: 81 | D184: 81 | E184: 50 | F184: 16 | G184: 27 | H184: 27 | I184: 58 | J184: 58 | K184: 24 | M184: 458
A185: calle (n) | B185: 19 | C185: 55 | D185: 22 | E185: 39 | F185: 46 | G185: 83 | H185: 34 | I185: 70 | J185: 2 | K185: 83 | M185: 453
A186: lugar (n) | B186: 20 | C186: 72 | D186: 76 | E186: 49 | F186: 15 | G186: 19 | H186: 29 | I186: 56 | J186: 75 | K186: 41 | M186: 452
A187: acabar (v) | B187: 40 | C187: 20 | D187: 12 | E187: 38 | F187: 92 | G187: 49 | H187: 64 | I187: 20 | J187: 48 | K187: 68 | M187: 451
A188: nombre (n) | B188: 41 | C188: 42 | D188: 30 | E188: 62 | F188: 38 | G188: 37 | H188: 44 | I188: 44 | J188: 81 | K188: 26 | M188: 445
A189: servir (v) | B189: 42 | C189: 33 | D189: 41 | E189: 60 | F189: 43 | G189: 26 | H189: 36 | I189: 48 | J189: 60 | K189: 53 | M189: 442
A190: durante (av) | B190: 10 | C190: 89 | D190: 60 | E190: 54 | F190: 8 | G190: 31 | H190: 38 | I190: 59 | J190: 57 | K190: 35 | M190: 441
A191: pronto (aj|av) | B191: 113 | C191: 11 | D191: 38 | E191: 37 | F191: 44 | G191: 50 | H191: 30 | I191: 24 | J191: 3 | K191: 91 | M191: 441
A192: público (aj|n) | B192: 0 | C192: 111 | D192: 102 | E192: 20 | F192: 14 | G192: 17 | H192: 48 | I192: 100 | J192: 14 | K192: 15 | M192: 441
A193: clase (n) | B193: 34 | C193: 41 | D193: 101 | E193: 36 | F193: 10 | G193: 12 | H193: 40 | I193: 48 | J193: 42 | K193: 70 | M193: 434
A194: desear (v) | B194: 197 | C194: 31 | D194: 33 | E194: 18 | F194: 26 | G194: 23 | H194: 18 | I194: 17 | J194: 14 | K194: 57 | M194: =SUM(B194:K194) -> 434
A195: tío (n) | B195: 231 | C195: 2 | D195: 1 | E195: 8 | F195: 56 | G195: 30 | H195: 5 | I195: 3 | J195: 0 | K195: 96 | M195: 432
A196: bajo (aj|av) | B196: 2 | C196: 67 | D196: 52 | E196: 47 | F196: 21 | G196: 65 | H196: 53 | I196: 53 | J196: 46 | K196: 23 | M196: 429
A197: país (n) | B197: 1 | C197: 82 | D197: 31 | E197: 29 | F197: 7 | G197: 25 | H197: 76 | I197: 48 | J197: 65 | K197: 65 | M197: 429
A198: perder (v) | B198: 59 | C198: 14 | D198: 16 | E198: 36 | F198: 67 | G198: 68 | H198: 48 | I198: 34 | J198: 22 | K198: 60 | M198: 424
A199: forma (n) | B199: 15 | C199: 24 | D199: 67 | E199: 98 | F199: 7 | G199: 15 | H199: 54 | I199: 35 | J199: 93 | K199: 13 | M199: 421
A200: además (av) | B200: 60 | C200: 27 | D200: 46 | E200: 32 | F200: 25 | G200: 20 | H200: 37 | I200: 20 | J200: 58 | K200: 92 | M200: 417
... 4857 more rows

Sheet Dic.Frec.2
A1: Word | B1: Car. | C1: Per1. | D1: Ofi. | E1: Lib. | F1: Dra. | G1: Fic. | H1: Ens. | I1: Téc. | J1: Per2. | K1: Man. | L1: M | M1: GM | N1: Md | O1: M::Md | P1: GM::Md | Q1: MO | R1: GMO | S1: MO-GMO | U1: Order | V1: 3 | W1: 4 | X1: 5 | Y1: 6 | Z1: 7 | AA1: 8 | AB1: 9 | AC1: 10 | AD1: Total | AE1: Ratio
A2: de (prep) | B2: 4779 | C2: 10043 | D2: 11384 | E2: 6153 | F2: 3631 | G2: 6581 | H2: 7811 | I2: 8623 | J2: 8498 | K2: 4713 | L2: 7221.6 | M2: 6816.916314 | N2: 7196 | O2: =(L2-N2)/(L2+N2) -> 0.001775607591 | P2: =(M2-N2)/(M2+N2) -> -0.0270524477 | Q2: 6 | R2: 6 | S2: 0 | U2: 3 | V2: 5 | AD2: 5 | AE2: =AD2/$AD$10 -> 0.0009889240506
A3: que-qué (conj|pn) | B3: 5706 | C3: 2746 | D3: 2873 | E3: 2916 | F3: 5037 | G3: 2629 | H3: 3205 | I3: 3282 | J3: 3649 | K3: 4581 | L3: 3662.4 | M3: 3536.078314 | N3: 3243.5 | O3: 0.0606582777 | P3: 0.04315582779 | Q3: 8 | R3: 7 | S3: 1 | U3: 4 | V3: 3 | W3: 44 | AD3: 47 | AE3: 0.009295886076
A4: y (conj) | B4: 3839 | C4: 2982 | D4: 3498 | E4: 4935 | F4: 2291 | G4: 3219 | H4: 3104 | I4: 3050 | J4: 3282 | K4: 2484 | L4: 3268.4 | M4: 3199.698443 | N4: 3161.5 | O4: 0.01662545296 | P4: 0.006004912929 | Q4: 7 | R4: 6 | S4: 1 | U4: 5 | V4: 20 | W4: 70 | X4: 210 | AD4: 300 | AE4: 0.05933544304 | AF4: =SUM(AE2:AE4) -> 0.06962025316
A5: a (prep) | B5: 3226 | C5: 2956 | D5: 2626 | E5: 2703 | F5: 2975 | G5: 2732 | H5: 2435 | I5: 2971 | J5: 2607 | K5: 3242 | L5: 2847.3 | M5: 2835.850215 | N5: 2844 | O5: 0.0005798323757 | P5: -0.001434859088 | Q5: 6 | R5: 6 | S5: 0 | U5: 6 | V5: 38 | W5: 212 | X5: 371 | Y5: 380 | AD5: 1001 | AE5: =AD5/$AD$10 -> 0.1979825949
A6: en (prep) | B6: 1886 | C6: 3220 | D6: 2867 | E6: 2413 | F6: 1584 | G6: 2649 | H6: 2783 | I6: 2781 | J6: 3139 | K6: 1689 | L6: 2501.1 | M6: 2431.842741 | N6: 2715 | O6: -0.04100764939 | P6: -0.05501572005 | Q6: 5 | R6: 5 | S6: 0 | U6: 7 | V6: 41 | W6: 273 | X6: 469 | Y6: 387 | Z6: 351 | AD6: 1521 | AE6: =AD6/$AD$10 -> 0.3008306962 | AF6: =SUM(AE6:AE9) -> 0.7323971519
A7: ser (v) | B7: 1495 | C7: 1184 | D7: 1320 | E7: 3131 | F7: 2893 | G7: 1643 | H7: 2087 | I7: 1591 | J7: 1762 | K7: 2297 | L7: 1940.3 | M7: 1849.096352 | N7: 1702.5 | O7: 0.06527945536 | P7: 0.04127618622 | Q7: 7 | R7: 7 | S7: 0 | U7: 8 | V7: 25 | W7: 189 | X7: 348 | Y7: 344 | Z7: 252 | AA7: 213 | AD7: 1371 | AE7: 0.2711629747
A8: haber (v) | B8: 1821 | C8: 1454 | D8: 735 | E8: 636 | F8: 1903 | G8: 1235 | H8: 1093 | I8: 1227 | J8: 930 | K8: 1219 | L8: 1225.3 | M8: 1160.292789 | N8: 1223 | O8: 0.0009394273578 | P8: -0.02631116552 | Q8: 6 | R8: 5 | S8: 1 | U8: 9 | V8: 8 | W8: 70 | X8: 107 | Y8: 114 | Z8: 90 | AA8: 116 | AB8: 118 | AD8: 623 | AE8: 0.1232199367 | AF8: =SUM(AE8:AE9) -> 0.160403481
A9: por (prep) | B9: 1227 | C9: 1137 | D9: 1351 | E9: 1378 | F9: 857 | G9: 904 | H9: 913 | I9: 1040 | J9: 1137 | K9: 912 | L9: 1085.6 | M9: 1070.75923 | N9: 1088.5 | O9: -0.001333885286 | P9: -0.008216137276 | Q9: 6 | R9: 6 | S9: 0 | U9: 10 | V9: 1 | W9: 8 | X9: 15 | Y9: 12 | Z9: 19 | AA9: 27 | AB9: 43 | AC9: 63 | AD9: 188 | AE9: 0.0371835443
A10: su-suyo (poses) | B10: 534 | C10: 967 | D10: 982 | E10: 1118 | F10: 572 | G10: 1401 | H10: 1285 | I10: 1250 | J10: 1153 | K10: 455 | L10: 971.7 | M10: 908.4497361 | N10: 1050 | O10: -0.03872978187 | P10: -0.07227668969 | Q10: 5 | R10: 4 | S10: 1 | U10: Total | V10: 141 | W10: 866 | X10: 1520 | Y10: 1237 | Z10: 712 | AA10: 356 | AB10: 161 | AC10: 63 | AD10: 5056
A11: no (av) | B11: 1750 | C11: 571 | D11: 492 | E11: 756 | F11: 3138 | G11: 1034 | H11: 1075 | I11: 822 | J11: 849 | K11: 1991 | L11: 1247.8 | M11: 1060.618936 | N11: 941.5 | O11: 0.1399077331 | P11: 0.05949643332 | Q11: 8 | R11: 7 | S11: 1 | U11: Ratio | V11: =V10/$AD$10 -> 0.02788765823 | W11: 0.1712816456 | X11: 0.3006329114 | Y11: =Y10/$AD$10 -> 0.2446598101 | Z11: =Z10/$AD$10 -> 0.1408227848 | AA11: 0.07041139241 | AB11: 0.03184335443 | AC11: 0.01246044304
A12: con (prep) | B12: 1001 | C12: 855 | D12: 924 | E12: 827 | F12: 818 | G12: 1227 | H12: 876 | I12: 858 | J12: 888 | K12: 713 | L12: 898.7 | M12: 890.1576795 | N12: 867 | O12: 0.01795321969 | P12: 0.01317905602 | Q12: 8 | R12: 8 | S12: 0 | X12: =SUM(V11:X11) -> 0.4998022152 | Z12: =SUM(Z11:AC11) -> 0.2555379747 | AB12: =SUM(AB11:AC11) -> 0.04430379747
A13: este-éste (aj|pn) | B13: 740 | C13: 565 | D13: 815 | E13: 521 | F13: 626 | G13: 442 | H13: 734 | I13: 723 | J13: 1122 | K13: 606 | L13: 689.4 | M13: 668.1241869 | N13: 674.5 | O13: 0.01092455459 | P13: -0.004748769705 | Q13: 6 | R13: 6 | S13: 0
A14: para (prep) | B14: 1023 | C14: 641 | D14: 804 | E14: 580 | F14: 506 | G14: 432 | H14: 482 | I14: 671 | J14: 591 | K14: 761 | L14: 649.1 | M14: 629.1864577 | N14: 616 | O14: 0.02616393961 | P14: 0.0105899463 | Q14: 7 | R14: 6 | S14: 1
A15: más (aj|av) | B15: 671 | C15: 391 | D15: 326 | E15: 626 | F15: 570 | G15: 436 | H15: 570 | I15: 531 | J15: 457 | K15: 581 | L15: 515.9 | M15: 504.5583834 | N15: 550.5 | O15: -0.0324456114 | P15: -0.04354414631 | Q15: 5 | R15: 5 | S15: 0 | U15: MO-GMO | V15: 0 | W15: 1 | X15: 2 | Y15: 3 | Z15: 4 | AA15: 5 | AB15: 6 | AC15: 7 | AD15: Total
A16: como-cómo (conj|av) | B16: 613 | C16: 300 | D16: 390 | E16: 370 | F16: 609 | G16: 627 | H16: 546 | I16: 458 | J16: 612 | K16: 515 | L16: 504 | M16: 490.0438764 | N16: 530.5 | O16: -0.02561623973 | P16: -0.03964172887 | Q16: 5 | R16: 5 | S16: 0 | U16: N | V16: 1384 | W16: 1242 | X16: 1162 | Y16: 792 | Z16: 349 | AA16: 110 | AB16: 16 | AC16: 1 | AD16: 5056
A17: todo (aj|pn) | B17: 728 | C17: 328 | D17: 536 | E17: 492 | F17: 577 | G17: 519 | H17: 553 | I17: 523 | J17: 464 | K17: 574 | L17: 529.4 | M17: 520.251688 | N17: 529.5 | O17: -9.443762395e-05 | P17: -0.00880999968 | Q17: 6 | R17: 5 | S17: 1
A18: tener (v) | B18: 806 | C18: 292 | D18: 312 | E18: 423 | F18: 840 | G18: 429 | H18: 332 | I18: 356 | J18: 427 | K18: 1196 | L18: 541.3 | M18: 481.9141263 | N18: 425 | O18: 0.1203559971 | P18: 0.06275580527 | Q18: 8 | R18: 8 | S18: 0
A19: hacer (v) | B19: 855 | C19: 332 | D19: 302 | E19: 379 | F19: 614 | G19: 404 | H19: 381 | I19: 351 | J19: 357 | K19: 685 | L19: 466 | M19: 438.6206728 | N19: 380 | O19: 0.1016548463 | P19: 0.07160907947 | Q19: 8 | R19: 8 | S19: 0 | U19: Contrast | V19: MMC | W19: GMMC
A20: poder (v|n) | B20: 421 | C20: 250 | D20: 317 | E20: 393 | F20: 413 | G20: 269 | H20: 385 | I20: 335 | J20: 364 | K20: 610 | L20: 375.7 | M20: 364.7802364 | N20: 374.5 | O20: 0.001599573447 | P20: -0.0131476038 | Q20: 6 | R20: 6 | S20: 0 | U20: -1 | V20: =COUNTIFS(O:O,">="&U20,O:O,"<"&U21) -> 0 | W20: =COUNTIFS(P:P,">="&U20,P:P,"<"&U21) -> 0
A21: estar (v) | B21: 1162 | C21: 288 | D21: 205 | E21: 374 | F21: 928 | G21: 549 | H21: 338 | I21: 351 | J21: 335 | K21: 1145 | L21: 567.5 | M21: 475.8190779 | N21: 362.5 | O21: 0.2204301075 | P21: 0.1351741609 | Q21: 8 | R21: 7 | S21: 1 | U21: -0.9 | V21: =COUNTIFS(O:O,">="&U21,O:O,"<"&U22) -> 0 | W21: 0
A22: decir (aj|v) | B22: 907 | C22: 262 | D22: 186 | E22: 347 | F22: 844 | G22: 327 | H22: 264 | I22: 316 | J22: 452 | K22: 514 | L22: 441.9 | M22: 390.304336 | N22: 337 | O22: 0.1346771087 | P22: 0.07329027665 | Q22: 7 | R22: 7 | S22: 0 | U22: -0.8 | V22: 0 | W22: 0
A23: él-ella (pn) | B23: 480 | C23: 111 | D23: 231 | E23: 540 | F23: 487 | G23: 523 | H23: 266 | I23: 242 | J23: 383 | K23: 201 | L23: 346.4 | M23: 310.7200256 | N23: 324.5 | O23: 0.03264271874 | P23: -0.02169323046 | Q23: 6 | R23: 6 | S23: 0 | U23: -0.7 | V23: 0 | W23: 0
A24: pero (conj) | B24: 398 | C24: 127 | D24: 99 | E24: 336 | F24: 725 | G24: 297 | H24: 295 | I24: 204 | J24: 271 | K24: 761 | L24: 351.3 | M24: 291.9148477 | N24: 296 | O24: 0.0854317936 | P24: -0.006948544107 | Q24: 8 | R24: 5 | S24: 3 | U24: -0.6 | V24: 0 | W24: 30
A25: otro (aj|pn) | B25: 279 | C25: 206 | D25: 157 | E25: 217 | F25: 256 | G25: 302 | H25: 346 | I25: 241 | J25: 429 | K25: 312 | L25: 274.5 | M25: 264.7148314 | N25: 267.5 | O25: 0.01291512915 | P25: -0.005233166063 | Q25: 6 | R25: 6 | S25: 0 | U25: -0.5 | V25: 0 | W25: 208
A26: si-sí (av) | B26: 588 | C26: 168 | D26: 207 | E26: 289 | F26: 1060 | G26: 295 | H26: 202 | I26: 211 | J26: 238 | K26: 798 | L26: 405.6 | M26: 329.2225959 | N26: 263.5 | O26: 0.2123748319 | P26: 0.1108825552 | Q26: 8 | R26: 8 | S26: 0 | U26: -0.4 | V26: 0 | W26: 542
A27: ir (v) | B27: 712 | C27: 100 | D27: 86 | E27: 257 | F27: 937 | G27: 494 | H27: 257 | I27: 188 | J27: 187 | K27: 1240 | L27: 445.8 | M27: 309.8655086 | N27: 257 | O27: 0.2686397268 | P27: 0.09325934952 | Q27: 7 | R27: 7 | S27: 0 | U27: -0.3 | V27: 2 | W27: 818
A28: ya (av) | B28: 874 | C28: 242 | D28: 106 | E28: 238 | F28: 571 | G28: 237 | H28: 181 | I28: 171 | J28: 163 | K28: 506 | L28: 328.9 | M28: 267.0303888 | N28: 237.5 | O28: 0.1613700565 | P28: 0.05853044633 | Q28: 8 | R28: 8 | S28: 0 | U28: -0.2 | V28: 67 | W28: 938
A29: dar (v) | B29: 446 | C29: 180 | D29: 157 | E29: 245 | F29: 343 | G29: 234 | H29: 196 | I29: 185 | J29: 218 | K29: 228 | L29: 243.2 | M29: 231.7395834 | N29: 223 | O29: 0.04332904333 | P29: 0.01921887535 | Q29: 8 | R29: 7 | S29: 1 | U29: -0.1 | V29: 428 | W29: 942
A30: ese-ése (aj|pn) | B30: 326 | C30: 81 | D30: 76 | E30: 105 | F30: 441 | G30: 233 | H30: 290 | I30: 212 | J30: 117 | K30: 552 | L30: 243.3 | M30: 196.5331803 | N30: 222.5 | O30: 0.04465435809 | P30: -0.06196840953 | Q30: 7 | R30: 5 | S30: 2 | U30: 0 | V30: 1115 | W30: 507
A31: tanto (aj|av|pn) | B31: 387 | C31: 149 | D31: 145 | E31: 220 | F31: 266 | G31: 216 | H31: 247 | I31: 213 | J31: 200 | K31: 395 | L31: 243.8 | M31: 231.3517001 | N31: 218 | O31: 0.05586834127 | P31: 0.02971325149 | Q31: 7 | R31: 7 | S31: 0 | U31: 0.1 | V31: 849 | W31: 112
A32: nuestro (poses) | B32: 190 | C32: 291 | D32: 222 | E32: 133 | F32: 90 | G32: 66 | H32: 291 | I32: 231 | J32: 246 | K32: 130 | L32: 189 | M32: 170.5697873 | N32: 206 | O32: -0.04303797468 | P32: -0.0940867109 | Q32: 5 | R32: 5 | S32: 0 | U32: 0.2 | V32: 664 | W32: 12
A33: día (n) | B33: 1017 | C33: 197 | D33: 245 | E33: 208 | F33: 173 | G33: 208 | H33: 96 | I33: 166 | J33: 53 | K33: 305 | L33: 266.8 | M33: 198.4303538 | N33: 202.5 | O33: 0.1370125719 | P33: -0.01015050668 | Q33: 9 | R33: 6 | S33: 3 | U33: 0.3 | V33: 417 | W33: 2
A34: sin (prep) | B34: 213 | C34: 121 | D34: 134 | E34: 198 | F34: 181 | G34: 227 | H34: 238 | I34: 202 | J34: 205 | K34: 102 | L34: 182.1 | M34: 175.8296758 | N34: 200 | O34: -0.04684637529 | P34: -0.06431190973 | Q34: 5 | R34: 4 | S34: 1 | U34: 0.4 | V34: 262 | W34: 0
A35: o (conj) | B35: 173 | C35: 162 | D35: 380 | E35: 340 | F35: 162 | G35: 164 | H35: 389 | I35: 221 | J35: 567 | K35: 170 | L35: 272.8 | M35: 245.5588749 | N35: 197 | O35: 0.1613452533 | P35: 0.1097229717 | Q35: 7 | R35: 7 | S35: 0 | U35: 0.5 | V35: 161 | W35: 0
A36: ver (v) | B36: 567 | C36: 74 | D36: 91 | E36: 206 | F36: 517 | G36: 304 | H36: 177 | I36: 141 | J36: 179 | K36: 654 | L36: 291 | M36: 226.8668639 | N36: 192.5 | O36: 0.2037228542 | P36: 0.08194940247 | Q36: 7 | R36: 7 | S36: 0 | U36: 0.6 | V36: 90 | W36: 0
A37: mucho (aj|av|pn) | B37: 846 | C37: 126 | D37: 117 | E37: 187 | F37: 215 | G37: 196 | H37: 144 | I37: 118 | J37: 178 | K37: 523 | L37: 265 | M37: 208.5272951 | N37: 182.5 | O37: 0.1843575419 | P37: 0.06656132557 | Q37: 9 | R37: 8 | S37: 1 | U37: 0.7 | V37: 39 | W37: 0
A38: cuando-cuándo (conj|av) | B38: 260 | C38: 83 | D38: 89 | E38: 176 | F38: 308 | G38: 218 | H38: 181 | I38: 132 | J38: 148 | K38: 268 | L38: 186.3 | M38: 171.1043434 | N38: 178.5 | O38: 0.02138157895 | P38: -0.02115436131 | Q38: 7 | R38: 5 | S38: 2 | U38: 0.8 | V38: 15 | W38: 0
A39: señor (n) | B39: 176 | C39: 218 | D39: 281 | E39: 178 | F39: 503 | G39: 135 | H39: 35 | I39: 174 | J39: 50 | K39: 336 | L39: 208.6 | M39: 163.1144294 | N39: 177 | O39: 0.08195020747 | P39: -0.04082617327 | Q39: 7 | R39: 4 | S39: 3 | U39: 0.9 | V39: 2 | W39: 0
A40: dos (nu|m) | B40: 156 | C40: 146 | D40: 70 | E40: 248 | F40: 173 | G40: 218 | H40: 139 | I40: 173 | J40: 262 | K40: 218 | L40: 180.3 | M40: 170.2687101 | N40: 173 | O40: 0.02066232663 | P40: -0.007956710899 | Q40: 7 | R40: 5 | S40: 2 | U40: 1 | V40: 0 | W40: 0
A41: mi-mío (poses) | B41: 850 | C41: 57 | D41: 49 | E41: 151 | F41: 703 | G41: 292 | H41: 194 | I41: 43 | J41: 88 | K41: 305 | L41: 273.2 | M41: 166.604132 | N41: 172.5 | O41: 0.2259367287 | P41: -0.01738660036 | Q41: 7 | R41: 6 | S41: 1
A42: muy (av) | B42: 532 | C42: 94 | D42: 68 | E42: 190 | F42: 215 | G42: 173 | H42: 122 | I42: 109 | J42: 168 | K42: 476 | L42: 214.7 | M42: 174.0800138 | N42: 170.5 | O42: 0.1147455867 | P42: 0.0103894994 | Q42: 8 | R42: 7 | S42: 1
A43: primero (aj|av|n) | B43: 91 | C43: 240 | D43: 160 | E43: 184 | F43: 76 | G43: 99 | H43: 175 | I43: 204 | J43: 208 | K43: 105 | L43: 154.2 | M43: 143.7659398 | N43: 167.5 | O43: -0.04134286602 | P43: -0.07625010375 | Q43: 5 | R43: 5 | S43: 0
A44: mismo (aj|pn) | B44: 169 | C44: 162 | D44: 242 | E44: 209 | F44: 133 | G44: 155 | H44: 209 | I44: 164 | J44: 260 | K44: 136 | L44: 183.9 | M44: 179.4340708 | N44: 166.5 | O44: 0.04965753425 | P44: 0.0373888319 | Q44: 7 | R44: 7 | S44: 0
A45: grande (aj|n) | B45: 115 | C45: 252 | D45: 126 | E45: 207 | F45: 84 | G45: 164 | H45: 169 | I45: 202 | J45: 194 | K45: 128 | L45: 164.1 | M45: 156.524101 | N45: 166.5 | O45: -0.007259528131 | P45: -0.03088283202 | Q45: 6 | R45: 5 | S45: 1
A46: sobre (prep) | B46: 62 | C46: 139 | D46: 130 | E46: 214 | F46: 54 | G46: 208 | H46: 196 | I46: 172 | J46: 224 | K46: 78 | L46: 147.7 | M46: 131.8362329 | N46: 155.5 | O46: -0.02572559367 | P46: -0.08235566697 | Q46: 6 | R46: 5 | S46: 1
A47: aquel-aquél (aj) | B47: 48 | C47: 94 | D47: 165 | E47: 191 | F47: 62 | G47: 306 | H47: 148 | I47: 153 | J47: 170 | K47: 17 | L47: 135.4 | M47: 105.8485836 | N47: 150.5 | O47: -0.05281566981 | P47: -0.1741824192 | Q47: 5 | R47: 5 | S47: 0
A48: vez (n) | B48: 174 | C48: 81 | D48: 88 | E48: 269 | F48: 131 | G48: 184 | H48: 160 | I48: 107 | J48: 134 | K48: 275 | L48: 160.3 | M48: 148.091441 | N48: 147 | O48: 0.04328018223 | P48: 0.003698653549 | Q48: 7 | R48: 6 | S48: 1
A49: porque (conj) | B49: 328 | C49: 79 | D49: 60 | E49: 176 | F49: 336 | G49: 137 | H49: 144 | I49: 108 | J49: 106 | K49: 205 | L49: 167.9 | M49: 145.5147666 | N49: 140.5 | O49: 0.08884565499 | P49: 0.01753324382 | Q49: 7 | R49: 7 | S49: 0
A50: entre (prep) | B50: 43 | C50: 160 | D50: 130 | E50: 132 | F50: 68 | G50: 169 | H50: 144 | I50: 147 | J50: 175 | K50: 50 | L50: 121.8 | M50: 109.652597 | N50: 138 | O50: -0.0623556582 | P50: -0.1144643882 | Q50: 4 | R50: 4 | S50: 0
A51: don (n) | B51: 135 | C51: 224 | D51: 209 | E51: 139 | F51: 235 | G51: 175 | H51: 84 | I51: 106 | J51: 78 | K51: 52 | L51: 143.7 | M51: 129.2865029 | N51: 137 | O51: 0.02386889918 | P51: -0.02896690988 | Q51: 7 | R51: 5 | S51: 2
A52: año (n) | B52: 208 | C52: 132 | D52: 303 | E52: 113 | F52: 106 | G52: 91 | H52: 143 | I52: 127 | J52: 141 | K52: 164 | L52: 152.8 | M52: 143.9033259 | N52: 136.5 | O52: 0.05634289665 | P52: 0.02640241829 | Q52: 8 | R52: 8 | S52: 0
A53: también (av) | B53: 187 | C53: 117 | D53: 102 | E53: 151 | F53: 160 | G53: 96 | H53: 105 | I53: 87 | J53: 185 | K53: 198 | L53: 138.8 | M53: 133.0007614 | N53: 134 | O53: 0.01759530792 | P53: -0.003742455851 | Q53: 6 | R53: 6 | S53: 0
A54: deber (v) | B54: 109 | C54: 103 | D54: 193 | E54: 314 | F54: 157 | G54: 80 | H54: 102 | I54: 102 | J54: 174 | K54: 155 | L54: 148.9 | M54: 137.3985536 | N54: 132 | O54: 0.06016375934 | P54: 0.02003928205 | Q54: 6 | R54: 6 | S54: 0
A55: alguno (aj|pn) | B55: 173 | C55: 123 | D55: 100 | E55: 158 | F55: 82 | G55: 134 | H55: 124 | I55: 122 | J55: 227 | K55: 204 | L55: 144.7 | M55: 138.4511123 | N55: 129 | O55: 0.05736207526 | P55: 0.0353377193 | Q55: 7 | R55: 7 | S55: 0
A56: llegar (v) | B56: 196 | C56: 100 | D56: 56 | E56: 129 | F56: 132 | G56: 143 | H56: 118 | I56: 125 | J56: 91 | K56: 254 | L56: 134.4 | M56: 124.7271764 | N56: 127 | O56: 0.02830910482 | P56: -0.009028916444 | Q56: 8 | R56: 5 | S56: 3
A57: hasta (prep) | B57: 168 | C57: 123 | D57: 101 | E57: 132 | F57: 128 | G57: 125 | H57: 101 | I57: 115 | J57: 144 | K57: 205 | L57: 134.2 | M57: 131.2008126 | N57: 126.5 | O57: 0.02953586498 | P57: 0.01824135723 | Q57: 8 | R57: 7 | S57: 1
A58: solo-sólo (aj|av) | B58: 87 | C58: 88 | D58: 88 | E58: 164 | F58: 133 | G58: 120 | H58: 153 | I58: 128 | J58: 162 | K58: 85 | L58: 120.8 | M58: 116.8744734 | N58: 124 | O58: -0.01307189542 | P58: -0.02958190816 | Q58: 6 | R58: 5 | S58: 1
A59: yo (pn) | B59: 474 | C59: 31 | D59: 7 | E59: 121 | F59: 920 | G59: 229 | H59: 121 | I59: 38 | J59: 40 | K59: 453 | L59: 243.4 | M59: 108.1278062 | N59: 121 | O59: 0.3358946213 | P59: -0.05617909954 | Q59: 8 | R59: 5 | S59: 3
A60: querer (v) | B60: 718 | C60: 59 | D60: 74 | E60: 130 | F60: 544 | G60: 210 | H60: 109 | I60: 105 | J60: 65 | K60: 415 | L60: 242.9 | M60: 164.3443194 | N60: 119.5 | O60: 0.3405077263 | P60: 0.1579891383 | Q60: 8 | R60: 7 | S60: 1
A61: hombre (n) | B61: 18 | C61: 78 | D61: 69 | E61: 143 | F61: 314 | G61: 168 | H61: 264 | I61: 94 | J61: 101 | K61: 131 | L61: 138 | M61: 109.1469393 | N61: 116 | O61: 0.08661417323 | P61: -0.03043816967 | Q61: 7 | R61: 6 | S61: 1
A62: español (aj|n) | B62: 24 | C62: 203 | D62: 123 | E62: 78 | F62: 30 | G62: 51 | H62: 174 | I62: 160 | J62: 108 | K62: 137 | L62: 108.8 | M62: 88.49550213 | N62: 115.5 | O62: -0.02987070887 | P62: -0.1323779083 | Q62: 6 | R62: 5 | S62: 1
A63: bien (av|n) | B63: 451 | C63: 62 | D63: 115 | E63: 100 | F63: 231 | G63: 73 | H63: 112 | I63: 83 | J63: 109 | K63: 422 | L63: 175.8 | M63: 136.9378792 | N63: 110.5 | O63: 0.228082431 | P63: 0.1068465317 | Q63: 8 | R63: 8 | S63: 0
A64: saber (v) | B64: 454 | C64: 67 | D64: 59 | E64: 123 | F64: 323 | G64: 133 | H64: 90 | I64: 97 | J64: 97 | K64: 386 | L64: 182.9 | M64: 140.9715654 | N64: 110 | O64: 0.2488904063 | P64: 0.1234066711 | Q64: 8 | R64: 8 | S64: 0
A65: poner (v) | B65: 145 | C65: 98 | D65: 82 | E65: 121 | F65: 159 | G65: 138 | H65: 80 | I65: 91 | J65: 72 | K65: 178 | L65: 116.4 | M65: 111.1822194 | N65: 109.5 | O65: 0.03054448871 | P65: 0.007622813311 | Q65: 6 | R65: 6 | S65: 0
A66: poco (aj|av|pn) | B66: 212 | C66: 63 | D66: 34 | E66: 86 | F66: 108 | G66: 183 | H66: 118 | I66: 84 | J66: 101 | K66: 200 | L66: 118.9 | M66: 104.4489621 | N66: 104.5 | O66: =(L66-N66)/(L66+N66) -> 0.06445837064 | P66: =(M66-N66)/(M66+N66) -> -0.0002442602677 | Q66: 8 | R66: 6 | S66: 2
A67: después (av) | B67: 119 | C67: 136 | D67: 59 | E67: 92 | F67: 45 | G67: 144 | H67: 70 | I67: 78 | J67: 116 | K67: 172 | L67: 103.1 | M67: 95.33403598 | N67: 104 | O67: -0.004345726702 | P67: -0.04347458262 | Q67: 6 | R67: 6 | S67: 0
A68: siempre (av) | B68: 84 | C68: 54 | D68: 58 | E68: 106 | F68: 171 | G68: 106 | H68: 106 | I68: 80 | J68: 95 | K68: 132 | L68: 99.2 | M68: 93.98103573 | N68: 100.5 | O68: -0.006509764647 | P68: -0.03351979408 | Q68: 6 | R68: 5 | S68: 1
A69: pasar (v) | B69: 384 | C69: 89 | D69: 43 | E69: 88 | F69: 237 | G69: 151 | H69: 90 | I69: 106 | J69: 87 | K69: 376 | L69: 165.1 | M69: 130.6066567 | N69: 98 | O69: 0.2550361079 | P69: 0.1426321402 | Q69: 8 | R69: 7 | S69: 1
A70: ni (conj|av) | B70: 100 | C70: 79 | D70: 70 | E70: 87 | F70: 211 | G70: 104 | H70: 159 | I70: 135 | J70: 95 | K70: 87 | L70: 112.7 | M70: 106.4764083 | N70: 97.5 | O70: 0.07231208373 | P70: 0.04400709068 | Q70: 8 | R70: 8 | S70: 0
A71: creer (v) | B71: 236 | C71: 48 | D71: 12 | E71: 68 | F71: 199 | G71: 128 | H71: 125 | I71: 46 | J71: 69 | K71: 257 | L71: 118.8 | M71: 86.70330459 | N71: 97 | O71: 0.1010194625 | P71: -0.05605068147 | Q71: 6 | R71: 6 | S71: 0
A72: pues (conj) | B72: 573 | C72: 32 | D72: 40 | E72: 114 | F72: 317 | G72: 55 | H72: 79 | I72: 69 | J72: 116 | K72: 177 | L72: 157.2 | M72: 105.0170666 | N72: 96.5 | O72: 0.2392589673 | P72: 0.04226474096 | Q72: 8 | R72: 6 | S72: 2
A73: vida (n) | B73: 92 | C73: 81 | D73: 62 | E73: 99 | F73: 166 | G73: 164 | H73: 252 | I73: 104 | J73: 62 | K73: 57 | L73: 113.9 | M73: 101.4367227 | N73: 95.5 | O73: 0.08787010506 | P73: 0.03014533097 | Q73: 8 | R73: 7 | S73: 1
A74: parecer (v) | B74: 151 | C74: 47 | D74: 19 | E74: 81 | F74: 145 | G74: 151 | H74: 86 | I74: 82 | J74: 105 | K74: 232 | L74: 109.9 | M74: 91.48813957 | N74: 95.5 | O74: 0.07010710808 | P74: -0.02145515988 | Q74: 7 | R74: 6 | S74: 1
A75: donde-dónde (conj|av) | B75: 76 | C75: 81 | D75: 62 | E75: 91 | F75: 119 | G75: 105 | H75: 99 | I75: 120 | J75: 90 | K75: 173 | L75: 101.6 | M75: 97.8266768 | N75: 95 | O75: 0.03357070193 | P75: 0.0146591584 | Q75: 7 | R75: 6 | S75: 1
A76: desde (prep) | B76: 82 | C76: 129 | D76: 81 | E76: 109 | F76: 74 | G76: 101 | H76: 105 | I76: 80 | J76: 116 | K76: 89 | L76: 96.6 | M76: 95.10416689 | N76: 95 | O76: 0.008350730689 | P76: 0.000547946357 | Q76: 6 | R76: 6 | S76: 0
A77: cosa (n) | B77: 209 | C77: 30 | D77: 49 | E77: 90 | F77: 197 | G77: 99 | H77: 112 | I77: 61 | J77: 70 | K77: 175 | L77: 109.2 | M77: 92.35260492 | N77: 94.5 | O77: 0.07216494845 | P77: -0.01149245463 | Q77: 7 | R77: 6 | S77: 1
A78: casa (n) | B78: 183 | C78: 90 | D78: 30 | E78: 79 | F78: 203 | G78: 171 | H78: 45 | I78: 98 | J78: 24 | K78: 298 | L78: 122.1 | M78: 91.85018151 | N78: 94 | O78: 0.1300323924 | P78: -0.01156748125 | Q78: 7 | R78: 6 | S78: 1
A79: así (av) | B79: 289 | C79: 71 | D79: 93 | E79: 94 | F79: 144 | G79: 83 | H79: 76 | I79: 93 | J79: 116 | K79: 121 | L79: 118 | M79: 107.8387258 | N79: 93.5 | O79: 0.1158392435 | P79: 0.07121692948 | Q79: 8 | R79: 7 | S79: 1
A80: tiempo (n) | B80: 214 | C80: 82 | D80: 89 | E80: 82 | F80: 89 | G80: 112 | H80: 135 | I80: 74 | J80: 94 | K80: 240 | L80: 121.1 | M80: 111.1461464 | N80: 91.5 | O80: 0.1392285983 | P80: 0.09694803859 | Q80: 8 | R80: 7 | S80: 1
A81: parte (n) | B81: 91 | C81: 106 | D81: 121 | E81: 83 | F81: 39 | G81: 39 | H81: 111 | I81: 92 | J81: 192 | K81: 80 | L81: 95.4 | M81: 86.37423136 | N81: 91.5 | O81: 0.02086677368 | P81: -0.02881681402 | Q81: 7 | R81: 5 | S81: 2
A82: llamar (v) | B82: 65 | C82: 24 | D82: 35 | E82: 109 | F82: 134 | G82: 113 | H82: 83 | I82: 73 | J82: 121 | K82: 100 | L82: 85.7 | M82: 76.20770281 | N82: 91.5 | O82: -0.03273137698 | P82: -0.09118422669 | Q82: 6 | R82: 5 | S82: 1
A83: tres (nu|m) | B83: 44 | C83: 102 | D83: 52 | E83: 138 | F83: 113 | G83: 128 | H83: 65 | I83: 94 | J83: 88 | K83: 76 | L83: 90 | M83: 84.71418102 | N83: 91 | O83: -0.005524861878 | P83: -0.03577297488 | Q83: 6 | R83: 5 | S83: 1
A84: nuevo (aj|n) | B84: 51 | C84: 160 | D84: 122 | E84: 75 | F84: 44 | G84: 88 | H84: 113 | I84: 101 | J84: 84 | K84: 89 | L84: 92.7 | M84: 86.93838557 | N84: 88.5 | O84: 0.02317880795 | P84: -0.008901212972 | Q84: 7 | R84: 5 | S84: 2
A85: ahora (av) | B85: 236 | C85: 50 | D85: 35 | E85: 72 | F85: 220 | G85: 86 | H85: 108 | I85: 83 | J85: 46 | K85: 284 | L85: 122 | M85: 95.91315344 | N85: 84.5 | O85: 0.181598063 | P85: 0.06326120473 | Q85: 8 | R85: 7 | S85: 1
A86: bueno (aj|n) | B86: 312 | C86: 85 | D86: 44 | E86: 107 | F86: 288 | G86: 82 | H86: 83 | I86: 33 | J86: 56 | K86: 416 | L86: 150.6 | M86: 106.524369 | N86: 84 | O86: 0.283887468 | P86: 0.1182230343 | Q86: 8 | R86: 7 | S86: 1
A87: dejar (v) | B87: 145 | C87: 40 | D87: 36 | E87: 91 | F87: 209 | G87: 106 | H87: 76 | I87: 64 | J87: 64 | K87: 141 | L87: 97.2 | M87: 84.46205992 | N87: 83.5 | O87: 0.07581627006 | P87: 0.005727840679 | Q87: 7 | R87: 6 | S87: 1
A88: quedar (v) | B88: 176 | C88: 78 | D88: 87 | E88: 71 | F88: 124 | G88: 94 | H88: 66 | I88: 64 | J88: 53 | K88: 151 | L88: 96.4 | M88: 89.61714697 | N88: 82.5 | O88: 0.07769703745 | P88: 0.0413505981 | Q88: 8 | R88: 7 | S88: 1
A89: seguir (v) | B89: 240 | C89: 86 | D89: 53 | E89: 95 | F89: 66 | G89: 95 | H89: 48 | I89: 62 | J89: 105 | K89: 78 | L89: 92.8 | M89: 83.19349196 | N89: 82 | O89: 0.06178489703 | P89: 0.007224812216 | Q89: 7 | R89: 6 | S89: 1
A90: hoy (av) | B90: 145 | C90: 141 | D90: 41 | E90: 25 | F90: 92 | G90: 21 | H90: 73 | I90: 90 | J90: 38 | K90: 110 | L90: 77.6 | M90: 63.76846681 | N90: 81.5 | O90: -0.02451288498 | P90: -0.1220604414 | Q90: 6 | R90: 5 | S90: 1
A91: encontrar (v) | B91: 177 | C91: 79 | D91: 33 | E91: 79 | F91: 57 | G91: 101 | H91: 81 | I91: 81 | J91: 88 | K91: 96 | L91: 87.2 | M91: 80.64290354 | N91: 81 | O91: 0.0368608799 | P91: -0.002209168795 | Q91: 7 | R91: 5 | S91: 2
A92: venir (v) | B92: 284 | C92: 51 | D92: 64 | E92: 97 | F92: 336 | G92: 105 | H92: 57 | I92: 61 | J92: 38 | K92: 240 | L92: 133.3 | M92: 100.0591555 | N92: 80.5 | O92: 0.2469597755 | P92: 0.1083254705 | Q92: 8 | R92: 7 | S92: 1
A93: llevar (v) | B93: 122 | C93: 59 | D93: 72 | E93: 84 | F93: 163 | G93: 119 | H93: 74 | I93: 76 | J93: 51 | K93: 169 | L93: 98.9 | M93: 91.45470187 | N93: 80 | O93: 0.1056456121 | P93: 0.06680891072 | Q93: 7 | R93: 7 | S93: 0
A94: quien-quién (pn) | B94: 66 | C94: 66 | D94: 68 | E94: 68 | F94: 228 | G94: 88 | H94: 87 | I94: 88 | J94: 60 | K94: 113 | L94: 93.2 | M94: 85.54122857 | N94: 77.5 | O94: 0.09197422378 | P94: 0.04932021574 | Q94: 9 | R94: 6 | S94: 3
A95: salir (v) | B95: 120 | C95: 78 | D95: 19 | E95: 75 | F95: 137 | G95: 132 | H95: 46 | I95: 45 | J95: 35 | K95: 199 | L95: 88.6 | M95: 71.47063945 | N95: 76.5 | O95: 0.07328891581 | P95: -0.03398890867 | Q95: 7 | R95: 5 | S95: 2
A96: pensar (v) | B96: 132 | C96: 25 | D96: 13 | E96: 69 | F96: 159 | G96: 93 | H96: 81 | I96: 38 | J96: 31 | K96: 148 | L96: 78.9 | M96: 60.13230451 | N96: 75 | O96: 0.0253411306 | P96: -0.1100232513 | Q96: 6 | R96: 5 | S96: 1
A97: hijo (n) | B97: 160 | C97: 43 | D97: 99 | E97: 104 | F97: 256 | G97: 94 | H97: 40 | I97: 32 | J97: 26 | K97: 54 | L97: 90.8 | M97: 70.57001128 | N97: 74 | O97: 0.1019417476 | P97: -0.02372545101 | Q97: 6 | R97: 6 | S97: 0
A98: nada (av|n|pn) | B98: 196 | C98: 39 | D98: 14 | E98: 70 | F98: 284 | G98: 97 | H98: 77 | I98: 49 | J98: 35 | K98: 190 | L98: 105.1 | M98: 74.37286776 | N98: 73.5 | O98: 0.1769316909 | P98: 0.005902825696 | Q98: 8 | R98: 6 | S98: 2
A99: hablar (v) | B99: 99 | C99: 33 | D99: 16 | E99: 63 | F99: 208 | G99: 131 | H99: 79 | I99: 51 | J99: 68 | K99: 242 | L99: 99 | M99: 75.41306365 | N99: 73.5 | O99: 0.147826087 | P99: 0.01284684905 | Q99: 7 | R99: 6 | S99: 1
A100: menos (aj|av|n) | B100: 118 | C100: 43 | D100: 30 | E100: 137 | F100: 64 | G100: 40 | H100: 80 | I100: 63 | J100: 85 | K100: 122 | L100: 78.2 | M100: 69.91400066 | N100: 72 | O100: 0.04127829561 | P100: -0.01469903837 | Q100: 6 | R100: 6 | S100: 0
A101: pueblo (n) | B101: 57 | C101: 75 | D101: 84 | E101: 78 | F101: 33 | G101: 68 | H101: 127 | I101: 110 | J101: 47 | K101: 27 | L101: 70.6 | M101: 63.78214035 | N101: 71.5 | O101: -0.00633356791 | P101: -0.05705010011 | Q101: 6 | R101: 5 | S101: 1
A102: antes (av) | B102: 113 | C102: 35 | D102: 51 | E102: 70 | F102: 84 | G102: 62 | H102: 71 | I102: 46 | J102: 73 | K102: 133 | L102: 73.8 | M102: 68.67009309 | N102: 70.5 | O102: 0.02286902287 | P102: -0.01314870799 | Q102: 8 | R102: 5 | S102: 3
A103: medio (aj|n) | B103: 45 | C103: 102 | D103: 112 | E103: 72 | F103: 44 | G103: 66 | H103: 77 | I103: 54 | J103: 81 | K103: 25 | L103: 67.8 | M103: 62.46934221 | N103: 69 | O103: -0.008771929825 | P103: -0.04967437794 | Q103: 6 | R103: 5 | S103: 1
A104: aquí (av) | B104: 224 | C104: 38 | D104: 19 | E104: 33 | F104: 330 | G104: 82 | H104: 86 | I104: 50 | J104: 54 | K104: 364 | L104: 128 | M104: 81.03246582 | N104: 68 | O104: 0.306122449 | P104: 0.08744715958 | Q104: 8 | R104: 6 | S104: 2
A105: tal (aj|av|pn) | B105: 91 | C105: 38 | D105: 64 | E105: 57 | F105: 27 | G105: 60 | H105: 94 | I105: 71 | J105: 88 | K105: 105 | L105: 69.5 | M105: 64.57215799 | N105: 67.5 | O105: 0.01459854015 | P105: -0.02216850287 | Q105: 6 | R105: 6 | S105: 0
A106: hora (n) | B106: 51 | C106: 101 | D106: 46 | E106: 67 | F106: 80 | G106: 95 | H106: 52 | I106: 67 | J106: 17 | K106: 158 | L106: 73.4 | M106: 63.86636418 | N106: 67 | O106: 0.04558404558 | P106: -0.02394531121 | Q106: 7 | R106: 5 | S106: 2
A107: conocer (v) | B107: 98 | C107: 48 | D107: 40 | E107: 60 | F107: 108 | G107: 67 | H107: 66 | I107: 56 | J107: 133 | K107: 134 | L107: 81 | M107: 74.65975346 | N107: 66.5 | O107: 0.09830508475 | P107: 0.05780509856 | Q107: 7 | R107: 7 | S107: 0
A108: padre (n) | B108: 170 | C108: 45 | D108: 43 | E108: 87 | F108: 104 | G108: 93 | H108: 30 | I108: 21 | J108: 23 | K108: 87 | L108: 70.3 | M108: 56.7904496 | N108: 66 | O108: 0.03154805576 | P108: -0.07500217183 | Q108: 6 | R108: 6 | S108: 0
A109: mundo (n) | B109: 24 | C109: 90 | D109: 43 | E109: 63 | F109: 88 | G109: 86 | H109: 138 | I109: 65 | J109: 66 | K109: 47 | L109: 71 | M109: 64.42698552 | N109: 65.5 | O109: 0.04029304029 | P109: -0.008258595941 | Q109: 7 | R109: 5 | S109: 2
A110: mujer (n) | B110: 46 | C110: 45 | D110: 10 | E110: 79 | F110: 237 | G110: 172 | H110: 73 | I110: 72 | J110: 30 | K110: 57 | L110: 82.1 | M110: 59.9449455 | N110: 64.5 | O110: 0.1200545703 | P110: -0.03660296917 | Q110: 9 | R110: 6 | S110: 3
A111: mañana (av|n) | B111: 81 | C111: 151 | D111: 21 | E111: 29 | F111: 80 | G111: 62 | H111: 20 | I111: 67 | J111: 1 | K111: 163 | L111: 67.5 | M111: 38.96595582 | N111: 64.5 | O111: 0.02272727273 | P111: -0.2467869163 | Q111: 7 | R111: 5 | S111: 2
A112: ciudad (n) | B112: 13 | C112: 88 | D112: 25 | E112: 48 | F112: 12 | G112: 71 | H112: 58 | I112: 101 | J112: 76 | K112: 102 | L112: 59.4 | M112: 47.04581535 | N112: 64.5 | O112: -0.0411622276 | P112: -0.1564754769 | Q112: 6 | R112: 4 | S112: 2
A113: cuanto-cuánto (aj|pn) | B113: 126 | C113: 19 | D113: 89 | E113: 49 | F113: 68 | G113: 48 | H113: 61 | I113: 64 | J113: 54 | K113: 132 | L113: 71 | M113: 62.76156844 | N113: 62.5 | O113: 0.06367041199 | P113: 0.00208817793 | Q113: 8 | R113: 6 | S113: 2
A114: vivir (v) | B114: 55 | C114: 26 | D114: 32 | E114: 68 | F114: 115 | G114: 98 | H114: 126 | I114: 57 | J114: 30 | K114: 95 | L114: 70.2 | M114: 61.03808653 | N114: 62.5 | O114: 0.0580256217 | P114: -0.01183370663 | Q114: 7 | R114: 6 | S114: 1
A115: sentir (v) | B115: 61 | C115: 18 | D115: 16 | E115: 63 | F115: 70 | G115: 114 | H115: 63 | I115: 40 | J115: 26 | K115: 76 | L115: 54.7 | M115: 46.16632711 | N115: 62 | O115: -0.06255355613 | P115: -0.1463826434 | Q115: 5 | R115: 5 | S115: 0
A116: sino (conj) | B116: 58 | C116: 35 | D116: 65 | E116: 106 | F116: 50 | G116: 51 | H116: 154 | I116: 75 | J116: 101 | K116: 40 | L116: 73.5 | M116: 66.39293672 | N116: 61.5 | O116: 0.08888888889 | P116: 0.03825806839 | Q116: 7 | R116: 7 | S116: 0
A117: obra (n) | B117: 20 | C117: 108 | D117: 247 | E117: 33 | F117: 24 | G117: 28 | H117: 134 | I117: 88 | J117: 133 | K117: 28 | L117: 84.3 | M117: 59.09668309 | N117: 60.5 | O117: 0.1643646409 | P117: -0.01173374436 | Q117: 6 | R117: 6 | S117: 0
A118: cada (aj) | B118: 59 | C118: 42 | D118: 108 | E118: 94 | F118: 30 | G118: 62 | H118: 82 | I118: 57 | J118: 113 | K118: 53 | L118: 70 | M118: 64.82177031 | N118: 60.5 | O118: 0.07279693487 | P118: 0.03448539151 | Q118: 7 | R118: 7 | S118: 0
A119: cual-cuál (pn) | B119: 50 | C119: 47 | D119: 71 | E119: 68 | F119: 33 | G119: 36 | H119: 112 | I119: 72 | J119: 159 | K119: 44 | L119: 69.2 | M119: 61.39106796 | N119: 59 | O119: 0.07956318253 | P119: 0.01986084183 | Q119: 7 | R119: 6 | S119: 1
A120: volver (v) | B120: 100 | C120: 41 | D120: 22 | E120: 73 | F120: 144 | G120: 126 | H120: 44 | I120: 40 | J120: 22 | K120: 127 | L120: 73.9 | M120: 59.82740288 | N120: 58.5 | O120: 0.1163141994 | P120: 0.01121805135 | Q120: 7 | R120: 6 | S120: 1
A121: amigo (n) | B121: 218 | C121: 6 | D121: 1 | E121: 51 | F121: 70 | G121: 66 | H121: 66 | I121: 32 | J121: 16 | K121: 175 | L121: 70.1 | M121: 33.57895559 | N121: 58.5 | O121: 0.09020217729 | P121: -0.2706486434 | Q121: 9 | R121: 5 | S121: 4
A122: cuatro (nu|m) | B122: 60 | C122: 67 | D122: 85 | E122: 85 | F122: 36 | G122: 42 | H122: 32 | I122: 51 | J122: 60 | K122: 57 | L122: 57.5 | M122: 54.81964207 | N122: 58.5 | O122: -0.008620689655 | P122: -0.0324776699 | Q122: 6 | R122: 5 | S122: 1
A123: general (aj|n) | B123: 14 | C123: 167 | D123: 225 | E123: 56 | F123: 14 | G123: 11 | H123: 60 | I123: 88 | J123: 84 | K123: 12 | L123: 73.1 | M123: 43.47934798 | N123: 58 | O123: 0.1151792525 | P123: -0.1430897252 | Q123: 7 | R123: 5 | S123: 2
A124: último (aj|n) | B124: 41 | C124: 95 | D124: 58 | E124: 52 | F124: 31 | G124: 58 | H124: 59 | I124: 79 | J124: 82 | K124: 37 | L124: 59.2 | M124: 55.91422588 | N124: 58 | O124: 0.01023890785 | P124: -0.01831004073 | Q124: 8 | R124: 5 | S124: 3
A125: momento (n) | B125: 74 | C125: 59 | D125: 33 | E125: 64 | F125: 47 | G125: 85 | H125: 63 | I125: 57 | J125: 37 | K125: 52 | L125: 57.1 | M125: 55.02644933 | N125: 58 | O125: -0.007819287576 | P125: -0.02630844981 | Q125: 6 | R125: 5 | S125: 1
A126: escribir (v) | B126: 351 | C126: 36 | D126: 12 | E126: 78 | F126: 34 | G126: 41 | H126: 112 | I126: 26 | J126: 73 | K126: 74 | L126: 83.7 | M126: 55.13018109 | N126: 57 | O126: 0.1897654584 | P126: -0.01667542934 | Q126: 9 | R126: 6 | S126: 3
A127: tarde (av|n) | B127: 76 | C127: 86 | D127: 16 | E127: 35 | F127: 58 | G127: 84 | H127: 28 | I127: 56 | J127: 9 | K127: 185 | L127: 63.3 | M127: 46.42979484 | N127: 57 | O127: 0.05236907731 | P127: -0.1021969074 | Q127: 7 | R127: 5 | S127: 2
A128: cuyo (pn) | B128: 9 | C128: 77 | D128: 99 | E128: 52 | F128: 4 | G128: 30 | H128: 57 | I128: 83 | J128: 107 | K128: 5 | L128: 52.3 | M128: 31.87762628 | N128: 54.5 | O128: -0.02059925094 | P128: -0.2619008497 | Q128: 6 | R128: 5 | S128: 1
A129: aun-aún (av) | B129: 55 | C129: 44 | D129: 40 | E129: 66 | F129: 52 | G129: 51 | H129: 72 | I129: 76 | J129: 83 | K129: 46 | L129: 58.5 | M129: 56.8718666 | N129: 53.5 | O129: 0.04464285714 | P129: 0.03055005505 | Q129: 7 | R129: 7 | S129: 0
A130: casi (av) | B130: 49 | C130: 23 | D130: 30 | E130: 75 | F130: 24 | G130: 66 | H130: 58 | I130: 44 | J130: 78 | K130: 63 | L130: 51 | M130: 46.79697097 | N130: 53.5 | O130: =(L130-N130)/(L130+N130) -> -0.02392344498 | P130: =(M130-N130)/(M130+N130) -> -0.06683181922 | Q130: 6 | R130: 5 | S130: 1
A131: ante (prep) | B131: 11 | C131: 100 | D131: 118 | E131: 61 | F131: 15 | G131: 59 | H131: 59 | I131: 47 | J131: 31 | K131: 9 | L131: 51 | M131: 37.44640992 | N131: 53 | O131: -0.01923076923 | P131: -0.1719647037 | Q131: 6 | R131: 5 | S131: 1
A132: tomar (v) | B132: 30 | C132: 61 | D132: 31 | E132: 51 | F132: 72 | G132: 60 | H132: 45 | I132: 54 | J132: 43 | K132: 184 | L132: 63.1 | M132: 54.71116037 | N132: 52.5 | O132: 0.09169550173 | P132: 0.02062434887 | Q132: 9 | R132: 7 | S132: 2
A133: mejor (aj|av|n) | B133: 119 | C133: 71 | D133: 47 | E133: 24 | F133: 77 | G133: 51 | H133: 53 | I133: 44 | J133: 48 | K133: 162 | L133: 69.6 | M133: 60.69683015 | N133: 52 | O133: 0.1447368421 | P133: 0.07717013987 | Q133: 7 | R133: 7 | S133: 0
A134: palabra (n) | B134: 15 | C134: 54 | D134: 38 | E134: 85 | F134: 55 | G134: 49 | H134: 75 | I134: 59 | J134: 50 | K134: 23 | L134: 50.3 | M134: 45.23616116 | N134: 52 | O134: -0.01661779081 | P134: -0.06956094072 | Q134: 6 | R134: 4 | S134: 2
A135: trabajo (n) | B135: 53 | C135: 52 | D135: 162 | E135: 32 | F135: 31 | G135: 25 | H135: 51 | I135: 67 | J135: 69 | K135: 48 | L135: 59 | M135: 51.26230397 | N135: 51.5 | O135: 0.06787330317 | P135: -0.002313066353 | Q135: 8 | R135: 6 | S135: 2
A136: nosotros (pn) | B136: 136 | C136: 97 | D136: 14 | E136: 47 | F136: 81 | G136: 22 | H136: 48 | I136: 52 | J136: 35 | K136: 80 | L136: 61.2 | M136: 50.51085092 | N136: 50 | O136: 0.1007194245 | P136: 0.005082544983 | Q136: 7 | R136: 6 | S136: 1
A137: fin (n) | B137: 78 | C137: 54 | D137: 83 | E137: 46 | F137: 43 | G137: 43 | H137: 46 | I137: 49 | J137: 51 | K137: 57 | L137: 55 | M137: 53.57547302 | N137: 50 | O137: 0.04761904762 | P137: 0.03452046044 | Q137: 8 | R137: 7 | S137: 1
A138: usted (pn) | B138: 363 | C138: 21 | D138: 3 | E138: 64 | F138: 1267 | G138: 237 | H138: 35 | I138: 33 | J138: 2 | K138: 775 | L138: 280 | M138: 61.60083218 | N138: 49.5 | O138: 0.6995447648 | P138: 0.1089175656 | Q138: 8 | R138: 6 | S138: 2
A139: niño (n) | B139: 117 | C139: 46 | D139: 37 | E139: 97 | F139: 91 | G139: 95 | H139: 28 | I139: 24 | J139: 3 | K139: 53 | L139: 59.1 | M139: 42.18371796 | N139: 49.5 | O139: 0.08839779006 | P139: -0.07979914209 | Q139: 7 | R139: 5 | S139: 2
A140: noche (n) | B140: 56 | C140: 68 | D140: 6 | E140: 43 | F140: 102 | G140: 121 | H140: 30 | I140: 16 | J140: 1 | K140: 124 | L140: 56.7 | M140: 30.60810983 | N140: 49.5 | O140: 0.06779661017 | P140: -0.235829933 | Q140: 7 | R140: 5 | S140: 2
A141: bajo (aj|av) | B141: 2 | C141: 67 | D141: 52 | E141: 47 | F141: 21 | G141: 65 | H141: 53 | I141: 53 | J141: 46 | K141: 23 | L141: 42.9 | M141: 32.53401075 | N141: 49.5 | O141: -0.07142857143 | P141: -0.2068165276 | Q141: 4 | R141: 4 | S141: 0
A142: estado (n) | B142: 28 | C142: 147 | D142: 150 | E142: 44 | F142: 7 | G142: 21 | H142: 84 | I142: 110 | J142: 54 | K142: 39 | L142: 68.4 | M142: 48.87049044 | N142: 49 | O142: 0.1652470187 | P142: -0.001323274829 | Q142: 7 | R142: 6 | S142: 1
A143: mayor (aj|n) | B143: 49 | C143: 87 | D143: 59 | E143: 49 | F143: 21 | G143: 40 | H143: 49 | I143: 67 | J143: 78 | K143: 35 | L143: 53.4 | M143: 49.74479254 | N143: 49 | O143: 0.04296875 | P143: 0.00754260072 | Q143: 7 | R143: 7 | S143: 0
A144: luego (av) | B144: 59 | C144: 35 | D144: 8 | E144: 74 | F144: 69 | G144: 44 | H144: 36 | I144: 40 | J144: 53 | K144: 66 | L144: 48.4 | M144: 42.38113495 | N144: 48.5 | O144: -0.001031991744 | P144: -0.06732822008 | Q144: 6 | R144: 5 | S144: 1
A145: libro (n) | B145: 47 | C145: 14 | D145: 30 | E145: 56 | F145: 17 | G145: 47 | H145: 114 | I145: 27 | J145: 97 | K145: 48 | L145: 49.7 | M145: 40.76020449 | N145: 47 | O145: 0.02792140641 | P145: -0.0711005124 | Q145: 8 | R145: 5 | S145: 3
A146: esperar (v) | B146: 175 | C146: 47 | D146: 19 | E146: 22 | F146: 89 | G146: 46 | H146: 20 | I146: 60 | J146: 7 | K146: 179 | L146: 66.4 | M146: 42.91007112 | N146: 46.5 | O146: 0.1762621789 | P146: -0.04015128085 | Q146: 8 | R146: 5 | S146: 3
A147: caso (n) | B147: 39 | C147: 34 | D147: 81 | E147: 112 | F147: 64 | G147: 35 | H147: 45 | I147: 48 | J147: 96 | K147: 41 | L147: 59.5 | M147: 54.45030822 | N147: 46.5 | O147: 0.1226415094 | P147: 0.07875467013 | Q147: 7 | R147: 7 | S147: 0
A148: ninguno (aj|pn) | B148: 55 | C148: 42 | D148: 24 | E148: 60 | F148: 71 | G148: 44 | H148: 41 | I148: 49 | J148: 50 | K148: 37 | L148: 47.3 | M148: 45.57049187 | N148: 46.5 | O148: 0.008528784648 | P148: -0.01009561379 | Q148: 6 | R148: 6 | S148: 0
A149: durante (av) | B149: 10 | C149: 89 | D149: 60 | E149: 54 | F149: 8 | G149: 31 | H149: 38 | I149: 59 | J149: 57 | K149: 35 | L149: 44.1 | M149: 35.52192726 | N149: 46 | O149: -0.02108768036 | P149: -0.128530729 | Q149: 6 | R149: 5 | S149: 1
A150: eso (pn) | B150: 2 | C150: 2 | D150: 0 | E150: 0 | F150: 421 | G150: 106 | H150: 97 | I150: 48 | J150: 43 | K150: 365 | L150: 108.4 | M150: 12.92832391 | N150: 45.5 | O150: 0.4087069526 | P150: -0.5574638106 | Q150: 9 | R150: 5 | S150: 4
A151: cinco (nu|m) | B151: 28 | C151: 47 | D151: 39 | E151: 71 | F151: 62 | G151: 33 | H151: 25 | I151: 79 | J151: 75 | K151: 44 | L151: 50.3 | M151: 46.62904828 | N151: 45.5 | O151: 0.05010438413 | P151: 0.01225507377 | Q151: 7 | R151: 6 | S151: 1
A152: mil (nu|m) | B152: 34 | C152: 50 | D152: 63 | E152: 23 | F152: 40 | G152: 15 | H152: 178 | I152: 135 | J152: 109 | K152: 38 | L152: 68.5 | M152: 52.09106567 | N152: 45 | O152: 0.2070484581 | P152: 0.0730352028 | Q152: 8 | R152: 7 | S152: 1
A153: algo (av|pn) | B153: 132 | C153: 28 | D153: 6 | E153: 28 | F153: 92 | G153: 60 | H153: 57 | I153: 33 | J153: 32 | K153: 150 | L153: 61.8 | M153: 44.57188851 | N153: 45 | O153: 0.1573033708 | P153: -0.004779529609 | Q153: 8 | R153: 6 | S153: 2
A154: lugar (n) | B154: 20 | C154: 72 | D154: 76 | E154: 49 | F154: 15 | G154: 19 | H154: 29 | I154: 56 | J154: 75 | K154: 41 | L154: 45.2 | M154: 38.74938525 | N154: 45 | O154: 0.0022172949 | P154: -0.07463475378 | Q154: 6 | R154: 5 | S154: 1
A155: cierto (aj|n) | B155: 18 | C155: 28 | D155: 24 | E155: 57 | F155: 44 | G155: 44 | H155: 76 | I155: 56 | J155: 77 | K155: 36 | L155: 46 | M155: 41.66023191 | N155: 44 | O155: 0.02222222222 | P155: -0.02731451968 | Q155: 7 | R155: 5 | S155: 2
A156: acabar (v) | B156: 40 | C156: 20 | D156: 12 | E156: 38 | F156: 92 | G156: 49 | H156: 64 | I156: 20 | J156: 48 | K156: 68 | L156: 45.1 | M156: 38.34421805 | N156: 44 | O156: 0.01234567901 | P156: -0.06868462757 | Q156: 6 | R156: 5 | S156: 1
A157: según (av|p) | B157: 65 | C157: 76 | D157: 46 | E157: 38 | F157: 17 | G157: 24 | H157: 41 | I157: 49 | J157: 106 | K157: 23 | L157: 48.5 | M157: 42.04305035 | N157: 43.5 | O157: 0.05434782609 | P157: -0.01703177111 | Q157: 7 | R157: 6 | S157: 1
A158: mano (n) | B158: 33 | C158: 53 | D158: 27 | E158: 71 | F158: 56 | G158: 135 | H158: 58 | I158: 29 | J158: 19 | K158: 32 | L158: 51.3 | M158: 43.78913122 | N158: 43 | O158: 0.08801696713 | P158: 0.009092512057 | Q158: 6 | R158: 6 | S158: 0
A159: entonces (av) | B159: 41 | C159: 11 | D159: 22 | E159: 75 | F159: 85 | G159: 52 | H159: 39 | I159: 41 | J159: 45 | K159: 97 | L159: 50.8 | M159: 43.2605012 | N159: 43 | O159: 0.08315565032 | P159: 0.003019936101 | Q159: 7 | R159: 6 | S159: 1
A160: modo (n) | B160: 23 | C160: 28 | D160: 45 | E160: 57 | F160: 30 | G160: 41 | H160: 64 | I160: 35 | J160: 86 | K160: 62 | L160: 47.1 | M160: 43.50124141 | N160: 43 | O160: 0.04550499445 | P160: 0.005794615207 | Q160: 7 | R160: 6 | S160: 1
A161: mes (n) | B161: 96 | C161: 70 | D161: 61 | E161: 26 | F161: 40 | G161: 34 | H161: 24 | I161: 52 | J161: 14 | K161: 46 | L161: 46.3 | M161: 40.42324573 | N161: 43 | O161: 0.03695408735 | P161: -0.03088772492 | Q161: 7 | R161: 6 | S161: 1
A162: segundo (aj|n) | B162: 36 | C162: 81 | D162: 81 | E162: 50 | F162: 16 | G162: 27 | H162: 27 | I162: 58 | J162: 58 | K162: 24 | L162: 45.8 | M162: 40.23608605 | N162: 43 | O162: 0.03153153153 | P162: -0.03320571739 | Q162: 6 | R162: 6 | S162: 0
A163: pedir (v) | B163: 97 | C163: 41 | D163: 23 | E163: 45 | F163: 62 | G163: 47 | H163: 24 | I163: 26 | J163: 3 | K163: 45 | L163: 41.3 | M163: 31.65558798 | N163: 43 | O163: -0.02016607355 | P163: -0.1519566362 | Q163: 6 | R163: 5 | S163: 1
A164: recibir (v) | B164: 376 | C164: 79 | D164: 53 | E164: 41 | F164: 31 | G164: 32 | H164: 32 | I164: 60 | J164: 21 | K164: 44 | L164: 76.9 | M164: 50.76167608 | N164: 42.5 | O164: 0.2881072027 | P164: 0.08858597044 | Q164: 9 | R164: 7 | S164: 2
A165: calle (n) | B165: 19 | C165: 55 | D165: 22 | E165: 39 | F165: 46 | G165: 83 | H165: 34 | I165: 70 | J165: 2 | K165: 83 | L165: 45.3 | M165: 32.5921083 | N165: 42.5 | O165: 0.03189066059 | P165: -0.1319431819 | Q165: 6 | R165: 4 | S165: 2
A166: servir (v) | B166: 42 | C166: 33 | D166: 41 | E166: 60 | F166: 43 | G166: 26 | H166: 36 | I166: 48 | J166: 60 | K166: 53 | L166: 44.2 | M166: 42.86581644 | N166: 42.5 | O166: 0.01960784314 | P166: 0.00428528018 | Q166: 7 | R166: 6 | S166: 1
A167: perder (v) | B167: 59 | C167: 14 | D167: 16 | E167: 36 | F167: 67 | G167: 68 | H167: 48 | I167: 34 | J167: 22 | K167: 60 | L167: 42.4 | M167: 36.89164605 | N167: 42 | O167: 0.004739336493 | P167: -0.06475151946 | Q167: 6 | R167: 6 | S167: 0
A168: aunque (conj) | B168: 155 | C168: 40 | D168: 26 | E168: 38 | F168: 43 | G168: 29 | H168: 59 | I168: 37 | J168: 63 | K168: 53 | L168: 54.3 | M168: 47.2681412 | N168: 41.5 | O168: 0.133611691 | P168: 0.06497985794 | Q168: 8 | R168: 7 | S168: 1
A169: nombre (n) | B169: 41 | C169: 42 | D169: 30 | E169: 62 | F169: 38 | G169: 37 | H169: 44 | I169: 44 | J169: 81 | K169: 26 | L169: 44.5 | M169: 42.30478704 | N169: 41.5 | O169: 0.03488372093 | P169: 0.009603115396 | Q169: 9 | R169: 7 | S169: 2
A170: tierra (n) | B170: 27 | C170: 40 | D170: 36 | E170: 49 | F170: 53 | G170: 67 | H170: 56 | I170: 26 | J170: 42 | K170: 15 | L170: 41.1 | M170: 37.95574265 | N170: 41 | O170: 0.001218026797 | P170: -0.03855650332 | Q170: 6 | R170: 5 | S170: 1
A171: número (n) | B171: 24 | C171: 104 | D171: 154 | E171: 97 | F171: 6 | G171: 26 | H171: 16 | I171: 48 | J171: 64 | K171: 33 | L171: 57.2 | M171: 39.57962515 | N171: 40.5 | O171: 0.1709314227 | P171: -0.01149324617 | Q171: 7 | R171: 6 | S171: 1
A172: clase (n) | B172: 34 | C172: 41 | D172: 101 | E172: 36 | F172: 10 | G172: 12 | H172: 40 | I172: 48 | J172: 42 | K172: 70 | L172: 43.4 | M172: 35.77434125 | N172: 40.5 | O172: 0.03456495828 | P172: -0.0619560743 | Q172: 8 | R172: 4 | S172: 4
A173: vario (aj) | B173: 22 | C173: 56 | D173: 18 | E173: 65 | F173: 9 | G173: 33 | H173: 36 | I173: 52 | J173: 45 | K173: 57 | L173: 39.3 | M173: 33.98557509 | N173: 40.5 | O173: -0.01503759398 | P173: -0.08745887915 | Q173: 6 | R173: 5 | S173: 1
A174: contra (prep) | B174: 4 | C174: 87 | D174: 72 | E174: 228 | F174: 19 | G174: 27 | H174: 53 | I174: 64 | J174: 19 | K174: 11 | L174: 58.4 | M174: 34.02174681 | N174: 40 | O174: 0.1869918699 | P174: -0.08076347086 | Q174: 7 | R174: 6 | S174: 1
A175: entrar (v) | B175: 21 | C175: 39 | D175: 12 | E175: 63 | F175: 93 | G175: 76 | H175: 41 | I175: 31 | J175: 34 | K175: 87 | L175: 49.7 | M175: 41.84317164 | N175: 40 | O175: 0.1081382386 | P175: 0.02252077478 | Q175: 7 | R175: 7 | S175: 0
A176: razón (n) | B176: 11 | C176: 25 | D176: 43 | E176: 39 | F176: 47 | G176: 20 | H176: 40 | I176: 40 | J176: 51 | K176: 47 | L176: 36.3 | M176: 33.27194295 | N176: 40 | O176: -0.04849279161 | P176: -0.09182310146 | Q176: 4 | R176: 4 | S176: 0
A177: verdad (n) | B177: 66 | C177: 26 | D177: 38 | E177: 31 | F177: 174 | G177: 41 | H177: 58 | I177: 24 | J177: 29 | K177: 127 | L177: 61.4 | M177: 48.62769267 | N177: 39.5 | O177: 0.2170465808 | P177: 0.1035734898 | Q177: 8 | R177: 7 | S177: 1
A178: país (n) | B178: 1 | C178: 82 | D178: 31 | E178: 29 | F178: 7 | G178: 25 | H178: 76 | I178: 48 | J178: 65 | K178: 65 | L178: 42.9 | M178: 26.90601089 | N178: 39.5 | O178: 0.04126213592 | P178: -0.1896513425 | Q178: 6 | R178: 4 | S178: 2
A179: propio (aj) | B179: 10 | C179: 34 | D179: 83 | E179: 48 | F179: 18 | G179: 39 | H179: 77 | I179: 40 | J179: 53 | K179: 7 | L179: 40.9 | M179: 31.88643735 | N179: 39.5 | O179: 0.01741293532 | P179: -0.1066527892 | Q179: 7 | R179: 4 | S179: 3
A180: orden (n) | B180: 7 | C180: 62 | D180: 214 | E180: 48 | F180: 11 | G180: 15 | H180: 33 | I180: 73 | J180: 45 | K180: 10 | L180: 51.8 | M180: 30.91489671 | N180: 39 | O180: 0.140969163 | P180: -0.1156420687 | Q180: 8 | R180: 5 | S180: 3
A181: contar (v) | B181: 113 | C181: 23 | D181: 32 | E181: 39 | F181: 81 | G181: 43 | H181: 40 | I181: 31 | J181: 23 | K181: 39 | L181: 46.4 | M181: 40.73041609 | N181: 39 | O181: 0.08665105386 | P181: 0.02170333703 | Q181: 9 | R181: 8 | S181: 1
A182: nunca (av) | B182: 48 | C182: 34 | D182: 14 | E182: 43 | F182: 113 | G182: 80 | H182: 23 | I182: 25 | J182: 29 | K182: 76 | L182: 48.5 | M182: 40.2843584 | N182: 38.5 | O182: 0.1149425287 | P182: 0.0226486378 | Q182: 8 | R182: 6 | S182: 2
A183: alto (aj|n) | B183: 12 | C183: 55 | D183: 35 | E183: 48 | F183: 16 | G183: 57 | H183: 41 | I183: 67 | J183: 33 | K183: 20 | L183: 38.4 | M183: 33.59890045 | N183: 38 | O183: 0.005235602094 | P183: -0.06146881471 | Q183: 6 | R183: 5 | S183: 1
A184: pronto (aj|av) | B184: 113 | C184: 11 | D184: 38 | E184: 37 | F184: 44 | G184: 50 | H184: 30 | I184: 24 | J184: 3 | K184: 91 | L184: 44.1 | M184: 30.74945532 | N184: 37.5 | O184: 0.08088235294 | P184: -0.09890986887 | Q184: 8 | R184: 5 | S184: 3
A185: presentar (v) | B185: 31 | C185: 64 | D185: 60 | E185: 37 | F185: 16 | G185: 36 | H185: 25 | I185: 39 | J185: 68 | K185: 21 | L185: 39.7 | M185: 35.87608092 | N185: 36.5 | O185: 0.04199475066 | P185: -0.00862051488 | Q185: 8 | R185: 5 | S185: 3
A186: pequeño (aj|n) | B186: 48 | C186: 31 | D186: 19 | E186: 42 | F186: 15 | G186: 42 | H186: 31 | I186: 27 | J186: 49 | K186: 43 | L186: 34.7 | M186: 32.51124767 | N186: 36.5 | O186: -0.02528089888 | P186: -0.05779858303 | Q186: 6 | R186: 6 | S186: 0
A187: leer (v) | B187: 42 | C187: 24 | D187: 9 | E187: 33 | F187: 50 | G187: 49 | H187: 41 | I187: 25 | J187: 33 | K187: 39 | L187: 34.5 | M187: 31.51871823 | N187: 36 | O187: -0.02127659574 | P187: -0.06637095435 | Q187: 6 | R187: 4 | S187: 2
A188: tratar (v) | B188: 18 | C188: 45 | D188: 26 | E188: 37 | F188: 34 | G188: 21 | H188: 31 | I188: 39 | J188: 80 | K188: 41 | L188: 37.2 | M188: 34.22676435 | N188: 35.5 | O188: 0.02338376891 | P188: -0.01826035762 | Q188: 7 | R188: 6 | S188: 1
A189: empezar (v) | B189: 7 | C189: 21 | D189: 9 | E189: 49 | F189: 40 | G189: 39 | H189: 32 | I189: 23 | J189: 41 | K189: 74 | L189: 33.5 | M189: 27.25068298 | N189: 35.5 | O189: -0.02898550725 | P189: -0.1314617887 | Q189: 6 | R189: 5 | S189: 1
A190: hermano (n) | B190: 206 | C190: 34 | D190: 22 | E190: 40 | F190: 96 | G190: 36 | H190: 25 | I190: 33 | J190: 2 | K190: 87 | L190: 58.1 | M190: 35.36230568 | N190: 35 | O190: 0.2481203008 | P190: 0.005149144565 | Q190: 8 | R190: 6 | S190: 2
A191: persona (n) | B191: 29 | C191: 53 | D191: 23 | E191: 57 | F191: 43 | G191: 38 | H191: 22 | I191: 40 | J191: 32 | K191: 24 | L191: 36.1 | M191: 34.25604736 | N191: 35 | O191: 0.01547116737 | P191: -0.01074206037 | Q191: 6 | R191: 6 | S191: 0
A192: idea (n) | B192: 22 | C192: 22 | D192: 19 | E192: 29 | F192: 25 | G192: 40 | H192: 116 | I192: 42 | J192: 47 | K192: 99 | L192: 46.1 | M192: 37.85678506 | N192: 34.5 | O192: 0.1439205955 | P192: 0.04639212558 | Q192: 8 | R192: 6 | S192: 2
A193: además (av) | B193: 60 | C193: 27 | D193: 46 | E193: 32 | F193: 25 | G193: 20 | H193: 37 | I193: 20 | J193: 58 | K193: 92 | L193: 41.7 | M193: 36.9218996 | N193: 34.5 | O193: 0.09448818898 | P193: 0.0339097617 | Q193: 7 | R193: 6 | S193: 1
A194: guerra (n) | B194: 14 | C194: 89 | D194: 23 | E194: 49 | F194: 44 | G194: 29 | H194: 40 | I194: 66 | J194: 7 | K194: 8 | L194: 36.9 | M194: 27.6890757 | N194: 34.5 | O194: =(L194-N194)/(L194+N194) -> 0.03361344538 | P194: =(M194-N194)/(M194+N194) -> -0.1095196258 | Q194: 6 | R194: 5 | S194: 1
A195: terminar (v) | B195: 46 | C195: 52 | D195: 29 | E195: 62 | F195: 18 | G195: 18 | H195: 15 | I195: 33 | J195: 36 | K195: 55 | L195: 36.4 | M195: 32.62395626 | N195: 34.5 | O195: 0.02679830748 | P195: -0.02794894462 | Q195: 7 | R195: 5 | S195: 2
A196: problema (n) | B196: 5 | C196: 38 | D196: 50 | E196: 31 | F196: 3 | G196: 5 | H196: 56 | I196: 45 | J196: 64 | K196: 27 | L196: 32.4 | M196: 21.30159306 | N196: 34.5 | O196: -0.03139013453 | P196: -0.2365238378 | Q196: 6 | R196: 4 | S196: 2
A197: allí (av) | B197: 57 | C197: 24 | D197: 14 | E197: 48 | F197: 44 | G197: 74 | H197: 24 | I197: 23 | J197: 21 | K197: 170 | L197: 49.9 | M197: 37.76371454 | N197: 34 | O197: 0.189511323 | P197: 0.05244592703 | Q197: 8 | R197: 6 | S197: 2
A198: dentro (av) | B198: 26 | C198: 16 | D198: 79 | E198: 25 | F198: 46 | G198: 37 | H198: 45 | I198: 31 | J198: 22 | K198: 50 | L198: 37.7 | M198: 34.13176037 | N198: 34 | O198: 0.05160390516 | P198: 0.00193390527 | Q198: 7 | R198: 6 | S198: 1
A199: hallar (v) | B199: 6 | C199: 44 | D199: 29 | E199: 57 | F199: 17 | G199: 36 | H199: 32 | I199: 50 | J199: 50 | K199: 10 | L199: 33.1 | M199: 27.10015775 | N199: 34 | O199: -0.01341281669 | P199: -0.1129267501 | Q199: 6 | R199: 4 | S199: 2
A200: dios (n) | B200: 114 | C200: 21 | D200: 132 | E200: 83 | F200: 215 | G200: 34 | H200: 27 | I200: 25 | J200: 9 | K200: 32 | L200: 69.2 | M200: 45.4086908 | N200: 33 | O200: 0.3542074364 | P200: 0.1582565743 | Q200: 7 | R200: 7 | S200: 0
... 4857 more rows

Sheet Work
A1: * | B1: grande | C1: tú
A2: 1 | B2: 84 | C2: 0
A3: 2 | B3: 115 | C3: 1
A4: 3 | B4: 126 | C4: 2
A5: 4 | B5: 128 | C5: 4
A6: 5 | B6: 164 | C6: 11
A7: 6 | B7: 169 | C7: 47
A8: 7 | B8: 194 | C8: 67
A9: 8 | B9: 202 | C9: 165
A10: 9 | B10: 207 | C10: 204
A11: 10 | B11: 252 | C11: 461
A12: M | B12: =AVERAGE(B2:B11) -> 164.1 | C12: =AVERAGE(C2:C11) -> 96.2
A13: GM | B13: =GEOMEAN(B2:B11) -> 156.524101 | C13: =gm(C2:C11) -> 14.56622577 | J13: =gm(C2:C11) -> 14.56622577 | K13: =GEOMEAN(C2:C11) -> 
A14: Md | B14: =MEDIAN(B2:B11) -> 166.5 | C14: =MEDIAN(C2:C11) -> 29
A17: * | B17: grande | C17: Log
A18: 1 | B18: 84 | C18: =LN(B18) -> 4.430816799
A19: 2 | B19: 115 | C19: 4.744932128
A20: 3 | B20: 126 | C20: 4.836281907
A21: 4 | B21: 128 | C21: 4.852030264
A22: 5 | B22: 164 | C22: 5.099866428
A23: 6 | B23: 169 | C23: 5.129898715
A24: 7 | B24: 194 | C24: 5.267858159
A25: 8 | B25: 202 | C25: 5.308267697
A26: 9 | B26: 207 | C26: 5.332718793
A27: 10 | B27: 252 | C27: 5.529429088
B31: M | C31: 50 | E31: GM | F31: 20
B32: SD | C32: 10 | E32: GSD | F32: 1.2
B33: M+SD | C33: =NORMDIST(C31+C32,C31,C32,1) -> 0.8413447461 | E33: GM*GSD | F33: =_xlfn.LOGNORM.DIST(F31*F32,F31,F32,1) -> 6.024270583e-45
B34: M-SD | C34: =NORMDIST(C31-C32,C31,C32,1) -> 0.1586552539 | E34: GM/GSD | F34: =_xlfn.LOGNORM.DIST(F31/F32,F31,F32,1) -> 7.955271888e-47
B35: Dif | C35: =C33-C34 -> 0.6826894921 | E35: D | F35: =F33/F34 -> 75.72677173
A77: * | B77: x | C77: y | D77: AM | E77: GM | F77: GM.c
A78: 1 | B78: 0 | C78: =10-B78 -> 10 | D78: =(B78+C78)/2 -> 5 | E78: =SQRT(B78*C78) -> 0 | F78: =SQRT((0.1)*C78) -> 1
A79: 2 | B79: 1 | C79: =10-B79 -> 9 | D79: =(B79+C79)/2 -> 5 | E79: =SQRT(B79*C79) -> 3 | F79: =SQRT(B79*C79) -> 3
A80: 3 | B80: 2 | C80: 8 | D80: 5 | E80: =SQRT(B80*C80) -> 4 | F80: =SQRT(B80*C80) -> 4
A81: 4 | B81: 3 | C81: 7 | D81: 5 | E81: 4.582575695 | F81: 4.582575695
A82: 5 | B82: 4 | C82: 6 | D82: 5 | E82: 4.898979486 | F82: 4.898979486
A83: 6 | B83: 5 | C83: 5 | D83: 5 | E83: 5 | F83: 5
A84: 7 | B84: 6 | C84: 4 | D84: 5 | E84: 4.898979486 | F84: 4.898979486
A85: 8 | B85: 7 | C85: 3 | D85: 5 | E85: 4.582575695 | F85: 4.582575695
A86: 9 | B86: 8 | C86: 2 | D86: 5 | E86: 4 | F86: 4
A87: 10 | B87: 9 | C87: 1 | D87: 5 | E87: 3 | F87: 3
A88: 11 | B88: 10 | C88: 0 | D88: 5 | E88: 0 | F88: =SQRT((0.1)*B88) -> 1
A91: * | B91: x | C91: y | D91: AM | E91: GM | F91: GM.c
A92: 1 | B92: 0 | C92: =5-B92 -> 5 | D92: =(B92+C92)/2 -> 2.5 | E92: =SQRT(B92*C92) -> 0 | F92: =SQRT((0.1)*C92) -> 0.7071067812
A93: 2 | B93: 1 | C93: 4 | D93: 2.5 | E93: 2 | F93: =SQRT(B93*C93) -> 2
A94: 3 | B94: 2 | C94: 3 | D94: 2.5 | E94: 2.449489743 | F94: =SQRT(B94*C94) -> 2.449489743
A95: 4 | B95: 3 | C95: 2 | D95: 2.5 | E95: 2.449489743 | F95: =SQRT(B95*C95) -> 2.449489743
A96: 5 | B96: 4 | C96: 1 | D96: 2.5 | E96: 2 | F96: =SQRT(B96*C96) -> 2
A97: 6 | B97: 5 | C97: 0 | D97: 2.5 | E97: 0 | F97: =SQRT(B97*0.1) -> 0.7071067812
A101: * | B101: x | C101: y | D101: AM | E101: GM | F101: GM.c
A102: 1 | B102: 0 | C102: =20-B102 -> 20 | D102: =(B102+C102)/2 -> 10 | E102: =SQRT(B102*C102) -> 0 | F102: =SQRT((0.1)*C102) -> 1.414213562
A103: 2 | B103: 1 | C103: =20-B103 -> 19 | D103: =(B103+C103)/2 -> 10 | E103: =SQRT(B103*C103) -> 4.358898944 | F103: =SQRT(B103*C103) -> 4.358898944
A104: 3 | B104: 2 | C104: 18 | D104: 10 | E104: =SQRT(B104*C104) -> 6 | F104: =SQRT(B104*C104) -> 6
A105: 4 | B105: 3 | C105: 17 | D105: 10 | E105: 7.141428429 | F105: 7.141428429
A106: 5 | B106: 4 | C106: 16 | D106: 10 | E106: 8 | F106: 8
A107: 6 | B107: 5 | C107: 15 | D107: 10 | E107: 8.660254038 | F107: 8.660254038
A108: 7 | B108: 6 | C108: 14 | D108: 10 | E108: 9.16515139 | F108: 9.16515139
A109: 8 | B109: 7 | C109: 13 | D109: 10 | E109: 9.539392014 | F109: 9.539392014
A110: 9 | B110: 8 | C110: 12 | D110: 10 | E110: 9.797958971 | F110: 9.797958971
A111: 10 | B111: 9 | C111: 11 | D111: 10 | E111: 9.949874371 | F111: 9.949874371
A112: 11 | B112: 10 | C112: 10 | D112: 10 | E112: 10 | F112: 10
A113: 12 | B113: 11 | C113: 9 | D113: =(B113+C113)/2 -> 10 | E113: =SQRT(B113*C113) -> 9.949874371 | F113: 9.949874371
A114: 13 | B114: 12 | C114: 8 | D114: 10 | E114: 9.797958971 | F114: 9.797958971
A115: 14 | B115: 13 | C115: 7 | D115: 10 | E115: 9.539392014 | F115: 9.539392014
A116: 15 | B116: 14 | C116: 6 | D116: 10 | E116: 9.16515139 | F116: 9.16515139
A117: 16 | B117: 15 | C117: 5 | D117: 10 | E117: 8.660254038 | F117: 8.660254038
A118: 17 | B118: 16 | C118: 4 | D118: 10 | E118: 8 | F118: 8
A119: 18 | B119: 17 | C119: 3 | D119: 10 | E119: 7.141428429 | F119: 7.141428429
A120: 19 | B120: 18 | C120: 2 | D120: 10 | E120: 6 | F120: 6
A121: 20 | B121: 19 | C121: 1 | D121: 10 | E121: 4.358898944 | F121: 4.358898944
A122: 21 | B122: 20 | C122: 0 | D122: 10 | E122: 0 | F122: =SQRT((0.1)*B122) -> 1.414213562
A124: * | B124: x | C124: y | D124: AM | E124: GM | F124: GM.c
A125: 1 | B125: 0 | C125: 5 | D125: =(B125+C125)/2 -> 2.5 | E125: =SQRT(B125*C125) -> 0 | F125: =SQRT((0.1)*C125) -> 0.7071067812
A126: 2 | B126: 1 | C126: 5 | D126: 3 | E126: 2.236067977 | F126: =SQRT(B126*C126) -> 2.236067977
A127: 3 | B127: 2 | C127: 5 | D127: 3.5 | E127: 3.16227766 | F127: =SQRT(B127*C127) -> 3.16227766
A128: 4 | B128: 3 | C128: 5 | D128: 4 | E128: 3.872983346 | F128: =SQRT(B128*C128) -> 3.872983346
A129: 5 | B129: 4 | C129: 5 | D129: 4.5 | E129: 4.472135955 | F129: =SQRT(B129*C129) -> 4.472135955
A130: 6 | B130: 5 | C130: 5 | D130: 5 | E130: 5 | F130: =SQRT(B130*C130) -> 5
A132: * | B132: x | C132: y | D132: AM | E132: GM | F132: GM.c
A133: 1 | B133: 0 | C133: 20 | D133: =(B133+C133)/2 -> 10 | E133: =SQRT(B133*C133) -> 0 | F133: =SQRT((0.1)*C133) -> 1.414213562
A134: 2 | B134: 1 | C134: 20 | D134: =(B134+C134)/2 -> 10.5 | E134: =SQRT(B134*C134) -> 4.472135955 | F134: =SQRT(B134*C134) -> 4.472135955
A135: 3 | B135: 2 | C135: 20 | D135: 11 | E135: =SQRT(B135*C135) -> 6.32455532 | F135: =SQRT(B135*C135) -> 6.32455532
A136: 4 | B136: 3 | C136: 20 | D136: 11.5 | E136: 7.745966692 | F136: 7.745966692
A137: 5 | B137: 4 | C137: 20 | D137: 12 | E137: 8.94427191 | F137: 8.94427191
A138: 6 | B138: 5 | C138: 20 | D138: 12.5 | E138: 10 | F138: 10
A139: 7 | B139: 6 | C139: 20 | D139: 13 | E139: 10.95445115 | F139: 10.95445115
A140: 8 | B140: 7 | C140: 20 | D140: 13.5 | E140: 11.83215957 | F140: 11.83215957
A141: 9 | B141: 8 | C141: 20 | D141: 14 | E141: 12.64911064 | F141: 12.64911064
A142: 10 | B142: 9 | C142: 20 | D142: 14.5 | E142: 13.41640786 | F142: 13.41640786
A143: 11 | B143: 10 | C143: 20 | D143: 15 | E143: 14.14213562 | F143: 14.14213562
A144: 12 | B144: 11 | C144: 20 | D144: 15.5 | E144: 14.83239697 | F144: 14.83239697
A145: 13 | B145: 12 | C145: 20 | D145: 16 | E145: 15.49193338 | F145: 15.49193338
A146: 14 | B146: 13 | C146: 20 | D146: 16.5 | E146: 16.1245155 | F146: 16.1245155
A147: 15 | B147: 14 | C147: 20 | D147: 17 | E147: 16.73320053 | F147: 16.73320053
A148: 16 | B148: 15 | C148: 20 | D148: 17.5 | E148: 17.32050808 | F148: 17.32050808
A149: 17 | B149: 16 | C149: 20 | D149: 18 | E149: 17.88854382 | F149: 17.88854382
A150: 18 | B150: 17 | C150: 20 | D150: 18.5 | E150: 18.43908891 | F150: 18.43908891
A151: 19 | B151: 18 | C151: 20 | D151: 19 | E151: 18.97366596 | F151: 18.97366596
A152: 20 | B152: 19 | C152: 20 | D152: 19.5 | E152: 19.49358869 | F152: 19.49358869
A153: 21 | B153: 20 | C153: 20 | D153: 20 | E153: 20 | F153: 20
B155: 2
A156: * | B156: x | C156: y | D156: M | E156: GM
A157: 1 | B157: 5 | C157: 5 | D157: =(B157+C157)/2 -> 5 | E157: =SQRT(B157*C157) -> 5
A158: 2 | B158: =B157+$B$155 -> 7 | C158: 5 | D158: 6 | E158: 5.916079783
A159: 3 | B159: =B158+$B$155 -> 9 | C159: 5 | D159: 7 | E159: 6.708203932
A160: 4 | B160: 11 | C160: 5 | D160: 8 | E160: 7.416198487
A161: 5 | B161: 13 | C161: 5 | D161: 9 | E161: 8.062257748
A162: 6 | B162: 15 | C162: 5 | D162: 10 | E162: 8.660254038
A164: * | B164: x | C164: y | D164: M | E164: GM
A165: 1 | B165: 5 | C165: 5 | D165: =(B165+C165)/2 -> 5 | E165: =SQRT(B165*C165) -> 5
A166: 2 | B166: =B165*$B$155 -> 10 | C166: 5 | D166: 7.5 | E166: 7.071067812
A167: 3 | B167: =B166*$B$155 -> 20 | C167: 5 | D167: 12.5 | E167: 10
A168: 4 | B168: 40 | C168: 5 | D168: 22.5 | E168: 14.14213562
A169: 5 | B169: 80 | C169: 5 | D169: 42.5 | E169: 20
A170: 6 | B170: 160 | C170: 5 | D170: 82.5 | E170: 28.28427125
A172: Word | B172: M | C172: GM | D172: Md | E172: M::Md | F172: GM::Md
A173: de (prep) | B173: 7221.6 | C173: 6816.916314 | D173: 7196 | E173: =(B173-D173)/(B173+D173) -> 0.001775607591 | F173: =(C173-D173)/(C173+D173) -> -0.0270524477
A174: que-qué (conj|pn) | B174: 3662.4 | C174: 3536.078314 | D174: 3243.5 | E174: =(B174-D174)/(B174+D174) -> 0.0606582777 | F174: =(C174-D174)/(C174+D174) -> 0.04315582779
A175: y (conj) | B175: 3268.4 | C175: 3199.698443 | D175: 3161.5 | E175: 0.01662545296 | F175: 0.006004912929
A176: a (prep) | B176: 2847.3 | C176: 2835.850215 | D176: 2844 | E176: 0.0005798323757 | F176: -0.001434859088
A177: en (prep) | B177: 2501.1 | C177: 2431.842741 | D177: 2715 | E177: -0.04100764939 | F177: -0.05501572005
A178: ser (v) | B178: 1940.3 | C178: 1849.096352 | D178: 1702.5 | E178: 0.06527945536 | F178: 0.04127618622
A179: haber (v) | B179: 1225.3 | C179: 1160.292789 | D179: 1223 | E179: 0.0009394273578 | F179: -0.02631116552
A180: por (prep) | B180: 1085.6 | C180: 1070.75923 | D180: 1088.5 | E180: -0.001333885286 | F180: -0.008216137276
A181: su-suyo (poses) | B181: 971.7 | C181: 908.4497361 | D181: 1050 | E181: -0.03872978187 | F181: -0.07227668969
